TRANSACTION DATE,SUPPLIER NAME (Beneficiary),DIRECTORATE,COST CENTRE DESCRIPTION,GROSS AMOUNT,SUBJECTIVE DESCRIPTION,MERCHANT CATEGORY CODE DESCRIPTION
01 Oct 2014,WELSH BROS FOODS LTD,NEIGHBOURHOOD SERVICES,CA COOPER JORDAN CE PRIMARY SCHOOL,140.76,MEAT-PROVISIONS,FREEZER AND LOCKER MEAT PROVISIONERS
01 Oct 2014,BLAKEMORE FOODSERVICE,NEIGHBOURHOOD SERVICES,CA ELMORE GREEN PRIMARY SCHOOL,238.97,DRY FOODS-PROVISIONS,CATERERS
01 Oct 2014,BLAKEMORE FOODSERVICE,NEIGHBOURHOOD SERVICES,CA ELMORE GREEN PRIMARY SCHOOL,38.50,DRY FOODS-PROVISIONS,CATERERS
01 Oct 2014,BLAKEMORE FOODSERVICE,NEIGHBOURHOOD SERVICES,CA JANE LANE SPECIAL SCHOOL,229.85,DRY FOODS-PROVISIONS,CATERERS
01 Oct 2014,WELSH BROS FOODS LTD,NEIGHBOURHOOD SERVICES,CA TOWN HALL RESTAURANT - CATERING,148.78,MEAT-PROVISIONS,FREEZER AND LOCKER MEAT PROVISIONERS
01 Oct 2014,DON RUFFLES LTD,NEIGHBOURHOOD SERVICES,LIBRARY DEVELOPMENT 1,309.60,STATIONERY & GENERAL SUPPLIES-OFFICE EXP,"OFFICE, SCHOOL SUPPLY, AND STATIONERY STORES"
01 Oct 2014,BLAKEMORE FOODSERVICE,NEIGHBOURHOOD SERVICES,CA BIRCHILLS CE PRIMARY COMMUNITY SCHOOL,455.79,DRY FOODS-PROVISIONS,CATERERS
01 Oct 2014,BLAKEMORE FOODSERVICE,NEIGHBOURHOOD SERVICES,CA BIRCHILLS CE PRIMARY COMMUNITY SCHOOL,27.00,DRY FOODS-PROVISIONS,CATERERS
01 Oct 2014,WELSH BROS FOODS LTD,NEIGHBOURHOOD SERVICES,CA ST MICHAELS C.E. PRIMARY SCHOOL,122.27,MEAT-PROVISIONS,FREEZER AND LOCKER MEAT PROVISIONERS
01 Oct 2014,BLAKEMORE FOODSERVICE,NEIGHBOURHOOD SERVICES,CA BROWNHILLS WEST PRIMARY SCHOOL,92.56,FROZEN FOODS-PROVISIONS,CATERERS
01 Oct 2014,BLAKEMORE FOODSERVICE,NEIGHBOURHOOD SERVICES,CA BROWNHILLS WEST PRIMARY SCHOOL,7.68,FROZEN FOODS-PROVISIONS,CATERERS
01 Oct 2014,BLAKEMORE FOODSERVICE,NEIGHBOURHOOD SERVICES,CA MEADOW VIEW JMI PRIMARY SCHOOL,85.94,FROZEN FOODS-PROVISIONS,CATERERS
01 Oct 2014,NOBISCO LTD,NEIGHBOURHOOD SERVICES,CA ELMORE GREEN PRIMARY SCHOOL,24.34,PAYMENT TO CONTRACTOR EXTERNAL-CLEANING,"CLEANING AND MAINTENANCE, JANITORIAL SERVICES"
01 Oct 2014,TRI-ARD STAINLESS FSTN,NEIGHBOURHOOD SERVICES,POOLFITTERS,13.70,NEW-FURNITURE & EQUIPMENT,"ARCHITECTURAL, ENGINEERING, AND SURVEYING SERVICES"
01 Oct 2014,WELSH BROS FOODS LTD,NEIGHBOURHOOD SERVICES,CA WATLING STREET PRIMARY SCHOOL,93.29,MEAT-PROVISIONS,FREEZER AND LOCKER MEAT PROVISIONERS
01 Oct 2014,OFFICE DEPOT,NEIGHBOURHOOD SERVICES,LIBRARY OPERATIONS CENTRAL,761.82,STATIONERY & GENERAL SUPPLIES-OFFICE EXP,"STATIONERY, OFFICE SUPPLIES AND WRITING PAPER"
01 Oct 2014,BLAKEMORE FOODSERVICE,NEIGHBOURHOOD SERVICES,CA GREEN ROCK PRIMARY,45.36,FROZEN FOODS-PROVISIONS,CATERERS
01 Oct 2014,BLAKEMORE FOODSERVICE,NEIGHBOURHOOD SERVICES,CA GREEN ROCK PRIMARY,15.36,FROZEN FOODS-PROVISIONS,CATERERS
01 Oct 2014,WELSH BROS FOODS LTD,NEIGHBOURHOOD SERVICES,CA BUSILL JONES PRIMARY SCHOOL,205.46,MEAT-PROVISIONS,FREEZER AND LOCKER MEAT PROVISIONERS
01 Oct 2014,SABRINA TOURS,NEIGHBOURHOOD SERVICES,VP SCL ESSENTIAL SKILLS S4L IT ESOL,50.00,HIRE OF VEHICLES,OTHER RECREATION SERVICES
01 Oct 2014,A AND H SUPERSAVE,RESOURCES,ACCOMMODATION SERVICES MANAGEMENT,10.50,ELECTRICITY-ENERGY COSTS,"PACKAGE STORES, BEER, WINE, LIQUOR"
01 Oct 2014,AMAZON EU,CHILDRENS SERVICES,ACCESS TEAM,28.46,STATIONERY & GENERAL SUPPLIES-OFFICE EXP,OTHER DIRECT MARKETING-OTHER DIRECT MARKETERS
01 Oct 2014,TESCO STORES 6161,CHILDRENS SERVICES,"43A HILTON ROAD, WILLENHALL",4.74,FOOD AND BEVERAGES-PROVISIONS,GROCERY STORES AND SUPERMARKETS
01 Oct 2014,WELSH BROS FOODS LTD,NEIGHBOURHOOD SERVICES,CA GREEN ROCK PRIMARY,190.14,MEAT-PROVISIONS,FREEZER AND LOCKER MEAT PROVISIONERS
01 Oct 2014,NOBISCO LTD,NEIGHBOURHOOD SERVICES,CA BUSILL JONES PRIMARY SCHOOL,16.18,DISPOSABLES-PROVISIONS,"CLEANING AND MAINTENANCE, JANITORIAL SERVICES"
01 Oct 2014,TESCO STORES 6161,CHILDRENS SERVICES,FOOD TECH,17.96,GENERAL MATERIALS,GROCERY STORES AND SUPERMARKETS
01 Oct 2014,AMAZON *MKTPLCE EU-UK,CHILDRENS SERVICES,SCIENCE & TECHNOLOGY,36.99,NEW-FURNITURE & EQUIPMENT,BOOK STORES
01 Oct 2014,ARTHUR BRETT CATER,NEIGHBOURHOOD SERVICES,CA JANE LANE SPECIAL SCHOOL,6.70,FRUIT & VEGETABLES OTHER-PROVISIONS,MISCELLANEOUS FOOD STORES & CONVENIENCE STORES
01 Oct 2014,WELSH BROS FOODS LTD,NEIGHBOURHOOD SERVICES,CA RADLEYS PRIMARY SCHOOL,110.73,MEAT-PROVISIONS,FREEZER AND LOCKER MEAT PROVISIONERS
01 Oct 2014,BLAKEMORE FOODSERVICE,NEIGHBOURHOOD SERVICES,CA CALDMORE COMMUNITY PRIMARY SCHOOL,143.32,DRY FOODS-PROVISIONS,CATERERS
01 Oct 2014,BLAKEMORE FOODSERVICE,NEIGHBOURHOOD SERVICES,CA CALDMORE COMMUNITY PRIMARY SCHOOL,13.15,DRY FOODS-PROVISIONS,CATERERS
01 Oct 2014,WELSH BROS FOODS LTD,NEIGHBOURHOOD SERVICES,CA BROWNHILLS WEST PRIMARY SCHOOL,180.69,MEAT-PROVISIONS,FREEZER AND LOCKER MEAT PROVISIONERS
01 Oct 2014,OFFICE DEPOT,NEIGHBOURHOOD SERVICES,RESOURCE MANAGEMENT,61.44,STATIONERY & GENERAL SUPPLIES-OFFICE EXP,"STATIONERY, OFFICE SUPPLIES AND WRITING PAPER"
01 Oct 2014,OFFICE DEPOT,CHILDRENS SERVICES,ST FRANCIS OF ASSISI CATHOLIC TECHNOLOGY COLLEGE,60.30,EXAMINATIONS-SERVICES,"STATIONERY, OFFICE SUPPLIES AND WRITING PAPER"
01 Oct 2014,BLAKEMORE FOODSERVICE,NEIGHBOURHOOD SERVICES,CA WATLING STREET PRIMARY SCHOOL,76.58,FROZEN FOODS-PROVISIONS,CATERERS
01 Oct 2014,WM MORRISON 063,CHILDRENS SERVICES,REDRUTH ROAD,10.44,GENERAL PROVISIONS-PROVISIONS,GROCERY STORES AND SUPERMARKETS
01 Oct 2014,WM MORRISON 063,CHILDRENS SERVICES,REDRUTH ROAD,71.11,GENERAL PROVISIONS-PROVISIONS,GROCERY STORES AND SUPERMARKETS
01 Oct 2014,BLAKEMORE FOODSERVICE,NEIGHBOURHOOD SERVICES,CA JOSEPH LECKIE COMMUNITY TECHNOLOGY COLLEGE,101.42,DRY FOODS-PROVISIONS,CATERERS
01 Oct 2014,BLAKEMORE FOODSERVICE,NEIGHBOURHOOD SERVICES,CA FIBBERSLEY PARK PRIMARY SCHOOL,120.22,FROZEN FOODS-PROVISIONS,CATERERS
01 Oct 2014,OFFICE DEPOT,CHILDRENS SERVICES,EDUCATION BUSINESS PARTNERSHIP (EBP),16.27,STATIONERY & GENERAL SUPPLIES-OFFICE EXP,"STATIONERY, OFFICE SUPPLIES AND WRITING PAPER"
01 Oct 2014,NOBISCO LTD,NEIGHBOURHOOD SERVICES,CA BARCROFT D/C,23.99,DISPOSABLES-PROVISIONS,"CLEANING AND MAINTENANCE, JANITORIAL SERVICES"
01 Oct 2014,THE TRAINLINE.COM,SOCIAL CARE & INCLUSION,COMMISSIONING TEAM,138.21,OFFICER/STAFF-PUBLIC TRANSPORT,PASSENGER RAILWAYS
01 Oct 2014,AMAZON EU,CHILDRENS SERVICES,ACCESS TEAM,18.38,STATIONERY & GENERAL SUPPLIES-OFFICE EXP,OTHER DIRECT MARKETING-OTHER DIRECT MARKETERS
01 Oct 2014,BLAKEMORE FOODSERVICE,NEIGHBOURHOOD SERVICES,CA BEACON PRIMARY SCHOOL,913.47,DRY FOODS-PROVISIONS,CATERERS
01 Oct 2014,BLAKEMORE FOODSERVICE,NEIGHBOURHOOD SERVICES,CA BEACON PRIMARY SCHOOL,160.60,DRY FOODS-PROVISIONS,CATERERS
01 Oct 2014,TRAINLINE.COM,CHILDRENS SERVICES,YOUTH JUSTICE SERVICE,-16.40,OFFICER/STAFF-PUBLIC TRANSPORT,PASSENGER RAILWAYS
01 Oct 2014,BLAKEMORE FOODSERVICE,NEIGHBOURHOOD SERVICES,TOWN HALL RESTAURANT BISTRO,38.05,FROZEN FOODS-PROVISIONS,CATERERS
01 Oct 2014,EDREAMS LIMITED,NEIGHBOURHOOD SERVICES,NEW ART GALLERY - ADMIN,44.66,OFFICER/STAFF-PUBLIC TRANSPORT,TRAVEL AGENCIES AND TOUR OPERATORS
01 Oct 2014,COMPANIES HOUSE,RESOURCES,WALSALL CRISIS SUPPORT SCHEME,14.00,CRISIS SUPPORT PAYMENTS,GOVERNMENT SERVICES
01 Oct 2014,BLAKEMORE FOODSERVICE,NEIGHBOURHOOD SERVICES,CA FIBBERSLEY PARK PRIMARY SCHOOL,239.67,DRY FOODS-PROVISIONS,CATERERS
01 Oct 2014,BLAKEMORE FOODSERVICE,NEIGHBOURHOOD SERVICES,CA FIBBERSLEY PARK PRIMARY SCHOOL,25.35,DRY FOODS-PROVISIONS,CATERERS
01 Oct 2014,BLAKEMORE FOODSERVICE,NEIGHBOURHOOD SERVICES,CA ELMWOOD SPECIAL SCHOOL,104.25,DRY FOODS-PROVISIONS,CATERERS
01 Oct 2014,THE MAKATON CHARIT,CHILDRENS SERVICES,"CLUSTER 1 BROWNHILLS,GREENFIELDS,PELSALL",66.75,PUBLICATIONS/ORGANISATIONS-SUBSCRIPTIONS,OTHER SCHOOLS AND EDUCATIONAL SERVICES
01 Oct 2014,SJASUPLIES,CHILDRENS SERVICES,UNIVERSAL EDUCATION CLIENT UNIT,57.94,STATIONERY & GENERAL SUPPLIES-OFFICE EXP,"ORGANIZATIONS, CHARITABLE AND SOCIAL SERVICE"
01 Oct 2014,WELSH BROS FOODS LTD,NEIGHBOURHOOD SERVICES,CA GREEN ROCK PRIMARY,17.90,MEAT-PROVISIONS,FREEZER AND LOCKER MEAT PROVISIONERS
01 Oct 2014,WELSH BROS FOODS LTD,NEIGHBOURHOOD SERVICES,TOWN HALL RESTAURANT BISTRO,90.57,MEAT-PROVISIONS,FREEZER AND LOCKER MEAT PROVISIONERS
01 Oct 2014,BLAKEMORE FOODSERVICE,NEIGHBOURHOOD SERVICES,CA ST ANNES CATHOLIC PRIMARY SCHOOL,127.13,FROZEN FOODS-PROVISIONS,CATERERS
01 Oct 2014,BLAKEMORE FOODSERVICE,NEIGHBOURHOOD SERVICES,CA ST ANNES CATHOLIC PRIMARY SCHOOL,7.68,FROZEN FOODS-PROVISIONS,CATERERS
01 Oct 2014,BLAKEMORE FOODSERVICE,NEIGHBOURHOOD SERVICES,CA ELMORE GREEN PRIMARY SCHOOL,146.50,FROZEN FOODS-PROVISIONS,CATERERS
01 Oct 2014,HEYWOOD HOUSE,REGENERATION,REGENERATION MANAGEMENT,136.80,HOTEL ACCOMMODATION-EMPLOYEES,"HOTELS, MOTELS, RESORTS"
01 Oct 2014,BLAKEMORE FOODSERVICE,NEIGHBOURHOOD SERVICES,CA RADLEYS PRIMARY SCHOOL,117.75,FROZEN FOODS-PROVISIONS,CATERERS
01 Oct 2014,BLAKEMORE FOODSERVICE,NEIGHBOURHOOD SERVICES,CA ST ANNES CATHOLIC PRIMARY SCHOOL,152.15,FROZEN FOODS-PROVISIONS,CATERERS
01 Oct 2014,BLAKEMORE FOODSERVICE,NEIGHBOURHOOD SERVICES,CA ST ANNES CATHOLIC PRIMARY SCHOOL,15.36,FROZEN FOODS-PROVISIONS,CATERERS
01 Oct 2014,BLAKEMORE FOODSERVICE,NEIGHBOURHOOD SERVICES,CA ST MICHAELS C.E. PRIMARY SCHOOL,4.77,FROZEN FOODS-PROVISIONS,CATERERS
01 Oct 2014,BLAKEMORE FOODSERVICE,NEIGHBOURHOOD SERVICES,CA BLUE COAT C OF E PERFORMING ARTS COLLEGE,240.92,DRY FOODS-PROVISIONS,CATERERS
01 Oct 2014,BLAKEMORE FOODSERVICE,NEIGHBOURHOOD SERVICES,CA BLUE COAT C OF E PERFORMING ARTS COLLEGE,39.72,DRY FOODS-PROVISIONS,CATERERS
01 Oct 2014,WELSH BROS FOODS LTD,NEIGHBOURHOOD SERVICES,CA CASTLEFORT JMI SCHOOL,121.37,MEAT-PROVISIONS,FREEZER AND LOCKER MEAT PROVISIONERS
01 Oct 2014,WWW.PRIMROSE-LONDON.CO.U,CHILDRENS SERVICES,CHUCKERY PRIMARY SCHOOL,52.32,LANDSCAPE WORK-OP MTCE,"NURSERIES, LAWN AND GARDEN SUPPLY STORES"
01 Oct 2014,BLAKEMORE FOODSERVICE,NEIGHBOURHOOD SERVICES,CA BUSILL JONES PRIMARY SCHOOL,192.32,FROZEN FOODS-PROVISIONS,CATERERS
01 Oct 2014,BLAKEMORE FOODSERVICE,NEIGHBOURHOOD SERVICES,CA BARCROFT D/C,7.21,DRY FOODS-PROVISIONS,CATERERS
01 Oct 2014,BLAKEMORE FOODSERVICE,NEIGHBOURHOOD SERVICES,CA WATLING STREET PRIMARY SCHOOL,183.60,FROZEN FOODS-PROVISIONS,CATERERS
01 Oct 2014,BLAKEMORE FOODSERVICE,NEIGHBOURHOOD SERVICES,CA JOSEPH LECKIE COMMUNITY TECHNOLOGY COLLEGE,310.81,FROZEN FOODS-PROVISIONS,CATERERS
01 Oct 2014,AMAZON EU,CHILDRENS SERVICES,SPECIAL NEEDS DEPARTMENT,-3.99,GENERAL MATERIALS,OTHER DIRECT MARKETING-OTHER DIRECT MARKETERS
01 Oct 2014,COMFORT BEDS CO,CHILDRENS SERVICES,SUPPORT UNDER SECT 23 OF THE CHILDRENS ACT,98.00,FURNITURE & EQUIPMENT,"EQUIPMENT, FURNITURE, AND HOME FURNISHINGS STORES "
01 Oct 2014,BLAKEMORE FOODSERVICE,NEIGHBOURHOOD SERVICES,CA RUSHALL JMI SCHOOL,67.96,FROZEN FOODS-PROVISIONS,CATERERS
01 Oct 2014,WELSH BROS FOODS LTD,NEIGHBOURHOOD SERVICES,CA LEIGHSWOOD PRIMARY SCHOOL,48.05,MEAT-PROVISIONS,FREEZER AND LOCKER MEAT PROVISIONERS
01 Oct 2014,BLAKEMORE FOODSERVICE,NEIGHBOURHOOD SERVICES,CA OAKWOOD SPECIAL SCHOOL,72.24,FROZEN FOODS-PROVISIONS,CATERERS
01 Oct 2014,BLAKEMORE FOODSERVICE,NEIGHBOURHOOD SERVICES,CA OAKWOOD SPECIAL SCHOOL,7.68,FROZEN FOODS-PROVISIONS,CATERERS
01 Oct 2014,BLAKEMORE FOODSERVICE,NEIGHBOURHOOD SERVICES,CA LEIGHSWOOD PRIMARY SCHOOL,41.42,FROZEN FOODS-PROVISIONS,CATERERS
01 Oct 2014,BLAKEMORE FOODSERVICE,NEIGHBOURHOOD SERVICES,CA LINDENS PRIMARY SCHOOL,183.54,FROZEN FOODS-PROVISIONS,CATERERS
01 Oct 2014,BLAKEMORE FOODSERVICE,NEIGHBOURHOOD SERVICES,CA LINDENS PRIMARY SCHOOL,15.36,FROZEN FOODS-PROVISIONS,CATERERS
01 Oct 2014,BLAKEMORE FOODSERVICE,NEIGHBOURHOOD SERVICES,CA JOSEPH LECKIE COMMUNITY TECHNOLOGY COLLEGE,648.94,DRY FOODS-PROVISIONS,CATERERS
01 Oct 2014,BLAKEMORE FOODSERVICE,NEIGHBOURHOOD SERVICES,CA JOSEPH LECKIE COMMUNITY TECHNOLOGY COLLEGE,242.53,DRY FOODS-PROVISIONS,CATERERS
01 Oct 2014,AMAZON *MKTPLCE EU-UK,RESOURCES,LAW LIBRARY,105.20,GENERAL MATERIALS,BOOK STORES
01 Oct 2014,BLAKEMORE FOODSERVICE,NEIGHBOURHOOD SERVICES,CA BUSILL JONES PRIMARY SCHOOL,666.04,DRY FOODS-PROVISIONS,CATERERS
01 Oct 2014,BLAKEMORE FOODSERVICE,NEIGHBOURHOOD SERVICES,CA BUSILL JONES PRIMARY SCHOOL,17.07,DRY FOODS-PROVISIONS,CATERERS
01 Oct 2014,BLAKEMORE FOODSERVICE,NEIGHBOURHOOD SERVICES,CA ST MICHAELS C.E. PRIMARY SCHOOL,-5.27,DRY FOODS-PROVISIONS,CATERERS
01 Oct 2014,TESCO STORES 6161,RESOURCES,WALSALL CRISIS SUPPORT SCHEME,8.78,CRISIS SUPPORT PAYMENTS,GROCERY STORES AND SUPERMARKETS
01 Oct 2014,COSTA COFFEE,NEIGHBOURHOOD SERVICES,NEW ART GALLERY - ADMIN,8.86,MISC DAIRY PRODUCTS-PROVISIONS,"EATING PLACES, RESTAURANTS"
01 Oct 2014,WELSH BROS FOODS LTD,NEIGHBOURHOOD SERVICES,CA BEACON PRIMARY SCHOOL,295.38,MEAT-PROVISIONS,FREEZER AND LOCKER MEAT PROVISIONERS
01 Oct 2014,BLAKEMORE FOODSERVICE,NEIGHBOURHOOD SERVICES,CA BARCROFT D/C,224.17,DRY FOODS-PROVISIONS,CATERERS
01 Oct 2014,BLAKEMORE FOODSERVICE,NEIGHBOURHOOD SERVICES,CA TOWN HALL RESTAURANT - CATERING,57.37,FROZEN FOODS-PROVISIONS,CATERERS
01 Oct 2014,BLAKEMORE FOODSERVICE,NEIGHBOURHOOD SERVICES,CA COOPER JORDAN CE PRIMARY SCHOOL,144.56,DRY FOODS-PROVISIONS,CATERERS
01 Oct 2014,WELSH BROS FOODS LTD,NEIGHBOURHOOD SERVICES,CA WATLING STREET PRIMARY SCHOOL,24.52,MEAT-PROVISIONS,FREEZER AND LOCKER MEAT PROVISIONERS
01 Oct 2014,WELSH BROS FOODS LTD,NEIGHBOURHOOD SERVICES,CA ELMORE GREEN PRIMARY SCHOOL,145.67,MEAT-PROVISIONS,FREEZER AND LOCKER MEAT PROVISIONERS
01 Oct 2014,BLAKEMORE FOODSERVICE,NEIGHBOURHOOD SERVICES,CA ST MICHAELS C.E. PRIMARY SCHOOL,170.05,DRY FOODS-PROVISIONS,CATERERS
01 Oct 2014,BLAKEMORE FOODSERVICE,NEIGHBOURHOOD SERVICES,CA ST MICHAELS C.E. PRIMARY SCHOOL,7.68,DRY FOODS-PROVISIONS,CATERERS
01 Oct 2014,BLAKEMORE FOODSERVICE,NEIGHBOURHOOD SERVICES,CA BLUE COAT C OF E PERFORMING ARTS COLLEGE,359.27,FROZEN FOODS-PROVISIONS,CATERERS
01 Oct 2014,BLAKEMORE FOODSERVICE,NEIGHBOURHOOD SERVICES,CA ST JOHNS C.E. PRIMARY SCHOOL,173.30,FROZEN FOODS-PROVISIONS,CATERERS
01 Oct 2014,ARTHUR BRETT CATER,NEIGHBOURHOOD SERVICES,CA CASTLEFORT JMI SCHOOL,44.41,FRUIT & VEGETABLES OTHER-PROVISIONS,MISCELLANEOUS FOOD STORES & CONVENIENCE STORES
01 Oct 2014,BLAKEMORE FOODSERVICE,NEIGHBOURHOOD SERVICES,CA BEACON PRIMARY SCHOOL,239.96,FROZEN FOODS-PROVISIONS,CATERERS
01 Oct 2014,TRAINLINE.COM,CHILDRENS SERVICES,SAFEGUARDING & FAMILY SUPPORT,13.82,OFFICER/STAFF-PUBLIC TRANSPORT,PASSENGER RAILWAYS
01 Oct 2014,CRAZY HOUSE (BROWNHILL,CHILDRENS SERVICES,PELSALL CHILDRENS CENTRE,45.00,FURNITURE & EQUIPMENT,"EQUIPMENT, FURNITURE, AND HOME FURNISHINGS STORES "
01 Oct 2014,WM MORRISON 063,CHILDRENS SERVICES,LOOKED AFTER CHILDRENS SOCIAL WORK TEAM,5.67,TRANSFER PAYMENTS - SOCIAL SERVICES CLIENTS,GROCERY STORES AND SUPERMARKETS
01 Oct 2014,WM MORRISON 063,CHILDRENS SERVICES,LOOKED AFTER CHILDRENS SOCIAL WORK TEAM,6.87,TRANSFER PAYMENTS - SOCIAL SERVICES CLIENTS,GROCERY STORES AND SUPERMARKETS
01 Oct 2014,BLAKEMORE FOODSERVICE,NEIGHBOURHOOD SERVICES,CA ELMWOOD SPECIAL SCHOOL,28.54,DRY FOODS-PROVISIONS,CATERERS
01 Oct 2014,BLAKEMORE FOODSERVICE,NEIGHBOURHOOD SERVICES,CA BLUE COAT C OF E PERFORMING ARTS COLLEGE,335.08,FROZEN FOODS-PROVISIONS,CATERERS
01 Oct 2014,ASDA SUPERSTORE,CHILDRENS SERVICES,ADOPTION TEAM,7.50,FOOD AND BEVERAGES-PROVISIONS,GROCERY STORES AND SUPERMARKETS
01 Oct 2014,ASDA SUPERSTORE,CHILDRENS SERVICES,ADOPTION TEAM,0.69,FOOD AND BEVERAGES-PROVISIONS,GROCERY STORES AND SUPERMARKETS
01 Oct 2014,ASDA SUPERSTORE,CHILDRENS SERVICES,FOOD TECHNOLOGY,4.64,GENERAL MATERIALS,GROCERY STORES AND SUPERMARKETS
01 Oct 2014,TRAINLINE.COM,NEIGHBOURHOOD SERVICES,LEISURE - MANAGEMENT AND ADMIN,-17.00,OFFICER/STAFF-PUBLIC TRANSPORT,PASSENGER RAILWAYS
01 Oct 2014,RYANAIR,NEIGHBOURHOOD SERVICES,NEW ART GALLERY - ADMIN,16.94,OFFICER/STAFF-PUBLIC TRANSPORT,RYANAIR
01 Oct 2014,MSFT *ONLINE,CHILDRENS SERVICES,EDUCATION BUSINESS PARTNERSHIP (EBP),22.20,COMPUTER EQUIPMENT AND SUPPLIES,COMPUTER NETWORK/INFORMATION SERVICES
01 Oct 2014,ARTHUR BRETT CATER,NEIGHBOURHOOD SERVICES,CA CASTLEFORT JMI SCHOOL,-19.31,FRUIT & VEGETABLES OTHER-PROVISIONS,MISCELLANEOUS FOOD STORES & CONVENIENCE STORES
01 Oct 2014,WWW.GIROFOOD.COM,NEIGHBOURHOOD SERVICES,CA CALDMORE COMMUNITY PRIMARY SCHOOL,101.78,DISPOSABLES-PROVISIONS,WHOLESALE CLUBS
01 Oct 2014,WWW.GIROFOOD.COM,NEIGHBOURHOOD SERVICES,CA CALDMORE COMMUNITY PRIMARY SCHOOL,101.78,DISPOSABLES-PROVISIONS,WHOLESALE CLUBS
01 Oct 2014,WWW.GIROFOOD.COM,NEIGHBOURHOOD SERVICES,CA CALDMORE COMMUNITY PRIMARY SCHOOL,-101.78,DISPOSABLES-PROVISIONS,WHOLESALE CLUBS
02 Oct 2014,WM MORRISONS,CHILDRENS SERVICES,57 LICHFIELD ROAD,2.51,GENERAL PROVISIONS-PROVISIONS,GROCERY STORES AND SUPERMARKETS
02 Oct 2014,WM MORRISONS,CHILDRENS SERVICES,57 LICHFIELD ROAD,12.04,GENERAL PROVISIONS-PROVISIONS,GROCERY STORES AND SUPERMARKETS
02 Oct 2014,WM MORRISON 063,CHILDRENS SERVICES,ADMINISTRATIVE SUPPLIES,33.60,GENERAL MATERIALS,GROCERY STORES AND SUPERMARKETS
02 Oct 2014,TESCO STORES 6161,CHILDRENS SERVICES,PARENTING TEAM,1.78,FOOD AND BEVERAGES-PROVISIONS,GROCERY STORES AND SUPERMARKETS
02 Oct 2014,TESCO STORES 6161,CHILDRENS SERVICES,PARENTING TEAM,1.29,FOOD AND BEVERAGES-PROVISIONS,GROCERY STORES AND SUPERMARKETS
02 Oct 2014,OFFICE DEPOT,RESOURCES,PRINT STORES,39.41,STATIONERY & GENERAL SUPPLIES-OFFICE EXP,"STATIONERY, OFFICE SUPPLIES AND WRITING PAPER"
02 Oct 2014,ASDA,CHILDRENS SERVICES,SPINDLETREE,14.00,GENERAL PROVISIONS-PROVISIONS,GROCERY STORES AND SUPERMARKETS
02 Oct 2014,ASDA,CHILDRENS SERVICES,SPINDLETREE,20.85,GENERAL PROVISIONS-PROVISIONS,GROCERY STORES AND SUPERMARKETS
02 Oct 2014,W M MORRISON PLC,CHILDRENS SERVICES,"43A HILTON ROAD, WILLENHALL",37.10,GENERAL PROVISIONS-PROVISIONS,GROCERY STORES AND SUPERMARKETS
02 Oct 2014,W M MORRISON PLC,CHILDRENS SERVICES,"43A HILTON ROAD, WILLENHALL",54.16,GENERAL PROVISIONS-PROVISIONS,GROCERY STORES AND SUPERMARKETS
02 Oct 2014,W M MORRISON PLC,CHILDRENS SERVICES,"43A HILTON ROAD, WILLENHALL",58.47,GENERAL PROVISIONS-PROVISIONS,GROCERY STORES AND SUPERMARKETS
02 Oct 2014,W M MORRISON PLC,CHILDRENS SERVICES,"43A HILTON ROAD, WILLENHALL",16.33,GENERAL PROVISIONS-PROVISIONS,GROCERY STORES AND SUPERMARKETS
02 Oct 2014,W M MORRISON PLC,CHILDRENS SERVICES,"43A HILTON ROAD, WILLENHALL",7.08,GENERAL PROVISIONS-PROVISIONS,GROCERY STORES AND SUPERMARKETS
02 Oct 2014,W M MORRISON PLC,CHILDRENS SERVICES,"43A HILTON ROAD, WILLENHALL",7.36,GENERAL PROVISIONS-PROVISIONS,GROCERY STORES AND SUPERMARKETS
02 Oct 2014,TRAINLINE.COM,NEIGHBOURHOOD SERVICES,EH DIV GENERAL COSTS,27.79,OFFICER/STAFF-PUBLIC TRANSPORT,PASSENGER RAILWAYS
02 Oct 2014,B & Q,RESOURCES,ACCOMMODATION SERVICES MANAGEMENT,6.98,GENERAL MATERIALS,LUMBER & BUILDING MATERIALS STORES
02 Oct 2014,CHICKEN JOES LTD,NEIGHBOURHOOD SERVICES,CA BEACON PRIMARY SCHOOL,129.15,FROZEN FOODS-PROVISIONS,CATERERS
02 Oct 2014,ARTHUR BRETT CATER,NEIGHBOURHOOD SERVICES,CA BUSILL JONES PRIMARY SCHOOL,149.29,FRUIT & VEGETABLES OTHER-PROVISIONS,MISCELLANEOUS FOOD STORES & CONVENIENCE STORES
02 Oct 2014,CONNEVANS LTD,CHILDRENS SERVICES,SEN,161.52,MISCELLANEOUS SUPPLIES,MISCELLANEOUS AND SPECIALTY RETAIL STORES
02 Oct 2014,AMAZON *MKTPLCE EU-UK,REGENERATION,CENTRALISED STATIONERY,5.87,STATIONERY & GENERAL SUPPLIES-OFFICE EXP,BOOK STORES
02 Oct 2014,ASDA,RESOURCES,LINK SERVICE,80.01,FOOD AND BEVERAGES-PROVISIONS,GROCERY STORES AND SUPERMARKETS
02 Oct 2014,ASDA,RESOURCES,LINK SERVICE,8.71,FOOD AND BEVERAGES-PROVISIONS,GROCERY STORES AND SUPERMARKETS
02 Oct 2014,WM MORRISONS,CHILDRENS SERVICES,57 LICHFIELD ROAD,6.85,EQUIP NEW-CLEANING,GROCERY STORES AND SUPERMARKETS
02 Oct 2014,REGISTRARS OFFICE,CHILDRENS SERVICES,LOOKED AFTER CHILDRENS SOCIAL WORK TEAM,31.00,SUPPORT UNDER SECTION 23 OF THE CHILDRENS ACT,OTHER SCHOOLS AND EDUCATIONAL SERVICES
02 Oct 2014,TRAINLINE.COM,NEIGHBOURHOOD SERVICES,AP FINANCE & RESOURCES STAFF DEVELOPMENT,45.39,OFFICER/STAFF-PUBLIC TRANSPORT,PASSENGER RAILWAYS
02 Oct 2014,NOBISCO LTD,REGENERATION,PELSALL EDUCATION DEVELOPMENT CENTRE,49.56,STATIONERY & GENERAL SUPPLIES-OFFICE EXP,"CLEANING AND MAINTENANCE, JANITORIAL SERVICES"
02 Oct 2014,TESCO STORES 6161,RESOURCES,WALSALL CRISIS SUPPORT SCHEME,4.81,CRISIS SUPPORT PAYMENTS,GROCERY STORES AND SUPERMARKETS
02 Oct 2014,ROWLEY STREET NEWS AND OF,RESOURCES,LINK SERVICE,10.50,FOOD AND BEVERAGES-PROVISIONS,GROCERY STORES AND SUPERMARKETS
02 Oct 2014,AMAZON EU,CHILDRENS SERVICES,CONSTRUCTION,22.98,GENERAL MATERIALS,OTHER DIRECT MARKETING-OTHER DIRECT MARKETERS
02 Oct 2014,WILKO RETAIL LIMIT,CHILDRENS SERVICES,SPINDLETREE,21.43,RESIDENTS PERSONAL EXPENSES-ALLOWANCES TO S/S CLIENTS,HOUSEHOLD APPLIANCE STORES
02 Oct 2014,CRAZY HOUSE (BROWNHILL,RESOURCES,WALSALL CRISIS SUPPORT SCHEME,55.00,CRISIS SUPPORT PAYMENTS,"EQUIPMENT, FURNITURE, AND HOME FURNISHINGS STORES "
02 Oct 2014,ALLPAY.NET VISA AND MAST,RESOURCES,WALSALL CRISIS SUPPORT SCHEME,94.92,CRISIS SUPPORT PAYMENTS,REAL ESTATE MANAGERS - RENTALS
02 Oct 2014,PAYPAL,REGENERATION,BLOXWICH DISTRICT CENTRE,37.90,MISCELLANEOUS SUPPLIES,ELECTRONIC SALES
02 Oct 2014,D.E.I. CONV STORE,RESOURCES,ACCOMMODATION SERVICES MANAGEMENT,40.70,ELECTRICITY-ENERGY COSTS,GROCERY STORES AND SUPERMARKETS
02 Oct 2014,TESCO STORES 6161,RESOURCES,WALSALL CRISIS SUPPORT SCHEME,6.30,CRISIS SUPPORT PAYMENTS,GROCERY STORES AND SUPERMARKETS
02 Oct 2014,NOBISCO LTD,NEIGHBOURHOOD SERVICES,CA FIBBERSLEY PARK PRIMARY SCHOOL,9.72,DISPOSABLES-PROVISIONS,"CLEANING AND MAINTENANCE, JANITORIAL SERVICES"
02 Oct 2014,COSTA COFFEE,NEIGHBOURHOOD SERVICES,NEW ART GALLERY - ADMIN,5.12,MISC DAIRY PRODUCTS-PROVISIONS,"EATING PLACES, RESTAURANTS"
02 Oct 2014,W M MORRISON PLC,CHILDRENS SERVICES,"43A HILTON ROAD, WILLENHALL",8.98,EQUIP NEW-CLEANING,GROCERY STORES AND SUPERMARKETS
02 Oct 2014,LONDON MIDLAND TIC,CHILDRENS SERVICES,TRANSITION AND LEAVING CARE,222.50,OFFICER/STAFF-PUBLIC TRANSPORT,PASSENGER RAILWAYS
02 Oct 2014,CURRYS,RESOURCES,ACCOMMODATION SERVICES MANAGEMENT,89.99,FURNITURE & EQUIPMENT,ELECTRONIC SALES
02 Oct 2014,AMAZON *MKTPLCE EU-UK,SOCIAL CARE & INCLUSION,INTEGRATED BUSINESS PROCESSES & SERVICES,77.98,MISCELLANEOUS SUPPLIES,MISCELLANEOUS AND SPECIALTY RETAIL STORES
02 Oct 2014,WM MORRISONS,SOCIAL CARE & INCLUSION,BROADWAY NORTH RECOVERY COLLEGE,11.85,MISC DAIRY PRODUCTS-PROVISIONS,GROCERY STORES AND SUPERMARKETS
02 Oct 2014,THE CLIFTON HOTEL,NEIGHBOURHOOD SERVICES,NAG - TEMPORARY EXHIBITIONS,120.00,HOTEL ACCOMMODATION-EMPLOYEES,"HOTELS, MOTELS, RESORTS"
02 Oct 2014,THE RANGE WILLENHALL,CHILDRENS SERVICES,CLUSTER 5 DARLASTON,83.43,FOOD AND BEVERAGES-PROVISIONS,MISCELLANEOUS GENERAL MERCHANDISE
02 Oct 2014,ARTHUR BRETT CATER,NEIGHBOURHOOD SERVICES,CA LITTLE BLOXWICH CE PRIMARY SCHOOL,20.10,FRUIT & VEGETABLES OTHER-PROVISIONS,MISCELLANEOUS FOOD STORES & CONVENIENCE STORES
02 Oct 2014,ARTHUR BRETT CATER,NEIGHBOURHOOD SERVICES,CA BEACON PRIMARY SCHOOL,128.95,FRUIT & VEGETABLES OTHER-PROVISIONS,MISCELLANEOUS FOOD STORES & CONVENIENCE STORES
02 Oct 2014,VIKING,REGENERATION,TOWN CENTRE MANAGEMENT,131.98,MISCELLANEOUS SUPPLIES,"STATIONERY, OFFICE SUPPLIES AND WRITING PAPER"
02 Oct 2014,ASDA SUPERSTORE,CHILDRENS SERVICES,"CLUSTER 3 BLOXWICH,BLAKENALL,HATHERTON,E STAMMERS",3.00,CLEANING MATERIALS,GROCERY STORES AND SUPERMARKETS
02 Oct 2014,ARTHUR BRETT CATER,NEIGHBOURHOOD SERVICES,CA ST JOHNS C.E. PRIMARY SCHOOL,47.14,FRUIT & VEGETABLES OTHER-PROVISIONS,MISCELLANEOUS FOOD STORES & CONVENIENCE STORES
02 Oct 2014,OFFICE DEPOT,CHILDRENS SERVICES,"CLUSTER 1 BROWNHILLS,GREENFIELDS,PELSALL",36.04,STATIONERY & GENERAL SUPPLIES-OFFICE EXP,"STATIONERY, OFFICE SUPPLIES AND WRITING PAPER"
02 Oct 2014,GREETINGS HOUSE LTD,NEIGHBOURHOOD SERVICES,LIBRARY DEVELOPMENT 2,26.40,GENERAL MATERIALS,MISCELLANEOUS AND SPECIALTY RETAIL STORES
02 Oct 2014,OFFICE DEPOT,CHILDRENS SERVICES,FAMILY PLACEMENTS,50.70,STATIONERY & GENERAL SUPPLIES-OFFICE EXP,"STATIONERY, OFFICE SUPPLIES AND WRITING PAPER"
02 Oct 2014,IKEA SACAT,RESOURCES,ACCOMMODATION SERVICES MANAGEMENT,290.00,FURNITURE & EQUIPMENT,MISCELLANEOUS HOUSE FURNISHING SPECIALTY SHOPS
02 Oct 2014,WH SMITH,NEIGHBOURHOOD SERVICES,NAG - TEMPORARY EXHIBITIONS,11.98,GENERAL MATERIALS,NEWS DEALERS AND NEWSSTANDS
02 Oct 2014,ASDA STORES,RESOURCES,ACCOMMODATION SERVICES MANAGEMENT,116.50,FURNITURE & EQUIPMENT,GROCERY STORES AND SUPERMARKETS
02 Oct 2014,WWW.FISHINGHUT.NET,CHILDRENS SERVICES,"43A HILTON ROAD, WILLENHALL",10.04,RESIDENTS PERSONAL EXPENSES-ALLOWANCES TO S/S CLIENTS,SPORTING GOODS STORES
02 Oct 2014,CRAZY HOUSE (BROWNHILL,RESOURCES,WALSALL CRISIS SUPPORT SCHEME,130.00,CRISIS SUPPORT PAYMENTS,"EQUIPMENT, FURNITURE, AND HOME FURNISHINGS STORES "
02 Oct 2014,CRAZY HOUSE (BROWNHILL,RESOURCES,WALSALL CRISIS SUPPORT SCHEME,105.00,CRISIS SUPPORT PAYMENTS,"EQUIPMENT, FURNITURE, AND HOME FURNISHINGS STORES "
02 Oct 2014,BORSHCH LIMITED,RESOURCES,WALSALL CRISIS SUPPORT SCHEME,195.00,CRISIS SUPPORT PAYMENTS,ELECTRONIC SALES
02 Oct 2014,BORSHCH LIMITED,RESOURCES,WALSALL CRISIS SUPPORT SCHEME,195.00,CRISIS SUPPORT PAYMENTS,ELECTRONIC SALES
02 Oct 2014,BORSHCH LIMITED,RESOURCES,WALSALL CRISIS SUPPORT SCHEME,580.00,CRISIS SUPPORT PAYMENTS,ELECTRONIC SALES
02 Oct 2014,BORSHCH LIMITED,RESOURCES,WALSALL CRISIS SUPPORT SCHEME,335.00,CRISIS SUPPORT PAYMENTS,ELECTRONIC SALES
02 Oct 2014,BORSHCH LIMITED,RESOURCES,WALSALL CRISIS SUPPORT SCHEME,195.00,CRISIS SUPPORT PAYMENTS,ELECTRONIC SALES
02 Oct 2014,BORSHCH LIMITED,RESOURCES,WALSALL CRISIS SUPPORT SCHEME,140.00,CRISIS SUPPORT PAYMENTS,ELECTRONIC SALES
02 Oct 2014,CIEH,NEIGHBOURHOOD SERVICES,EH DIV GENERAL COSTS,185.00,COURSE/CONFERENCE EXPENSES,"ORGANIZATIONS, MEMBERSHIP"
02 Oct 2014,BORSHCH LIMITED,RESOURCES,WALSALL CRISIS SUPPORT SCHEME,520.00,CRISIS SUPPORT PAYMENTS,ELECTRONIC SALES
02 Oct 2014,BORSHCH LIMITED,RESOURCES,WALSALL CRISIS SUPPORT SCHEME,195.00,CRISIS SUPPORT PAYMENTS,ELECTRONIC SALES
02 Oct 2014,BORSHCH LIMITED,RESOURCES,WALSALL CRISIS SUPPORT SCHEME,325.00,CRISIS SUPPORT PAYMENTS,ELECTRONIC SALES
03 Oct 2014,GRO HM PASSPORT OFFICE,CHILDRENS SERVICES,SUPPORT UNDER SECT 23 OF THE CHILDRENS ACT,9.25,SUPPORT UNDER SECTION 23 OF THE CHILDRENS ACT,GOVERNMENT SERVICES
03 Oct 2014,BORSHCH LIMITED,RESOURCES,WALSALL CRISIS SUPPORT SCHEME,195.00,CRISIS SUPPORT PAYMENTS,ELECTRONIC SALES
03 Oct 2014,JOHAL DAIRIES LTD,SOCIAL CARE & INCLUSION,REABLEMENT TEAM - HOLLY BANK,94.66,MISC DAIRY PRODUCTS-PROVISIONS,OTHER NONDURABLE GOODS
03 Oct 2014,BORSHCH LIMITED,RESOURCES,WALSALL CRISIS SUPPORT SCHEME,195.00,CRISIS SUPPORT PAYMENTS,ELECTRONIC SALES
03 Oct 2014,OFFICE DEPOT,NEIGHBOURHOOD SERVICES,CA CENTRAL SUPPORT SERVICES,180.58,STATIONERY & GENERAL SUPPLIES-OFFICE EXP,"STATIONERY, OFFICE SUPPLIES AND WRITING PAPER"
03 Oct 2014,JOHAL DAIRIES LTD,NEIGHBOURHOOD SERVICES,CA LITTLE BLOXWICH CE PRIMARY SCHOOL,23.00,MISC DAIRY PRODUCTS-PROVISIONS,OTHER NONDURABLE GOODS
03 Oct 2014,ASDA STORES 7134,NEIGHBOURHOOD SERVICES,VP SCL VOCATIONAL & SUPPORTED LEARNING,47.90,CATERING,GROCERY STORES AND SUPERMARKETS
03 Oct 2014,ASDA STORES 7134,NEIGHBOURHOOD SERVICES,VP SCL VOCATIONAL & SUPPORTED LEARNING,248.35,CATERING,GROCERY STORES AND SUPERMARKETS
03 Oct 2014,JOHAL DAIRIES LTD,NEIGHBOURHOOD SERVICES,CA GREEN ROCK PRIMARY,13.80,MISC DAIRY PRODUCTS-PROVISIONS,OTHER NONDURABLE GOODS
03 Oct 2014,JOHAL DAIRIES LTD,NEIGHBOURHOOD SERVICES,CA LEAMORE PRIMARY SCHOOL,2.59,MISC DAIRY PRODUCTS-PROVISIONS,OTHER NONDURABLE GOODS
03 Oct 2014,JOHAL DAIRIES LTD,NEIGHBOURHOOD SERVICES,CA MEADOW VIEW JMI PRIMARY SCHOOL,6.31,MISC DAIRY PRODUCTS-PROVISIONS,OTHER NONDURABLE GOODS
03 Oct 2014,J & S GENERAL STOR,RESOURCES,WALSALL CRISIS SUPPORT SCHEME,20.50,CRISIS SUPPORT PAYMENTS,MISCELLANEOUS FOOD STORES & CONVENIENCE STORES
03 Oct 2014,ASDA STORES,CHILDRENS SERVICES,REDRUTH ROAD,1.34,CLEANING-MATERIALS (INC LIGHT BULBS),GROCERY STORES AND SUPERMARKETS
03 Oct 2014,ARTHUR BRETT CATER,NEIGHBOURHOOD SERVICES,CA CALDMORE COMMUNITY PRIMARY SCHOOL,46.19,FRUIT & VEGETABLES OTHER-PROVISIONS,MISCELLANEOUS FOOD STORES & CONVENIENCE STORES
03 Oct 2014,JOHAL DAIRIES LTD,NEIGHBOURHOOD SERVICES,CA ELMWOOD SPECIAL SCHOOL,2.52,MISC DAIRY PRODUCTS-PROVISIONS,OTHER NONDURABLE GOODS
03 Oct 2014,JOHAL DAIRIES LTD,NEIGHBOURHOOD SERVICES,CA ST BERNADETTES CATHOLIC PRIMARY SCHOOL,22.74,MISC DAIRY PRODUCTS-PROVISIONS,OTHER NONDURABLE GOODS
03 Oct 2014,THE CARPET MAN,RESOURCES,WALSALL CRISIS SUPPORT SCHEME,324.00,CRISIS SUPPORT PAYMENTS,FLOOR COVERING STORES
03 Oct 2014,ASDA STORES,CHILDRENS SERVICES,REDRUTH ROAD,1.50,GENERAL PROVISIONS-PROVISIONS,GROCERY STORES AND SUPERMARKETS
03 Oct 2014,ASDA STORES,CHILDRENS SERVICES,REDRUTH ROAD,16.88,GENERAL PROVISIONS-PROVISIONS,GROCERY STORES AND SUPERMARKETS
03 Oct 2014,TRAINLINE.COM,NEIGHBOURHOOD SERVICES,LEISURE - MANAGEMENT AND ADMIN,28.31,OFFICER/STAFF-PUBLIC TRANSPORT,PASSENGER RAILWAYS
03 Oct 2014,JOHAL DAIRIES LTD,NEIGHBOURHOOD SERVICES,CA ST GILES C.E. PRIMARY SCHOOL,52.82,MISC DAIRY PRODUCTS-PROVISIONS,OTHER NONDURABLE GOODS
03 Oct 2014,JOHAL DAIRIES LTD,NEIGHBOURHOOD SERVICES,CA ST JOHNS C.E. PRIMARY SCHOOL,4.25,MISC DAIRY PRODUCTS-PROVISIONS,OTHER NONDURABLE GOODS
03 Oct 2014,COSTA COFFEE,NEIGHBOURHOOD SERVICES,NEW ART GALLERY - ADMIN,9.80,MISC DAIRY PRODUCTS-PROVISIONS,"EATING PLACES, RESTAURANTS"
03 Oct 2014,NOBISCO LTD,NEIGHBOURHOOD SERVICES,CA BEACON PRIMARY SCHOOL,83.51,DISPOSABLES-PROVISIONS,"CLEANING AND MAINTENANCE, JANITORIAL SERVICES"
03 Oct 2014,JOHAL DAIRIES LTD,NEIGHBOURHOOD SERVICES,CA BROWNHILLS WEST PRIMARY SCHOOL,16.80,MISC DAIRY PRODUCTS-PROVISIONS,OTHER NONDURABLE GOODS
03 Oct 2014,JOHAL DAIRIES LTD,NEIGHBOURHOOD SERVICES,CA CALDMORE COMMUNITY PRIMARY SCHOOL,23.75,MISC DAIRY PRODUCTS-PROVISIONS,OTHER NONDURABLE GOODS
03 Oct 2014,JOHAL DAIRIES LTD,CHILDRENS SERVICES,STROUD FAMILY CENTRE,5.97,GENERAL PROVISIONS-PROVISIONS,OTHER NONDURABLE GOODS
03 Oct 2014,JOHAL DAIRIES LTD,NEIGHBOURHOOD SERVICES,CA ST FRANCIS CATHOLIC PRIMARY SCHOOL,8.92,MISC DAIRY PRODUCTS-PROVISIONS,OTHER NONDURABLE GOODS
03 Oct 2014,JOHAL DAIRIES LTD,NEIGHBOURHOOD SERVICES,CA ST ANNES CATHOLIC PRIMARY SCHOOL,17.45,MISC DAIRY PRODUCTS-PROVISIONS,OTHER NONDURABLE GOODS
03 Oct 2014,123-REG.CO.UK,RESOURCES,COMMUNICATIONS,60.00,COMPUTER EQUIPMENT AND SUPPLIES,COMPUTER NETWORK/INFORMATION SERVICES
03 Oct 2014,JOHAL DAIRIES LTD,NEIGHBOURHOOD SERVICES,CA WALSALL WOOD PRIMARY SCHOOL,4.20,MISC DAIRY PRODUCTS-PROVISIONS,OTHER NONDURABLE GOODS
03 Oct 2014,TRAINLINE.COM,REGENERATION,REGENERATION MANAGEMENT,120.36,OFFICER/STAFF-PUBLIC TRANSPORT,PASSENGER RAILWAYS
03 Oct 2014,AMAZON *MKTPLCE EU-UK,CHILDRENS SERVICES,CONSTRUCTION,9.75,GENERAL MATERIALS,BOOK STORES
03 Oct 2014,AMAZON *MKTPLCE EU-UK,CHILDRENS SERVICES,CONSTRUCTION,9.75,GENERAL MATERIALS,BOOK STORES
03 Oct 2014,OFFICE DEPOT,RESOURCES,PRINT STORES,-429.60,STATIONERY & GENERAL SUPPLIES-OFFICE EXP,"STATIONERY, OFFICE SUPPLIES AND WRITING PAPER"
03 Oct 2014,OFFICE DEPOT,SOCIAL CARE & INCLUSION,PARIS & PERFORMANCE,75.18,STATIONERY & GENERAL SUPPLIES-OFFICE EXP,"STATIONERY, OFFICE SUPPLIES AND WRITING PAPER"
03 Oct 2014,PARENTPAY.COM&PAY24-7.CO,CHILDRENS SERVICES,57 LICHFIELD ROAD,14.79,GENERAL PROVISIONS-PROVISIONS,"COLLEGES, UNIVERSITIES, PROFESSIONAL SCHOOLS"
03 Oct 2014,JOHAL DAIRIES LTD,NEIGHBOURHOOD SERVICES,CA ABBEY PRIMARY SCHOOL,42.50,MISC DAIRY PRODUCTS-PROVISIONS,OTHER NONDURABLE GOODS
03 Oct 2014,TRAINLINE.COM,NEIGHBOURHOOD SERVICES,NEIGHBOURHOOD SERVICES MANAGEMENT,19.13,OFFICER/STAFF-PUBLIC TRANSPORT,PASSENGER RAILWAYS
03 Oct 2014,TRAINLINE.COM,REGENERATION,REGENERATION MANAGEMENT,16.57,OFFICER/STAFF-PUBLIC TRANSPORT,PASSENGER RAILWAYS
03 Oct 2014,JOHAL DAIRIES LTD,NEIGHBOURHOOD SERVICES,CA BLAKENALL HEATH JUNIOR SCHOOL,13.95,MISC DAIRY PRODUCTS-PROVISIONS,OTHER NONDURABLE GOODS
03 Oct 2014,JOHAL DAIRIES LTD,NEIGHBOURHOOD SERVICES,CA RUSHALL JMI SCHOOL,44.80,MISC DAIRY PRODUCTS-PROVISIONS,OTHER NONDURABLE GOODS
03 Oct 2014,WWW.NRS.UK.CO.UK,CHILDRENS SERVICES,BLUEBELLS,31.24,NEW-FURNITURE & EQUIPMENT,"HEALTH PRACTITIONERS, MEDICAL SERVICES"
03 Oct 2014,JOHAL DAIRIES LTD,NEIGHBOURHOOD SERVICES,CA FIBBERSLEY PARK PRIMARY SCHOOL,32.00,MISC DAIRY PRODUCTS-PROVISIONS,OTHER NONDURABLE GOODS
03 Oct 2014,OFFICE DEPOT,SOCIAL CARE & INCLUSION,RESPONSE SERVICES,128.72,STATIONERY & GENERAL SUPPLIES-OFFICE EXP,"STATIONERY, OFFICE SUPPLIES AND WRITING PAPER"
03 Oct 2014,JOHAL DAIRIES LTD,NEIGHBOURHOOD SERVICES,CA LEIGHSWOOD PRIMARY SCHOOL,16.80,MISC DAIRY PRODUCTS-PROVISIONS,OTHER NONDURABLE GOODS
03 Oct 2014,JOHAL DAIRIES LTD,NEIGHBOURHOOD SERVICES,CA BARCROFT D/C,16.02,MISC DAIRY PRODUCTS-PROVISIONS,OTHER NONDURABLE GOODS
03 Oct 2014,JOHAL DAIRIES LTD,NEIGHBOURHOOD SERVICES,CA OLD HALL SPECIAL SCHOOL,12.66,MISC DAIRY PRODUCTS-PROVISIONS,OTHER NONDURABLE GOODS
03 Oct 2014,JOHAL DAIRIES LTD,NEIGHBOURHOOD SERVICES,CA WATLING STREET PRIMARY SCHOOL,15.68,MISC DAIRY PRODUCTS-PROVISIONS,OTHER NONDURABLE GOODS
03 Oct 2014,TOURIST INFO CTR SC,NEIGHBOURHOOD SERVICES,VP SCL ESSENTIAL SKILLS S4L IT ESOL,80.00,HIRE OF VEHICLES,GOVERNMENT SERVICES
03 Oct 2014,BORSHCH LIMITED,RESOURCES,WALSALL CRISIS SUPPORT SCHEME,195.00,CRISIS SUPPORT PAYMENTS,ELECTRONIC SALES
03 Oct 2014,JOHAL DAIRIES LTD,NEIGHBOURHOOD SERVICES,TOWN HALL RESTAURANT BISTRO,36.20,MISC DAIRY PRODUCTS-PROVISIONS,OTHER NONDURABLE GOODS
03 Oct 2014,JOHAL DAIRIES LTD,NEIGHBOURHOOD SERVICES,CA ST MICHAELS C.E. PRIMARY SCHOOL,30.65,MISC DAIRY PRODUCTS-PROVISIONS,OTHER NONDURABLE GOODS
03 Oct 2014,NOBISCO LTD,NEIGHBOURHOOD SERVICES,CA CALDMORE COMMUNITY PRIMARY SCHOOL,120.32,DISPOSABLES-PROVISIONS,"CLEANING AND MAINTENANCE, JANITORIAL SERVICES"
03 Oct 2014,WM MORRISONS,CHILDRENS SERVICES,57 LICHFIELD ROAD,9.59,GENERAL PROVISIONS-PROVISIONS,GROCERY STORES AND SUPERMARKETS
03 Oct 2014,WM MORRISONS,CHILDRENS SERVICES,57 LICHFIELD ROAD,7.31,GENERAL PROVISIONS-PROVISIONS,GROCERY STORES AND SUPERMARKETS
03 Oct 2014,OFFICE DEPOT,REGENERATION,CENTRALISED STATIONERY,208.44,STATIONERY & GENERAL SUPPLIES-OFFICE EXP,"STATIONERY, OFFICE SUPPLIES AND WRITING PAPER"
03 Oct 2014,CURRYS ONLINE,CHILDRENS SERVICES,SPINDLETREE,258.00,FURNITURE & EQUIPMENT,ELECTRONIC SALES
03 Oct 2014,OFFICE DEPOT,SOCIAL CARE & INCLUSION,ALLENS CENTRE,77.21,COMPUTER STATIONERY-OFFICE EXP,"STATIONERY, OFFICE SUPPLIES AND WRITING PAPER"
03 Oct 2014,JOHAL DAIRIES LTD,NEIGHBOURHOOD SERVICES,CA CASTLEFORT JMI SCHOOL,20.05,MISC DAIRY PRODUCTS-PROVISIONS,OTHER NONDURABLE GOODS
03 Oct 2014,JOHAL DAIRIES LTD,NEIGHBOURHOOD SERVICES,CA POOL HAYES PRIMARY SCHOOL,7.24,MISC DAIRY PRODUCTS-PROVISIONS,OTHER NONDURABLE GOODS
03 Oct 2014,JOHAL DAIRIES LTD,NEIGHBOURHOOD SERVICES,CA CROFT COMMUNITY PRIMARY SCHOOL,22.76,MISC DAIRY PRODUCTS-PROVISIONS,OTHER NONDURABLE GOODS
03 Oct 2014,UKOFFICEDIRECT.CO.,CHILDRENS SERVICES,NEW LEAF PUPIL REFERRAL UNIT,121.62,PERSONAL REQUISITES-MATERIALS,"OFFICE, SCHOOL SUPPLY, AND STATIONERY STORES"
03 Oct 2014,JOHAL DAIRIES LTD,NEIGHBOURHOOD SERVICES,CA BEACON PRIMARY SCHOOL,95.58,MISC DAIRY PRODUCTS-PROVISIONS,OTHER NONDURABLE GOODS
03 Oct 2014,BT REPAYMENT WORKS,REGENERATION,DESIGN & PROJECT MANAGEMENT,480.00,PROFESSIONAL SERVICES-PRIV CONTRACTOR & OTHER AGENCIES,TELECOMMUNICATION SERVICES
03 Oct 2014,JOHAL DAIRIES LTD,NEIGHBOURHOOD SERVICES,CA BIRCHILLS CE PRIMARY COMMUNITY SCHOOL,33.48,MISC DAIRY PRODUCTS-PROVISIONS,OTHER NONDURABLE GOODS
03 Oct 2014,JOHAL DAIRIES LTD,NEIGHBOURHOOD SERVICES,CA ELMORE GREEN PRIMARY SCHOOL,11.06,MISC DAIRY PRODUCTS-PROVISIONS,OTHER NONDURABLE GOODS
03 Oct 2014,JOHAL DAIRIES LTD,NEIGHBOURHOOD SERVICES,CA BLUE COAT C OF E PERFORMING ARTS COLLEGE,18.50,MISC DAIRY PRODUCTS-PROVISIONS,OTHER NONDURABLE GOODS
03 Oct 2014,ASDA STORES,CHILDRENS SERVICES,REDRUTH ROAD,26.00,FURNITURE & EQUIPMENT,GROCERY STORES AND SUPERMARKETS
03 Oct 2014,JOHAL DAIRIES LTD,NEIGHBOURHOOD SERVICES,CA TOWN HALL RESTAURANT - CATERING,29.66,MISC DAIRY PRODUCTS-PROVISIONS,OTHER NONDURABLE GOODS
03 Oct 2014,SHEDSTORE INTERNET,CHILDRENS SERVICES,FOUNDATION PHASE RESOURCES,219.95,NEW-FURNITURE & EQUIPMENT,LUMBER & BUILDING MATERIALS STORES
03 Oct 2014,THE CARPET MAN,RESOURCES,WALSALL CRISIS SUPPORT SCHEME,474.00,CRISIS SUPPORT PAYMENTS,FLOOR COVERING STORES
03 Oct 2014,JOHAL DAIRIES LTD,NEIGHBOURHOOD SERVICES,CA JOSEPH LECKIE COMMUNITY TECHNOLOGY COLLEGE,28.78,MISC DAIRY PRODUCTS-PROVISIONS,OTHER NONDURABLE GOODS
03 Oct 2014,THE CARPET MAN,RESOURCES,WALSALL CRISIS SUPPORT SCHEME,312.00,CRISIS SUPPORT PAYMENTS,FLOOR COVERING STORES
03 Oct 2014,JOHAL DAIRIES LTD,NEIGHBOURHOOD SERVICES,CA JANE LANE SPECIAL SCHOOL,9.50,MISC DAIRY PRODUCTS-PROVISIONS,OTHER NONDURABLE GOODS
03 Oct 2014,MARSTON BOOK LTD,CHILDRENS SERVICES,SCHOOL IMPROVEMENT,48.60,STATIONERY & GENERAL SUPPLIES-OFFICE EXP,OTHER DIRECT MARKETING-OTHER DIRECT MARKETERS
03 Oct 2014,ARTHUR BRETT CATER,NEIGHBOURHOOD SERVICES,CA FIBBERSLEY PARK PRIMARY SCHOOL,47.67,FRUIT & VEGETABLES OTHER-PROVISIONS,MISCELLANEOUS FOOD STORES & CONVENIENCE STORES
03 Oct 2014,THE CARPET MAN,RESOURCES,WALSALL CRISIS SUPPORT SCHEME,216.00,CRISIS SUPPORT PAYMENTS,FLOOR COVERING STORES
03 Oct 2014,JOHAL DAIRIES LTD,NEIGHBOURHOOD SERVICES,CA BUSILL JONES PRIMARY SCHOOL,59.16,MISC DAIRY PRODUCTS-PROVISIONS,OTHER NONDURABLE GOODS
03 Oct 2014,JOHAL DAIRIES LTD,NEIGHBOURHOOD SERVICES,CA LINDENS PRIMARY SCHOOL,27.06,MISC DAIRY PRODUCTS-PROVISIONS,OTHER NONDURABLE GOODS
03 Oct 2014,AMAZON EU,CHILDRENS SERVICES,SOCIOLOGY,27.45,LIBRARY BOOKS,OTHER DIRECT MARKETING-OTHER DIRECT MARKETERS
03 Oct 2014,JOHAL DAIRIES LTD,NEIGHBOURHOOD SERVICES,CA COOPER JORDAN CE PRIMARY SCHOOL,16.80,MISC DAIRY PRODUCTS-PROVISIONS,OTHER NONDURABLE GOODS
03 Oct 2014,ASDA STORES,CHILDRENS SERVICES,SPINDLETREE,29.74,GENERAL PROVISIONS-PROVISIONS,GROCERY STORES AND SUPERMARKETS
03 Oct 2014,ASDA STORES,CHILDRENS SERVICES,SPINDLETREE,178.93,GENERAL PROVISIONS-PROVISIONS,GROCERY STORES AND SUPERMARKETS
03 Oct 2014,LONDON MIDLAND TIC,CHILDRENS SERVICES,LOOKED AFTER CHILDRENS SOCIAL WORK TEAM,46.80,OFFICER/STAFF-PUBLIC TRANSPORT,PASSENGER RAILWAYS
03 Oct 2014,JOHAL DAIRIES LTD,NEIGHBOURHOOD SERVICES,CA MOORCROFT WOOD,38.96,MISC DAIRY PRODUCTS-PROVISIONS,OTHER NONDURABLE GOODS
03 Oct 2014,W M MORRISON PLC,CHILDRENS SERVICES,UNDERSTANDING OF THE WORLD,17.53,GENERAL MATERIALS,GROCERY STORES AND SUPERMARKETS
03 Oct 2014,JOHAL DAIRIES LTD,SOCIAL CARE & INCLUSION,FALLINGS HEATH,26.38,FOOD AND BEVERAGES-PROVISIONS,OTHER NONDURABLE GOODS
03 Oct 2014,TRAINLINE.COM,REGENERATION,REGENERATION MANAGEMENT,9.95,OFFICER/STAFF-PUBLIC TRANSPORT,PASSENGER RAILWAYS
03 Oct 2014,JOHAL DAIRIES LTD,NEIGHBOURHOOD SERVICES,CA RADLEYS PRIMARY SCHOOL,42.00,MISC DAIRY PRODUCTS-PROVISIONS,OTHER NONDURABLE GOODS
03 Oct 2014,JOHAL DAIRIES LTD,CHILDRENS SERVICES,57 LICHFIELD ROAD,11.43,GENERAL PROVISIONS-PROVISIONS,OTHER NONDURABLE GOODS
03 Oct 2014,WWW.GIROFOOD.COM,NEIGHBOURHOOD SERVICES,CA TOWN HALL RESTAURANT - CATERING,185.97,DISPOSABLES-PROVISIONS,WHOLESALE CLUBS
03 Oct 2014,WWW.GIROFOOD.COM,NEIGHBOURHOOD SERVICES,CA TOWN HALL RESTAURANT - CATERING,364.59,DISPOSABLES-PROVISIONS,WHOLESALE CLUBS
03 Oct 2014,WWW.GIROFOOD.COM,NEIGHBOURHOOD SERVICES,CA BLUE COAT C OF E PERFORMING ARTS COLLEGE,210.79,DISPOSABLES-PROVISIONS,WHOLESALE CLUBS
03 Oct 2014,WWW.GIROFOOD.COM,NEIGHBOURHOOD SERVICES,CA BLUE COAT C OF E PERFORMING ARTS COLLEGE,210.79,DISPOSABLES-PROVISIONS,WHOLESALE CLUBS
03 Oct 2014,WWW.GIROFOOD.COM,NEIGHBOURHOOD SERVICES,CA BLUE COAT C OF E PERFORMING ARTS COLLEGE,-210.79,DISPOSABLES-PROVISIONS,WHOLESALE CLUBS
03 Oct 2014,WWW.GIROFOOD.COM,NEIGHBOURHOOD SERVICES,CA TOWN HALL RESTAURANT - CATERING,-364.59,DISPOSABLES-PROVISIONS,WHOLESALE CLUBS
03 Oct 2014,WWW.GIROFOOD.COM,NEIGHBOURHOOD SERVICES,TOWN HALL RESTAURANT BISTRO,364.59,DISPOSABLES-PROVISIONS,WHOLESALE CLUBS
03 Oct 2014,WWW.GIROFOOD.COM,NEIGHBOURHOOD SERVICES,CA TOWN HALL RESTAURANT - CATERING,185.97,DISPOSABLES-PROVISIONS,WHOLESALE CLUBS
03 Oct 2014,WWW.GIROFOOD.COM,NEIGHBOURHOOD SERVICES,CA TOWN HALL RESTAURANT - CATERING,-185.97,DISPOSABLES-PROVISIONS,WHOLESALE CLUBS
04 Oct 2014,WM MORRISON FOOD.COM,CHILDRENS SERVICES,BLUEBELLS,9.84,GENERAL PROVISIONS-PROVISIONS,GROCERY STORES AND SUPERMARKETS
04 Oct 2014,WM MORRISON FOOD.COM,CHILDRENS SERVICES,BLUEBELLS,95.76,GENERAL PROVISIONS-PROVISIONS,GROCERY STORES AND SUPERMARKETS
04 Oct 2014,TESCO STORES 6161,CHILDRENS SERVICES,ELMWOOD SECONDARY SPECIAL SCHOOL,12.20,BREAD-GENERAL-PROVISIONS,GROCERY STORES AND SUPERMARKETS
04 Oct 2014,TESCO STORES 6161,CHILDRENS SERVICES,FOOD TECHNOLOGY,20.91,GENERAL MATERIALS,GROCERY STORES AND SUPERMARKETS
04 Oct 2014,OFFICE DEPOT,CHILDRENS SERVICES,CHILDRENS RESIDENTIAL SVCS,69.24,STATIONERY & GENERAL SUPPLIES-OFFICE EXP,"STATIONERY, OFFICE SUPPLIES AND WRITING PAPER"
04 Oct 2014,TESCO STORES 6161,CHILDRENS SERVICES,FOOD TECHNOLOGY,2.25,GENERAL MATERIALS,GROCERY STORES AND SUPERMARKETS
05 Oct 2014,AMAZON EU,NEIGHBOURHOOD SERVICES,ACTIVE ENGLAND,6.79,NEW-FURNITURE & EQUIPMENT,OTHER DIRECT MARKETING-OTHER DIRECT MARKETERS
05 Oct 2014,ASDA STORES 4791,CHILDRENS SERVICES,SPINDLETREE,42.00,RESIDENTS PERSONAL EXPENSES-ALLOWANCES TO S/S CLIENTS,GROCERY STORES AND SUPERMARKETS
06 Oct 2014,WM MORRISON FOOD.COM,CHILDRENS SERVICES,CLUSTER 5 DARLASTON,167.39,FOOD AND BEVERAGES-PROVISIONS,GROCERY STORES AND SUPERMARKETS
06 Oct 2014,WM MORRISON FOOD.COM,CHILDRENS SERVICES,CLUSTER 5 DARLASTON,54.52,FOOD AND BEVERAGES-PROVISIONS,GROCERY STORES AND SUPERMARKETS
06 Oct 2014,WWW.EZRSHELVING.COM,NEIGHBOURHOOD SERVICES,LEISURE & CULTURE SUPPORT BUDGET,474.37,NEW-FURNITURE & EQUIPMENT,MISCELLANEOUS GENERAL MERCHANDISE
06 Oct 2014,WWW.PRIMROSE-LONDON.CO.U,CHILDRENS SERVICES,CHUCKERY PRIMARY SCHOOL,-52.32,LANDSCAPE WORK-OP MTCE,"NURSERIES, LAWN AND GARDEN SUPPLY STORES"
06 Oct 2014,ASDA STORES 7134,NEIGHBOURHOOD SERVICES,VP SCL VOCATIONAL & SUPPORTED LEARNING,64.34,CATERING,GROCERY STORES AND SUPERMARKETS
06 Oct 2014,MNA LTD CARDCHARGE,REGENERATION,DEVELOPMENT MANAGEMENT,95.04,PERIODICALS/MAGAZINES/NEWSPAPERS-SUBSCRIPTIONS,NEWS DEALERS AND NEWSSTANDS
06 Oct 2014,CO-OPERATIVE FOOD,SOCIAL CARE & INCLUSION,RESPONSE SERVICES,12.00,FOOD AND BEVERAGES-PROVISIONS,GROCERY STORES AND SUPERMARKETS
06 Oct 2014,WM MORRISON FOOD.COM,CHILDRENS SERVICES,"CLUSTER 3 BLOXWICH,BLAKENALL,HATHERTON,E STAMMERS",18.24,FOOD AND BEVERAGES-PROVISIONS,GROCERY STORES AND SUPERMARKETS
06 Oct 2014,WM MORRISON FOOD.COM,CHILDRENS SERVICES,"CLUSTER 3 BLOXWICH,BLAKENALL,HATHERTON,E STAMMERS",70.02,FOOD AND BEVERAGES-PROVISIONS,GROCERY STORES AND SUPERMARKETS
06 Oct 2014,W M MORRISON PLC,CHILDRENS SERVICES,"43A HILTON ROAD, WILLENHALL",12.64,GENERAL PROVISIONS-PROVISIONS,GROCERY STORES AND SUPERMARKETS
06 Oct 2014,PAYPAL,NEIGHBOURHOOD SERVICES,LEISURE & CULTURE SUPPORT BUDGET,33.00,LANGUAGES & INTERPRETATION-SERVICES,PROFESSIONAL SERVICES
06 Oct 2014,A F BLAKEMORE & SON LTD,CHILDRENS SERVICES,INFORMATION SERVICES,47.04,FOOD AND BEVERAGES-PROVISIONS,GROCERY STORES AND SUPERMARKETS
06 Oct 2014,A F BLAKEMORE & SON LTD,CHILDRENS SERVICES,INFORMATION SERVICES,8.44,FOOD AND BEVERAGES-PROVISIONS,GROCERY STORES AND SUPERMARKETS
06 Oct 2014,THE BOOK PEOPLE,CHILDRENS SERVICES,PUPIL PREMIUM,81.95,LIBRARY BOOKS,BOOK STORES
06 Oct 2014,ASDA STORES 7134,CHILDRENS SERVICES,"CLUSTER 3 BLOXWICH,BLAKENALL,HATHERTON,E STAMMERS",30.58,FOOD AND BEVERAGES-PROVISIONS,GROCERY STORES AND SUPERMARKETS
06 Oct 2014,ASDA STORES 7134,CHILDRENS SERVICES,"CLUSTER 3 BLOXWICH,BLAKENALL,HATHERTON,E STAMMERS",5.04,FOOD AND BEVERAGES-PROVISIONS,GROCERY STORES AND SUPERMARKETS
06 Oct 2014,AIRSERVER LICENSES,CHILDRENS SERVICES,ICT LEARNING RESOURCES,109.69,GENERAL MATERIALS,COMPUTER SOFTWARE STORES
06 Oct 2014,ASDA STORES 7134,CHILDRENS SERVICES,CLUSTER 4 ALUMWELL & BIRCHILLS,25.55,FOOD AND BEVERAGES-PROVISIONS,GROCERY STORES AND SUPERMARKETS
06 Oct 2014,ASDA STORES 7134,CHILDRENS SERVICES,CLUSTER 4 ALUMWELL & BIRCHILLS,1.00,FOOD AND BEVERAGES-PROVISIONS,GROCERY STORES AND SUPERMARKETS
06 Oct 2014,ASDA STORES 7134,CHILDRENS SERVICES,STANLEYS NURSERY,58.77,FOOD AND BEVERAGES-PROVISIONS,GROCERY STORES AND SUPERMARKETS
06 Oct 2014,ASDA STORES 7134,CHILDRENS SERVICES,STANLEYS NURSERY,3.56,FOOD AND BEVERAGES-PROVISIONS,GROCERY STORES AND SUPERMARKETS
06 Oct 2014,ASDA STORES 7134,CHILDRENS SERVICES,STANLEYS NURSERY,2.00,CLEANING MATERIALS,GROCERY STORES AND SUPERMARKETS
06 Oct 2014,AGENZIE 365,NEIGHBOURHOOD SERVICES,NAG - TEMPORARY EXHIBITIONS,13.76,OFFICER/STAFF-PUBLIC TRANSPORT,RAILROADS
06 Oct 2014,TOURIST INFO CTR SC,NEIGHBOURHOOD SERVICES,VP SCL ESSENTIAL SKILLS S4L IT ESOL,40.00,HIRE OF VEHICLES,GOVERNMENT SERVICES
06 Oct 2014,ASDA STORES 7134,CHILDRENS SERVICES,"CLUSTER 3 BLOXWICH,BLAKENALL,HATHERTON,E STAMMERS",-3.00,FOOD AND BEVERAGES-PROVISIONS,GROCERY STORES AND SUPERMARKETS
06 Oct 2014,LONDON MIDLAND TIC,CHILDRENS SERVICES,PUPIL PREMIUM,15.20,TRANSPORT OTHER-ASSISTANCE TO STUDENTS,PASSENGER RAILWAYS
06 Oct 2014,TRAINLINE.COM,NEIGHBOURHOOD SERVICES,NEW ART GALLERY - ADMIN,48.45,OFFICER/STAFF-PUBLIC TRANSPORT,PASSENGER RAILWAYS
06 Oct 2014,OFFICE DEPOT,NEIGHBOURHOOD SERVICES,WALSALL GALA CENTRE,191.83,STATIONERY & GENERAL SUPPLIES-OFFICE EXP,"STATIONERY, OFFICE SUPPLIES AND WRITING PAPER"
06 Oct 2014,ASDA STORES 7134,CHILDRENS SERVICES,"CLUSTER 1 BROWNHILLS,GREENFIELDS,PELSALL",55.09,FOOD AND BEVERAGES-PROVISIONS,GROCERY STORES AND SUPERMARKETS
06 Oct 2014,ASDA STORES,CHILDRENS SERVICES,CLUSTER 5 DARLASTON,63.00,FOOD AND BEVERAGES-PROVISIONS,GROCERY STORES AND SUPERMARKETS
06 Oct 2014,WM MORRISON 063,CHILDRENS SERVICES,REDRUTH ROAD,5.00,GENERAL PROVISIONS-PROVISIONS,GROCERY STORES AND SUPERMARKETS
06 Oct 2014,WM MORRISON 063,CHILDRENS SERVICES,REDRUTH ROAD,65.81,GENERAL PROVISIONS-PROVISIONS,GROCERY STORES AND SUPERMARKETS
06 Oct 2014,AMAZON *MKTPLCE EU-UK,CHILDRENS SERVICES,PUPIL PREMIUM,11.55,GENERAL MATERIALS,BOOK STORES
06 Oct 2014,TRAINLINE.COM,NEIGHBOURHOOD SERVICES,NAG - TEMPORARY EXHIBITIONS,39.78,OFFICER/STAFF-PUBLIC TRANSPORT,PASSENGER RAILWAYS
06 Oct 2014,TRAINLINE.COM,NEIGHBOURHOOD SERVICES,SPORT & LEISURE DEVELOPMENT SERVICES,23.51,OFFICER/STAFF-PUBLIC TRANSPORT,PASSENGER RAILWAYS
06 Oct 2014,CRAZY HOUSE (BROWNHILL,RESOURCES,WALSALL CRISIS SUPPORT SCHEME,105.00,CRISIS SUPPORT PAYMENTS,"EQUIPMENT, FURNITURE, AND HOME FURNISHINGS STORES "
06 Oct 2014,ASDA STORES 7134,CHILDRENS SERVICES,"CLUSTER 1 BROWNHILLS,GREENFIELDS,PELSALL",39.79,FOOD AND BEVERAGES-PROVISIONS,GROCERY STORES AND SUPERMARKETS
06 Oct 2014,WM MORRISON FOOD.COM,CHILDRENS SERVICES,57 LICHFIELD ROAD,24.72,GENERAL PROVISIONS-PROVISIONS,GROCERY STORES AND SUPERMARKETS
06 Oct 2014,WM MORRISON FOOD.COM,CHILDRENS SERVICES,57 LICHFIELD ROAD,108.37,GENERAL PROVISIONS-PROVISIONS,GROCERY STORES AND SUPERMARKETS
06 Oct 2014,PC WORLD,NEIGHBOURHOOD SERVICES,POLLUTION DIVISION,123.96,NEW-FURNITURE & EQUIPMENT,ELECTRONIC SALES
06 Oct 2014,W M MORRISONS.COM,CHILDRENS SERVICES,CLUSTER 4 ALUMWELL & BIRCHILLS,38.24,FOOD AND BEVERAGES-PROVISIONS,GROCERY STORES AND SUPERMARKETS
06 Oct 2014,W M MORRISONS.COM,CHILDRENS SERVICES,CLUSTER 4 ALUMWELL & BIRCHILLS,2.00,FOOD AND BEVERAGES-PROVISIONS,GROCERY STORES AND SUPERMARKETS
06 Oct 2014,W M MORRISONS.COM,CHILDRENS SERVICES,STANLEYS NURSERY,26.23,FOOD AND BEVERAGES-PROVISIONS,GROCERY STORES AND SUPERMARKETS
06 Oct 2014,W M MORRISONS.COM,CHILDRENS SERVICES,STANLEYS NURSERY,2.86,FOOD AND BEVERAGES-PROVISIONS,GROCERY STORES AND SUPERMARKETS
06 Oct 2014,TRAVEL WEST MIDLAN,CHILDRENS SERVICES,PUPIL PREMIUM,132.00,TRANSPORT OTHER-ASSISTANCE TO STUDENTS,BUS LINES
06 Oct 2014,OFFICE DEPOT,NEIGHBOURHOOD SERVICES,PRINCIPAL MARKETING,3.85,STATIONERY & GENERAL SUPPLIES-OFFICE EXP,"STATIONERY, OFFICE SUPPLIES AND WRITING PAPER"
06 Oct 2014,W M MORRISONS.COM,CHILDRENS SERVICES,"CLUSTER 6 BENTLEY,LIGHTHOUSE,FIBBERSLEY",0.63,FOOD AND BEVERAGES-PROVISIONS,GROCERY STORES AND SUPERMARKETS
06 Oct 2014,W M MORRISONS.COM,CHILDRENS SERVICES,"CLUSTER 6 BENTLEY,LIGHTHOUSE,FIBBERSLEY",42.47,FOOD AND BEVERAGES-PROVISIONS,GROCERY STORES AND SUPERMARKETS
06 Oct 2014,TURNERS TRADE PAINTS,NEIGHBOURHOOD SERVICES,COMMUNITY LIAISON,22.98,"REPAIRS,ALTERATIONS & MAINTENANCE-PREM","GLASS, PAINT AND WALLPAPER STORES"
06 Oct 2014,THE TRAINLINE.COM,RESOURCES,COMMITTEE ADMINISTRATION,454.92,OFFICER/STAFF-PUBLIC TRANSPORT,PASSENGER RAILWAYS
06 Oct 2014,W M MORRISONS,CHILDRENS SERVICES,ELMWOOD SECONDARY SPECIAL SCHOOL,10.43,BREAD-GENERAL-PROVISIONS,GROCERY STORES AND SUPERMARKETS
06 Oct 2014,CRAZY HOUSE (BROWNHILL,RESOURCES,WALSALL CRISIS SUPPORT SCHEME,185.00,CRISIS SUPPORT PAYMENTS,"EQUIPMENT, FURNITURE, AND HOME FURNISHINGS STORES "
06 Oct 2014,TESCO STORES 6161,RESOURCES,WALSALL CRISIS SUPPORT SCHEME,14.12,CRISIS SUPPORT PAYMENTS,GROCERY STORES AND SUPERMARKETS
06 Oct 2014,EXPRESS BY HOL INN,CHILDRENS SERVICES,ADOPTION TEAM,328.90,HOTEL ACCOMMODATION-EMPLOYEES,"HOTELS, MOTELS, RESORTS"
06 Oct 2014,ASDA SUPERSTORE,CHILDRENS SERVICES,"CLUSTER 3 BLOXWICH,BLAKENALL,HATHERTON,E STAMMERS",24.75,FOOD AND BEVERAGES-PROVISIONS,GROCERY STORES AND SUPERMARKETS
06 Oct 2014,BLAKEMORE FOODSERVICE,NEIGHBOURHOOD SERVICES,CA BEACON PRIMARY SCHOOL,319.97,FROZEN FOODS-PROVISIONS,CATERERS
06 Oct 2014,BORSHCH LIMITED,RESOURCES,WALSALL CRISIS SUPPORT SCHEME,325.00,CRISIS SUPPORT PAYMENTS,ELECTRONIC SALES
06 Oct 2014,WELSH BROS FOODS LTD,NEIGHBOURHOOD SERVICES,CA LINDENS PRIMARY SCHOOL,31.89,MEAT-PROVISIONS,FREEZER AND LOCKER MEAT PROVISIONERS
06 Oct 2014,LOCKS & FITTINGS,NEIGHBOURHOOD SERVICES,WALSALL GALA CENTRE,42.65,NEW-FURNITURE & EQUIPMENT,HARDWARE EQUIPMENT AND SUPPLIES
06 Oct 2014,BLAKEMORE FOODSERVICE,NEIGHBOURHOOD SERVICES,CA JOSEPH LECKIE COMMUNITY TECHNOLOGY COLLEGE,413.38,FROZEN FOODS-PROVISIONS,CATERERS
06 Oct 2014,BLAKEMORE FOODSERVICE,NEIGHBOURHOOD SERVICES,CA JOSEPH LECKIE COMMUNITY TECHNOLOGY COLLEGE,73.94,FROZEN FOODS-PROVISIONS,CATERERS
06 Oct 2014,BLAKEMORE FOODSERVICE,NEIGHBOURHOOD SERVICES,CA LEIGHSWOOD PRIMARY SCHOOL,333.03,DRY FOODS-PROVISIONS,CATERERS
06 Oct 2014,BLAKEMORE FOODSERVICE,NEIGHBOURHOOD SERVICES,CA LEIGHSWOOD PRIMARY SCHOOL,97.72,DRY FOODS-PROVISIONS,CATERERS
06 Oct 2014,WELSH BROS FOODS LTD,NEIGHBOURHOOD SERVICES,CA RUSHALL JMI SCHOOL,55.94,MEAT-PROVISIONS,FREEZER AND LOCKER MEAT PROVISIONERS
06 Oct 2014,BLAKEMORE FOODSERVICE,NEIGHBOURHOOD SERVICES,CA CASTLEFORT JMI SCHOOL,216.29,DRY FOODS-PROVISIONS,CATERERS
06 Oct 2014,BORSHCH LIMITED,RESOURCES,WALSALL CRISIS SUPPORT SCHEME,195.00,CRISIS SUPPORT PAYMENTS,ELECTRONIC SALES
06 Oct 2014,BORSHCH LIMITED,RESOURCES,WALSALL CRISIS SUPPORT SCHEME,520.00,CRISIS SUPPORT PAYMENTS,ELECTRONIC SALES
06 Oct 2014,BLAKEMORE FOODSERVICE,NEIGHBOURHOOD SERVICES,CA MOORCROFT WOOD,68.13,DRY FOODS-PROVISIONS,CATERERS
06 Oct 2014,WELSH BROS FOODS LTD,NEIGHBOURHOOD SERVICES,CA BUSILL JONES PRIMARY SCHOOL,299.19,MEAT-PROVISIONS,FREEZER AND LOCKER MEAT PROVISIONERS
06 Oct 2014,WELSH BROS FOODS LTD,NEIGHBOURHOOD SERVICES,CA MEADOW VIEW JMI PRIMARY SCHOOL,47.84,MEAT-PROVISIONS,FREEZER AND LOCKER MEAT PROVISIONERS
06 Oct 2014,BORSHCH LIMITED,RESOURCES,WALSALL CRISIS SUPPORT SCHEME,405.00,CRISIS SUPPORT PAYMENTS,ELECTRONIC SALES
06 Oct 2014,BLAKEMORE FOODSERVICE,NEIGHBOURHOOD SERVICES,CA ST JOHNS C.E. PRIMARY SCHOOL,35.51,DRY FOODS-PROVISIONS,CATERERS
06 Oct 2014,BORSHCH LIMITED,RESOURCES,WALSALL CRISIS SUPPORT SCHEME,595.00,CRISIS SUPPORT PAYMENTS,ELECTRONIC SALES
06 Oct 2014,BLAKEMORE FOODSERVICE,NEIGHBOURHOOD SERVICES,CA ST MICHAELS C.E. PRIMARY SCHOOL,438.39,DRY FOODS-PROVISIONS,CATERERS
06 Oct 2014,BLAKEMORE FOODSERVICE,NEIGHBOURHOOD SERVICES,CA ST MICHAELS C.E. PRIMARY SCHOOL,154.93,DRY FOODS-PROVISIONS,CATERERS
06 Oct 2014,BLAKEMORE FOODSERVICE,NEIGHBOURHOOD SERVICES,CA TOWN HALL RESTAURANT - CATERING,184.35,DRY FOODS-PROVISIONS,CATERERS
06 Oct 2014,BLAKEMORE FOODSERVICE,NEIGHBOURHOOD SERVICES,CA TOWN HALL RESTAURANT - CATERING,311.61,DRY FOODS-PROVISIONS,CATERERS
06 Oct 2014,WELSH BROS FOODS LTD,NEIGHBOURHOOD SERVICES,CA ST JOHNS C.E. PRIMARY SCHOOL,162.70,MEAT-PROVISIONS,FREEZER AND LOCKER MEAT PROVISIONERS
06 Oct 2014,BLAKEMORE FOODSERVICE,NEIGHBOURHOOD SERVICES,CA CALDMORE COMMUNITY PRIMARY SCHOOL,97.32,DRY FOODS-PROVISIONS,CATERERS
06 Oct 2014,BLAKEMORE FOODSERVICE,NEIGHBOURHOOD SERVICES,CA OLD HALL SPECIAL SCHOOL,36.73,FROZEN FOODS-PROVISIONS,CATERERS
06 Oct 2014,BLAKEMORE FOODSERVICE,NEIGHBOURHOOD SERVICES,CA WATLING STREET PRIMARY SCHOOL,51.60,DRY FOODS-PROVISIONS,CATERERS
06 Oct 2014,WELSH BROS FOODS LTD,NEIGHBOURHOOD SERVICES,CA COOPER JORDAN CE PRIMARY SCHOOL,99.69,MEAT-PROVISIONS,FREEZER AND LOCKER MEAT PROVISIONERS
06 Oct 2014,BLAKEMORE FOODSERVICE,NEIGHBOURHOOD SERVICES,CA RADLEYS PRIMARY SCHOOL,359.67,DRY FOODS-PROVISIONS,CATERERS
06 Oct 2014,BLAKEMORE FOODSERVICE,NEIGHBOURHOOD SERVICES,CA RADLEYS PRIMARY SCHOOL,64.52,DRY FOODS-PROVISIONS,CATERERS
06 Oct 2014,WELSH BROS FOODS LTD,NEIGHBOURHOOD SERVICES,CA ELMWOOD SPECIAL SCHOOL,69.13,MEAT-PROVISIONS,FREEZER AND LOCKER MEAT PROVISIONERS
06 Oct 2014,BLAKEMORE FOODSERVICE,NEIGHBOURHOOD SERVICES,CA BUSILL JONES PRIMARY SCHOOL,258.16,FROZEN FOODS-PROVISIONS,CATERERS
06 Oct 2014,BLAKEMORE FOODSERVICE,NEIGHBOURHOOD SERVICES,CA GREEN ROCK PRIMARY,59.48,DRY FOODS-PROVISIONS,CATERERS
06 Oct 2014,BLAKEMORE FOODSERVICE,NEIGHBOURHOOD SERVICES,CA RUSHALL JMI SCHOOL,97.08,FROZEN FOODS-PROVISIONS,CATERERS
06 Oct 2014,BLAKEMORE FOODSERVICE,NEIGHBOURHOOD SERVICES,CA BLUE COAT C OF E PERFORMING ARTS COLLEGE,-14.41,FROZEN FOODS-PROVISIONS,CATERERS
06 Oct 2014,BLAKEMORE FOODSERVICE,NEIGHBOURHOOD SERVICES,CA BARCROFT D/C,107.41,FROZEN FOODS-PROVISIONS,CATERERS
06 Oct 2014,WELSH BROS FOODS LTD,NEIGHBOURHOOD SERVICES,CA ST MICHAELS C.E. PRIMARY SCHOOL,98.86,MEAT-PROVISIONS,FREEZER AND LOCKER MEAT PROVISIONERS
06 Oct 2014,BLAKEMORE FOODSERVICE,NEIGHBOURHOOD SERVICES,CA ST JOHNS C.E. PRIMARY SCHOOL,644.21,DRY FOODS-PROVISIONS,CATERERS
06 Oct 2014,BLAKEMORE FOODSERVICE,NEIGHBOURHOOD SERVICES,CA LEIGHSWOOD PRIMARY SCHOOL,79.41,FROZEN FOODS-PROVISIONS,CATERERS
06 Oct 2014,BLAKEMORE FOODSERVICE,NEIGHBOURHOOD SERVICES,CA JANE LANE SPECIAL SCHOOL,47.90,FROZEN FOODS-PROVISIONS,CATERERS
06 Oct 2014,WELSH BROS FOODS LTD,NEIGHBOURHOOD SERVICES,CA BROWNHILLS WEST PRIMARY SCHOOL,99.00,MEAT-PROVISIONS,FREEZER AND LOCKER MEAT PROVISIONERS
06 Oct 2014,WELSH BROS FOODS LTD,NEIGHBOURHOOD SERVICES,CA OAKWOOD SPECIAL SCHOOL,49.02,MEAT-PROVISIONS,FREEZER AND LOCKER MEAT PROVISIONERS
06 Oct 2014,WELSH BROS FOODS LTD,NEIGHBOURHOOD SERVICES,CA BEACON PRIMARY SCHOOL,111.54,MEAT-PROVISIONS,FREEZER AND LOCKER MEAT PROVISIONERS
06 Oct 2014,WELSH BROS FOODS LTD,NEIGHBOURHOOD SERVICES,CA BARCROFT D/C,139.10,MEAT-PROVISIONS,FREEZER AND LOCKER MEAT PROVISIONERS
06 Oct 2014,BLAKEMORE FOODSERVICE,NEIGHBOURHOOD SERVICES,CA ST MICHAELS C.E. PRIMARY SCHOOL,36.52,DRY FOODS-PROVISIONS,CATERERS
06 Oct 2014,BLAKEMORE FOODSERVICE,NEIGHBOURHOOD SERVICES,CA GREEN ROCK PRIMARY,100.12,DRY FOODS-PROVISIONS,CATERERS
06 Oct 2014,BLAKEMORE FOODSERVICE,NEIGHBOURHOOD SERVICES,CA GREEN ROCK PRIMARY,62.92,DRY FOODS-PROVISIONS,CATERERS
06 Oct 2014,BORSHCH LIMITED,RESOURCES,WALSALL CRISIS SUPPORT SCHEME,200.00,CRISIS SUPPORT PAYMENTS,ELECTRONIC SALES
06 Oct 2014,BLAKEMORE FOODSERVICE,NEIGHBOURHOOD SERVICES,CA BIRCHILLS CE PRIMARY COMMUNITY SCHOOL,148.14,FROZEN FOODS-PROVISIONS,CATERERS
06 Oct 2014,WELSH BROS FOODS LTD,NEIGHBOURHOOD SERVICES,CA JANE LANE SPECIAL SCHOOL,95.65,MEAT-PROVISIONS,FREEZER AND LOCKER MEAT PROVISIONERS
06 Oct 2014,BORSHCH LIMITED,RESOURCES,WALSALL CRISIS SUPPORT SCHEME,180.00,CRISIS SUPPORT PAYMENTS,ELECTRONIC SALES
06 Oct 2014,BLAKEMORE FOODSERVICE,NEIGHBOURHOOD SERVICES,CA MOORCROFT WOOD,343.32,DRY FOODS-PROVISIONS,CATERERS
06 Oct 2014,BLAKEMORE FOODSERVICE,NEIGHBOURHOOD SERVICES,CA MOORCROFT WOOD,13.15,DRY FOODS-PROVISIONS,CATERERS
06 Oct 2014,WELSH BROS FOODS LTD,NEIGHBOURHOOD SERVICES,CA LEIGHSWOOD PRIMARY SCHOOL,81.75,MEAT-PROVISIONS,FREEZER AND LOCKER MEAT PROVISIONERS
06 Oct 2014,BLAKEMORE FOODSERVICE,NEIGHBOURHOOD SERVICES,CA BEACON PRIMARY SCHOOL,305.50,FROZEN FOODS-PROVISIONS,CATERERS
06 Oct 2014,WELSH BROS FOODS LTD,NEIGHBOURHOOD SERVICES,CA ELMORE GREEN PRIMARY SCHOOL,123.27,MEAT-PROVISIONS,FREEZER AND LOCKER MEAT PROVISIONERS
06 Oct 2014,ARGOS RETAIL GROUP,CHILDRENS SERVICES,PUPIL PREMIUM,758.90,NEW ITEMS OF FURNITURE,DISCOUNT STORES
06 Oct 2014,WELSH BROS FOODS LTD,NEIGHBOURHOOD SERVICES,CA FIBBERSLEY PARK PRIMARY SCHOOL,113.23,MEAT-PROVISIONS,FREEZER AND LOCKER MEAT PROVISIONERS
06 Oct 2014,BLAKEMORE FOODSERVICE,NEIGHBOURHOOD SERVICES,CA RADLEYS PRIMARY SCHOOL,170.11,FROZEN FOODS-PROVISIONS,CATERERS
06 Oct 2014,BLAKEMORE FOODSERVICE,NEIGHBOURHOOD SERVICES,CA CROFT COMMUNITY PRIMARY SCHOOL,113.24,FROZEN FOODS-PROVISIONS,CATERERS
06 Oct 2014,BLAKEMORE FOODSERVICE,NEIGHBOURHOOD SERVICES,CA ELMORE GREEN PRIMARY SCHOOL,180.98,FROZEN FOODS-PROVISIONS,CATERERS
06 Oct 2014,BLAKEMORE FOODSERVICE,NEIGHBOURHOOD SERVICES,CA TOWN HALL RESTAURANT - CATERING,187.39,DRY FOODS-PROVISIONS,CATERERS
06 Oct 2014,BLAKEMORE FOODSERVICE,NEIGHBOURHOOD SERVICES,CA TOWN HALL RESTAURANT - CATERING,32.73,DRY FOODS-PROVISIONS,CATERERS
06 Oct 2014,LOCKS & FITTINGS,NEIGHBOURHOOD SERVICES,COMMUNITY LIAISON,12.29,GENERAL MATERIALS,HARDWARE EQUIPMENT AND SUPPLIES
06 Oct 2014,BORSHCH LIMITED,RESOURCES,WALSALL CRISIS SUPPORT SCHEME,195.00,CRISIS SUPPORT PAYMENTS,ELECTRONIC SALES
06 Oct 2014,WELSH BROS FOODS LTD,NEIGHBOURHOOD SERVICES,CA RADLEYS PRIMARY SCHOOL,183.92,MEAT-PROVISIONS,FREEZER AND LOCKER MEAT PROVISIONERS
06 Oct 2014,BLAKEMORE FOODSERVICE,NEIGHBOURHOOD SERVICES,CA BUSILL JONES PRIMARY SCHOOL,251.08,FROZEN FOODS-PROVISIONS,CATERERS
06 Oct 2014,BLAKEMORE FOODSERVICE,NEIGHBOURHOOD SERVICES,CA WATLING STREET PRIMARY SCHOOL,371.97,DRY FOODS-PROVISIONS,CATERERS
06 Oct 2014,BLAKEMORE FOODSERVICE,NEIGHBOURHOOD SERVICES,CA COOPER JORDAN CE PRIMARY SCHOOL,257.04,DRY FOODS-PROVISIONS,CATERERS
06 Oct 2014,BLAKEMORE FOODSERVICE,NEIGHBOURHOOD SERVICES,CA COOPER JORDAN CE PRIMARY SCHOOL,16.12,DRY FOODS-PROVISIONS,CATERERS
06 Oct 2014,BLAKEMORE FOODSERVICE,NEIGHBOURHOOD SERVICES,CA WATLING STREET PRIMARY SCHOOL,10.52,DRY FOODS-PROVISIONS,CATERERS
06 Oct 2014,WELSH BROS FOODS LTD,NEIGHBOURHOOD SERVICES,CA ST ANNES CATHOLIC PRIMARY SCHOOL,167.08,MEAT-PROVISIONS,FREEZER AND LOCKER MEAT PROVISIONERS
06 Oct 2014,ARTHUR BRETT CATER,NEIGHBOURHOOD SERVICES,CA LEIGHSWOOD PRIMARY SCHOOL,121.98,FRUIT & VEGETABLES OTHER-PROVISIONS,MISCELLANEOUS FOOD STORES & CONVENIENCE STORES
06 Oct 2014,ARTHUR BRETT CATER,NEIGHBOURHOOD SERVICES,CA WALSALL WOOD PRIMARY SCHOOL,38.12,FRUIT & VEGETABLES OTHER-PROVISIONS,MISCELLANEOUS FOOD STORES & CONVENIENCE STORES
06 Oct 2014,ARTHUR BRETT CATER,NEIGHBOURHOOD SERVICES,CA MEADOW VIEW JMI PRIMARY SCHOOL,65.67,FRUIT & VEGETABLES OTHER-PROVISIONS,MISCELLANEOUS FOOD STORES & CONVENIENCE STORES
06 Oct 2014,ARTHUR BRETT CATER,NEIGHBOURHOOD SERVICES,CA WATLING STREET PRIMARY SCHOOL,23.84,FRUIT & VEGETABLES OTHER-PROVISIONS,MISCELLANEOUS FOOD STORES & CONVENIENCE STORES
06 Oct 2014,ARTHUR BRETT CATER,NEIGHBOURHOOD SERVICES,CA BLUE COAT C OF E PERFORMING ARTS COLLEGE,45.27,FRUIT & VEGETABLES OTHER-PROVISIONS,MISCELLANEOUS FOOD STORES & CONVENIENCE STORES
06 Oct 2014,ARTHUR BRETT CATER,NEIGHBOURHOOD SERVICES,CA COOPER JORDAN CE PRIMARY SCHOOL,163.91,FRUIT & VEGETABLES OTHER-PROVISIONS,MISCELLANEOUS FOOD STORES & CONVENIENCE STORES
06 Oct 2014,ARTHUR BRETT CATER,NEIGHBOURHOOD SERVICES,CA WATLING STREET PRIMARY SCHOOL,144.01,FRUIT & VEGETABLES OTHER-PROVISIONS,MISCELLANEOUS FOOD STORES & CONVENIENCE STORES
06 Oct 2014,ARTHUR BRETT CATER,NEIGHBOURHOOD SERVICES,CA BROWNHILLS WEST PRIMARY SCHOOL,53.53,FRUIT & VEGETABLES OTHER-PROVISIONS,MISCELLANEOUS FOOD STORES & CONVENIENCE STORES
06 Oct 2014,ARTHUR BRETT CATER,NEIGHBOURHOOD SERVICES,CA TOWN HALL RESTAURANT - CATERING,52.92,FRUIT & VEGETABLES OTHER-PROVISIONS,MISCELLANEOUS FOOD STORES & CONVENIENCE STORES
06 Oct 2014,ARTHUR BRETT CATER,NEIGHBOURHOOD SERVICES,CA ST JOHNS C.E. PRIMARY SCHOOL,158.77,FRUIT & VEGETABLES OTHER-PROVISIONS,MISCELLANEOUS FOOD STORES & CONVENIENCE STORES
06 Oct 2014,ARTHUR BRETT CATER,NEIGHBOURHOOD SERVICES,CA OAKWOOD SPECIAL SCHOOL,35.16,FRUIT & VEGETABLES OTHER-PROVISIONS,MISCELLANEOUS FOOD STORES & CONVENIENCE STORES
06 Oct 2014,ARTHUR BRETT CATER,NEIGHBOURHOOD SERVICES,CA LINDENS PRIMARY SCHOOL,125.88,FRUIT & VEGETABLES OTHER-PROVISIONS,MISCELLANEOUS FOOD STORES & CONVENIENCE STORES
06 Oct 2014,ARTHUR BRETT CATER,NEIGHBOURHOOD SERVICES,TOWN HALL RESTAURANT BISTRO,44.39,FRUIT & VEGETABLES OTHER-PROVISIONS,MISCELLANEOUS FOOD STORES & CONVENIENCE STORES
06 Oct 2014,ARTHUR BRETT CATER,NEIGHBOURHOOD SERVICES,CA ST BERNADETTES CATHOLIC PRIMARY SCHOOL,32.44,FRUIT & VEGETABLES OTHER-PROVISIONS,MISCELLANEOUS FOOD STORES & CONVENIENCE STORES
06 Oct 2014,ARTHUR BRETT CATER,NEIGHBOURHOOD SERVICES,CA CASTLEFORT JMI SCHOOL,55.14,FRUIT & VEGETABLES OTHER-PROVISIONS,MISCELLANEOUS FOOD STORES & CONVENIENCE STORES
06 Oct 2014,ARTHUR BRETT CATER,NEIGHBOURHOOD SERVICES,CA ST ANNES CATHOLIC PRIMARY SCHOOL,53.63,FRUIT & VEGETABLES OTHER-PROVISIONS,MISCELLANEOUS FOOD STORES & CONVENIENCE STORES
07 Oct 2014,ARTHUR BRETT CATER,NEIGHBOURHOOD SERVICES,CA BIRCHILLS CE PRIMARY COMMUNITY SCHOOL,47.67,FRUIT & VEGETABLES OTHER-PROVISIONS,MISCELLANEOUS FOOD STORES & CONVENIENCE STORES
07 Oct 2014,TESCO STORE 3351,CHILDRENS SERVICES,PARENTING TEAM,3.50,FOOD AND BEVERAGES-PROVISIONS,GROCERY STORES AND SUPERMARKETS
07 Oct 2014,TESCO STORE 3351,CHILDRENS SERVICES,PARENTING TEAM,8.22,FOOD AND BEVERAGES-PROVISIONS,GROCERY STORES AND SUPERMARKETS
07 Oct 2014,OFFICE DEPOT,CHILDRENS SERVICES,INITIAL RESPONSE SERVICE,10.56,STATIONERY & GENERAL SUPPLIES-OFFICE EXP,"STATIONERY, OFFICE SUPPLIES AND WRITING PAPER"
07 Oct 2014,ARTHUR BRETT CATER,NEIGHBOURHOOD SERVICES,CA RADLEYS PRIMARY SCHOOL,104.28,FRUIT & VEGETABLES OTHER-PROVISIONS,MISCELLANEOUS FOOD STORES & CONVENIENCE STORES
07 Oct 2014,WALSALL COUNCIL,RESOURCES,WALSALL CRISIS SUPPORT SCHEME,229.20,CRISIS SUPPORT PAYMENTS,GOVERNMENT SERVICES
07 Oct 2014,ARTHUR BRETT CATER,NEIGHBOURHOOD SERVICES,CA ABBEY PRIMARY SCHOOL,54.82,FOOD AND BEVERAGES-PROVISIONS,MISCELLANEOUS FOOD STORES & CONVENIENCE STORES
07 Oct 2014,BT BILL PAYMENT 2,SOCIAL CARE & INCLUSION,INTEGRATED BUSINESS PROCESSES & SERVICES,77.59,COSTS (NOT INTERNAL RECHARGES)-TELEPHONES,TELECOMMUNICATION EQUIPMENT & SALES
07 Oct 2014,WELSH BROS FOODS LTD,NEIGHBOURHOOD SERVICES,CA MOORCROFT WOOD,151.39,MEAT-PROVISIONS,FREEZER AND LOCKER MEAT PROVISIONERS
07 Oct 2014,THETRAINLINE.COM,NEIGHBOURHOOD SERVICES,GARMAN RYAN,384.03,OTHER/VOLUNTEERS-PUBLIC TRANSPORT,PASSENGER RAILWAYS
07 Oct 2014,ARTHUR BRETT CATER,NEIGHBOURHOOD SERVICES,CA ELMORE GREEN PRIMARY SCHOOL,182.45,FRUIT & VEGETABLES OTHER-PROVISIONS,MISCELLANEOUS FOOD STORES & CONVENIENCE STORES
07 Oct 2014,ARTHUR BRETT CATER,NEIGHBOURHOOD SERVICES,CA BROWNHILLS WEST PRIMARY SCHOOL,22.48,FRUIT & VEGETABLES OTHER-PROVISIONS,MISCELLANEOUS FOOD STORES & CONVENIENCE STORES
07 Oct 2014,ARTHUR BRETT CATER,NEIGHBOURHOOD SERVICES,CA BLOXWICH C.E. JMI PRIMARY SCHOOL,67.00,FRUIT & VEGETABLES OTHER-PROVISIONS,MISCELLANEOUS FOOD STORES & CONVENIENCE STORES
07 Oct 2014,OFFICE DEPOT,NEIGHBOURHOOD SERVICES,RESOURCE MANAGEMENT,110.23,STATIONERY & GENERAL SUPPLIES-OFFICE EXP,"STATIONERY, OFFICE SUPPLIES AND WRITING PAPER"
07 Oct 2014,TRAINLINE.COM,CHILDRENS SERVICES,SCHOOL IMPROVEMENT,106.59,OFFICER/STAFF-PUBLIC TRANSPORT,PASSENGER RAILWAYS
07 Oct 2014,ARTHUR BRETT CATER,NEIGHBOURHOOD SERVICES,CA BLAKENALL HEATH JUNIOR SCHOOL,50.84,FRUIT & VEGETABLES OTHER-PROVISIONS,MISCELLANEOUS FOOD STORES & CONVENIENCE STORES
07 Oct 2014,WM MORRISON FOOD.COM,CHILDRENS SERVICES,BLUEBELLS,11.58,GENERAL PROVISIONS-PROVISIONS,GROCERY STORES AND SUPERMARKETS
07 Oct 2014,WM MORRISON FOOD.COM,CHILDRENS SERVICES,BLUEBELLS,77.06,GENERAL PROVISIONS-PROVISIONS,GROCERY STORES AND SUPERMARKETS
07 Oct 2014,TESCO STORES 6876,CHILDRENS SERVICES,"43A HILTON ROAD, WILLENHALL",6.50,RESIDENTS PERSONAL EXPENSES-ALLOWANCES TO S/S CLIENTS,GROCERY STORES AND SUPERMARKETS
07 Oct 2014,ARTHUR BRETT CATER,NEIGHBOURHOOD SERVICES,CA LEAMORE PRIMARY SCHOOL,44.76,FRUIT & VEGETABLES OTHER-PROVISIONS,MISCELLANEOUS FOOD STORES & CONVENIENCE STORES
07 Oct 2014,OFFICE DEPOT,CHILDRENS SERVICES,VIRTUAL SCHOOL,346.80,STATIONERY & GENERAL SUPPLIES-OFFICE EXP,"STATIONERY, OFFICE SUPPLIES AND WRITING PAPER"
07 Oct 2014,YMCA,RESOURCES,WALSALL CRISIS SUPPORT SCHEME,14.01,CRISIS SUPPORT PAYMENTS,"ORGANIZATIONS, CHARITABLE AND SOCIAL SERVICE"
07 Oct 2014,ARTHUR BRETT CATER,NEIGHBOURHOOD SERVICES,CA MOORCROFT WOOD,40.26,FRUIT & VEGETABLES OTHER-PROVISIONS,MISCELLANEOUS FOOD STORES & CONVENIENCE STORES
07 Oct 2014,OFFICE DEPOT,NEIGHBOURHOOD SERVICES,AP QUALITY & PERFORMANCE INSPIRING LEARNING,32.78,STATIONERY & GENERAL SUPPLIES-OFFICE EXP,"STATIONERY, OFFICE SUPPLIES AND WRITING PAPER"
07 Oct 2014,OFFICE DEPOT,NEIGHBOURHOOD SERVICES,AP FINANCE & RESOURCES ADMINISTRATION,22.16,STATIONERY & GENERAL SUPPLIES-OFFICE EXP,"STATIONERY, OFFICE SUPPLIES AND WRITING PAPER"
07 Oct 2014,AMAZON *MKTPLCE EU-UK,CHILDRENS SERVICES,PUPIL PREMIUM,29.69,NEW-FURNITURE & EQUIPMENT,BOOK STORES
07 Oct 2014,THE BOOK PEOPLE,CHILDRENS SERVICES,GENERAL RESOURCES & MISC,71.94,GENERAL MATERIALS,BOOK STORES
07 Oct 2014,ARTHUR BRETT CATER,NEIGHBOURHOOD SERVICES,CA ST MICHAELS C.E. PRIMARY SCHOOL,58.26,FRUIT & VEGETABLES OTHER-PROVISIONS,MISCELLANEOUS FOOD STORES & CONVENIENCE STORES
07 Oct 2014,ARTHUR BRETT CATER,NEIGHBOURHOOD SERVICES,CA ST FRANCIS CATHOLIC PRIMARY SCHOOL,51.68,FRUIT & VEGETABLES OTHER-PROVISIONS,MISCELLANEOUS FOOD STORES & CONVENIENCE STORES
07 Oct 2014,OFFICE DEPOT,CHILDRENS SERVICES,SCHOOL IMPROVEMENT,3.02,STATIONERY & GENERAL SUPPLIES-OFFICE EXP,"STATIONERY, OFFICE SUPPLIES AND WRITING PAPER"
07 Oct 2014,ARTHUR BRETT CATER,NEIGHBOURHOOD SERVICES,CA CALDMORE COMMUNITY PRIMARY SCHOOL,34.87,FRUIT & VEGETABLES OTHER-PROVISIONS,MISCELLANEOUS FOOD STORES & CONVENIENCE STORES
07 Oct 2014,ARTHUR BRETT CATER,NEIGHBOURHOOD SERVICES,CA RUSHALL JMI SCHOOL,54.00,FRUIT & VEGETABLES OTHER-PROVISIONS,MISCELLANEOUS FOOD STORES & CONVENIENCE STORES
07 Oct 2014,ARTHUR BRETT CATER,NEIGHBOURHOOD SERVICES,CA BIRCHILLS CE PRIMARY COMMUNITY SCHOOL,70.21,FRUIT & VEGETABLES OTHER-PROVISIONS,MISCELLANEOUS FOOD STORES & CONVENIENCE STORES
07 Oct 2014,TRAVEL WEST MIDLAN,RESOURCES,HOMELESS PREVENTION GRANT,30.40,OFFICER/STAFF-PUBLIC TRANSPORT,BUS LINES
07 Oct 2014,OFFICE DEPOT,CHILDRENS SERVICES,ADMINISTRATIVE SUPPLIES,72.89,GENERAL MATERIALS,"STATIONERY, OFFICE SUPPLIES AND WRITING PAPER"
07 Oct 2014,OFFICE DEPOT,CHILDRENS SERVICES,VIRTUAL SCHOOL,45.36,STATIONERY & GENERAL SUPPLIES-OFFICE EXP,"STATIONERY, OFFICE SUPPLIES AND WRITING PAPER"
07 Oct 2014,AMAZON *MKTPLCE EU-UK,CHILDRENS SERVICES,LITERACY READING/WRITING,7.25,GENERAL MATERIALS,BOOK STORES
07 Oct 2014,ASDA SUPERSTORE,CHILDRENS SERVICES,MARY ELLIOTT SPECIAL SCHOOL,3.20,BREAD-GENERAL-PROVISIONS,GROCERY STORES AND SUPERMARKETS
07 Oct 2014,ARTHUR BRETT CATER,NEIGHBOURHOOD SERVICES,CA OLD HALL SPECIAL SCHOOL,14.75,FRUIT & VEGETABLES OTHER-PROVISIONS,MISCELLANEOUS FOOD STORES & CONVENIENCE STORES
07 Oct 2014,HOOTSUITE MEDIA INC.,NEIGHBOURHOOD SERVICES,PRINCIPAL MARKETING,7.73,PUBLICITY & ADVERTISING (NOT STAFF ADVERTISING),OTHER BUSINESS SERVICES
07 Oct 2014,AMAZON *MKTPLCE EU-UK,CHILDRENS SERVICES,GENERAL RESOURCES & MISC,66.55,GENERAL MATERIALS,BOOK STORES
07 Oct 2014,ARTHUR BRETT CATER,NEIGHBOURHOOD SERVICES,CA JANE LANE SPECIAL SCHOOL,41.70,FRUIT & VEGETABLES OTHER-PROVISIONS,MISCELLANEOUS FOOD STORES & CONVENIENCE STORES
07 Oct 2014,TESCO STORES 6197,CHILDRENS SERVICES,AFTER SCHOOL CLUB GOODS,13.18,GENERAL MATERIALS,GROCERY STORES AND SUPERMARKETS
07 Oct 2014,TESCO STORES 6197,CHILDRENS SERVICES,AFTER SCHOOL CLUB GOODS,3.50,GENERAL MATERIALS,GROCERY STORES AND SUPERMARKETS
07 Oct 2014,ARTHUR BRETT CATER,NEIGHBOURHOOD SERVICES,CA CALDMORE COMMUNITY PRIMARY SCHOOL,12.36,FRUIT & VEGETABLES OTHER-PROVISIONS,MISCELLANEOUS FOOD STORES & CONVENIENCE STORES
07 Oct 2014,ARTHUR BRETT CATER,NEIGHBOURHOOD SERVICES,CA FIBBERSLEY PARK PRIMARY SCHOOL,93.86,FRUIT & VEGETABLES OTHER-PROVISIONS,MISCELLANEOUS FOOD STORES & CONVENIENCE STORES
07 Oct 2014,WWW.ILIKETOSELL.COM,CHILDRENS SERVICES,EARLY YEARS DEPARTMENT,243.75,NEW-FURNITURE & EQUIPMENT,MISCELLANEOUS GENERAL MERCHANDISE
07 Oct 2014,ASDA SUPERSTORE,CHILDRENS SERVICES,ADOPTION TEAM,8.42,FOOD AND BEVERAGES-PROVISIONS,GROCERY STORES AND SUPERMARKETS
07 Oct 2014,FLOORMATS CO UK,REGENERATION,PELSALL EDUCATION DEVELOPMENT CENTRE,108.92,STATIONERY & GENERAL SUPPLIES-OFFICE EXP,FLOOR COVERING STORES
07 Oct 2014,TRAINLINE.COM,RESOURCES,SIT-CORPORATE SERVICES,87.72,OFFICER/STAFF-PUBLIC TRANSPORT,PASSENGER RAILWAYS
07 Oct 2014,ASDA SUPERSTORE,CHILDRENS SERVICES,ADOPTION TEAM,40.00,FOOD AND BEVERAGES-PROVISIONS,GROCERY STORES AND SUPERMARKETS
07 Oct 2014,ARTHUR BRETT CATER,NEIGHBOURHOOD SERVICES,CA ELMWOOD SPECIAL SCHOOL,41.85,FRUIT & VEGETABLES OTHER-PROVISIONS,MISCELLANEOUS FOOD STORES & CONVENIENCE STORES
07 Oct 2014,ARTHUR BRETT CATER,NEIGHBOURHOOD SERVICES,CA POOL HAYES PRIMARY SCHOOL,51.76,FRUIT & VEGETABLES OTHER-PROVISIONS,MISCELLANEOUS FOOD STORES & CONVENIENCE STORES
07 Oct 2014,ARTHUR BRETT CATER,NEIGHBOURHOOD SERVICES,CA ELMORE GREEN PRIMARY SCHOOL,111.53,FRUIT & VEGETABLES OTHER-PROVISIONS,MISCELLANEOUS FOOD STORES & CONVENIENCE STORES
07 Oct 2014,ROYAL MAIL GROUP,NEIGHBOURHOOD SERVICES,RESOURCE MANAGEMENT,2150.40,POSTAGES AND COURIER SERVICES,POSTAL SERVICES - GOVERNMENT ONLY
07 Oct 2014,ARTHUR BRETT CATER,NEIGHBOURHOOD SERVICES,CA BEACON PRIMARY SCHOOL,141.50,FRUIT & VEGETABLES OTHER-PROVISIONS,MISCELLANEOUS FOOD STORES & CONVENIENCE STORES
07 Oct 2014,SONTAY,REGENERATION,CENTRAL OFFICE ACCOMMODATION,161.40,"REPAIRS,ALTERATIONS & MAINTENANCE-PREM",ELECTRICAL PARTS AND EQUIPMENT
07 Oct 2014,ARTHUR BRETT CATER,NEIGHBOURHOOD SERVICES,CA BARCROFT D/C,70.54,FRUIT & VEGETABLES OTHER-PROVISIONS,MISCELLANEOUS FOOD STORES & CONVENIENCE STORES
07 Oct 2014,BT BILL PAYMENT 2,SOCIAL CARE & INCLUSION,INTEGRATED BUSINESS PROCESSES & SERVICES,133.29,COSTS (NOT INTERNAL RECHARGES)-TELEPHONES,TELECOMMUNICATION EQUIPMENT & SALES
07 Oct 2014,ARTHUR BRETT CATER,NEIGHBOURHOOD SERVICES,CA CROFT COMMUNITY PRIMARY SCHOOL,112.46,FRUIT & VEGETABLES OTHER-PROVISIONS,MISCELLANEOUS FOOD STORES & CONVENIENCE STORES
07 Oct 2014,COSTA COFFEE,NEIGHBOURHOOD SERVICES,NEW ART GALLERY - ADMIN,13.94,MISC DAIRY PRODUCTS-PROVISIONS,"EATING PLACES, RESTAURANTS"
07 Oct 2014,OFFICE DEPOT,RESOURCES,PRINT STORES,10.79,STATIONERY & GENERAL SUPPLIES-OFFICE EXP,"STATIONERY, OFFICE SUPPLIES AND WRITING PAPER"
07 Oct 2014,NOBISCO LTD,NEIGHBOURHOOD SERVICES,CA BEACON PRIMARY SCHOOL,67.33,DISPOSABLES-PROVISIONS,"CLEANING AND MAINTENANCE, JANITORIAL SERVICES"
07 Oct 2014,ARTHUR BRETT CATER,NEIGHBOURHOOD SERVICES,CA BUSILL JONES PRIMARY SCHOOL,133.36,FRUIT & VEGETABLES OTHER-PROVISIONS,MISCELLANEOUS FOOD STORES & CONVENIENCE STORES
07 Oct 2014,TRAVEL WEST MIDLAN,CHILDRENS SERVICES,LOOKED AFTER CHILDRENS SOCIAL WORK TEAM,28.50,SECTION 1/17CHILD CARE ACT 1989-ASSISTANCE TO S/S CLIENTS,BUS LINES
07 Oct 2014,BT BILL PAYMENT 2,SOCIAL CARE & INCLUSION,INTEGRATED BUSINESS PROCESSES & SERVICES,66.12,COSTS (NOT INTERNAL RECHARGES)-TELEPHONES,TELECOMMUNICATION EQUIPMENT & SALES
07 Oct 2014,ARTHUR BRETT CATER,NEIGHBOURHOOD SERVICES,CA GREEN ROCK PRIMARY,40.02,FRUIT & VEGETABLES OTHER-PROVISIONS,MISCELLANEOUS FOOD STORES & CONVENIENCE STORES
07 Oct 2014,ARTHUR BRETT CATER,NEIGHBOURHOOD SERVICES,CA LITTLE BLOXWICH CE PRIMARY SCHOOL,21.80,FRUIT & VEGETABLES OTHER-PROVISIONS,MISCELLANEOUS FOOD STORES & CONVENIENCE STORES
07 Oct 2014,CURRYS ONLINE,REGENERATION,CENTRAL OFFICE ACCOMMODATION,658.00,"REPAIRS,ALTERATIONS & MAINTENANCE-PREM",ELECTRONIC SALES
07 Oct 2014,OFFICE DEPOT,CHILDRENS SERVICES,SCHOOL IMPROVEMENT,11.30,STATIONERY & GENERAL SUPPLIES-OFFICE EXP,"STATIONERY, OFFICE SUPPLIES AND WRITING PAPER"
07 Oct 2014,ARTHUR BRETT CATER,NEIGHBOURHOOD SERVICES,CA ST GILES C.E. PRIMARY SCHOOL,32.42,FRUIT & VEGETABLES OTHER-PROVISIONS,MISCELLANEOUS FOOD STORES & CONVENIENCE STORES
07 Oct 2014,BIGLIETTERIA SPAZIO MOSTR,NEIGHBOURHOOD SERVICES,NEW ART GALLERY - ADMIN,29.23,PUBLICATIONS/ORGANISATIONS-SUBSCRIPTIONS,MOTION PICTURE THEATERS
07 Oct 2014,ARTHUR BRETT CATER,NEIGHBOURHOOD SERVICES,CA FIBBERSLEY PARK PRIMARY SCHOOL,-5.75,FRUIT & VEGETABLES OTHER-PROVISIONS,MISCELLANEOUS FOOD STORES & CONVENIENCE STORES
07 Oct 2014,WWW.GIROFOOD.COM,NEIGHBOURHOOD SERVICES,TOWN HALL RESTAURANT BISTRO,154.18,DISPOSABLES-PROVISIONS,WHOLESALE CLUBS
07 Oct 2014,WWW.GIROFOOD.COM,NEIGHBOURHOOD SERVICES,CA ST JOHNS C.E. PRIMARY SCHOOL,114.74,DISPOSABLES-PROVISIONS,WHOLESALE CLUBS
07 Oct 2014,WWW.GIROFOOD.COM,NEIGHBOURHOOD SERVICES,CA TOWN HALL RESTAURANT - CATERING,26.00,DISPOSABLES-PROVISIONS,WHOLESALE CLUBS
08 Oct 2014,UK AUTOMOTIVE PRODTS LTD,NEIGHBOURHOOD SERVICES,DARLASTON LEISURE CENTRE,74.26,NEW-FURNITURE & EQUIPMENT,"AUTOMOTIVE PARTS, ACCESSORIES STORES"
08 Oct 2014,BLAKEMORE FOODSERVICE,NEIGHBOURHOOD SERVICES,CA ELMORE GREEN PRIMARY SCHOOL,128.52,FROZEN FOODS-PROVISIONS,CATERERS
08 Oct 2014,BLAKEMORE FOODSERVICE,NEIGHBOURHOOD SERVICES,CA ELMORE GREEN PRIMARY SCHOOL,30.72,FROZEN FOODS-PROVISIONS,CATERERS
08 Oct 2014,BT BILL PAYMENT 2,SOCIAL CARE & INCLUSION,INTEGRATED BUSINESS PROCESSES & SERVICES,243.90,COSTS (NOT INTERNAL RECHARGES)-TELEPHONES,TELECOMMUNICATION EQUIPMENT & SALES
08 Oct 2014,POUNDLAND LTD 1055,CHILDRENS SERVICES,LOOKED AFTER CHILDRENS SOCIAL WORK TEAM,3.00,TRANSFER PAYMENTS - SOCIAL SERVICES CLIENTS,DISCOUNT STORES
08 Oct 2014,POUNDLAND LTD 1055,CHILDRENS SERVICES,LOOKED AFTER CHILDRENS SOCIAL WORK TEAM,1.00,TRANSFER PAYMENTS - SOCIAL SERVICES CLIENTS,DISCOUNT STORES
08 Oct 2014,TESCO DIRECT,CHILDRENS SERVICES,ICT LEARNING RESOURCES,261.00,NEW-FURNITURE & EQUIPMENT,MISCELLANEOUS AND SPECIALTY RETAIL STORES
08 Oct 2014,BLAKEMORE FOODSERVICE,NEIGHBOURHOOD SERVICES,CA CALDMORE COMMUNITY PRIMARY SCHOOL,39.49,DRY FOODS-PROVISIONS,CATERERS
08 Oct 2014,TESCO DIRECT,CHILDRENS SERVICES,ICT LEARNING RESOURCES,261.00,NEW-FURNITURE & EQUIPMENT,MISCELLANEOUS AND SPECIALTY RETAIL STORES
08 Oct 2014,BLAKEMORE FOODSERVICE,NEIGHBOURHOOD SERVICES,CA BARCROFT D/C,131.01,DRY FOODS-PROVISIONS,CATERERS
08 Oct 2014,BORSHCH LIMITED,RESOURCES,WALSALL CRISIS SUPPORT SCHEME,190.00,CRISIS SUPPORT PAYMENTS,ELECTRONIC SALES
08 Oct 2014,BLAKEMORE FOODSERVICE,NEIGHBOURHOOD SERVICES,CA BLUE COAT C OF E PERFORMING ARTS COLLEGE,403.15,FROZEN FOODS-PROVISIONS,CATERERS
08 Oct 2014,CRAZY HOUSE (BROWNHILL,RESOURCES,WALSALL CRISIS SUPPORT SCHEME,55.00,CRISIS SUPPORT PAYMENTS,"EQUIPMENT, FURNITURE, AND HOME FURNISHINGS STORES "
08 Oct 2014,BLAKEMORE FOODSERVICE,NEIGHBOURHOOD SERVICES,CA BEACON PRIMARY SCHOOL,522.68,DRY FOODS-PROVISIONS,CATERERS
08 Oct 2014,BLAKEMORE FOODSERVICE,NEIGHBOURHOOD SERVICES,CA BEACON PRIMARY SCHOOL,152.14,DRY FOODS-PROVISIONS,CATERERS
08 Oct 2014,DIGITALID.CO.UK,NEIGHBOURHOOD SERVICES,LIBRARY OPERATIONS CENTRAL,43.74,STATIONERY & GENERAL SUPPLIES-OFFICE EXP,"OFFICE, SCHOOL SUPPLY, AND STATIONERY STORES"
08 Oct 2014,GEBART SPA,NEIGHBOURHOOD SERVICES,NEW ART GALLERY - ADMIN,13.00,PUBLICATIONS/ORGANISATIONS-SUBSCRIPTIONS,MOTION PICTURE THEATERS
08 Oct 2014,BLAKEMORE FOODSERVICE,NEIGHBOURHOOD SERVICES,CA BARCROFT D/C,25.39,DRY FOODS-PROVISIONS,CATERERS
08 Oct 2014,WWW.ONLINEREALITY.CO.UK,NEIGHBOURHOOD SERVICES,LIBRARY OPERATIONS CENTRAL,208.80,FURNITURE & EQUIPMENT,"EQUIPMENT, FURNITURE, AND HOME FURNISHINGS STORES "
08 Oct 2014,BLAKEMORE FOODSERVICE,NEIGHBOURHOOD SERVICES,CA MEADOW VIEW JMI PRIMARY SCHOOL,114.19,FROZEN FOODS-PROVISIONS,CATERERS
08 Oct 2014,GRO HM PASSPORT OFFICE,CHILDRENS SERVICES,SAFEGUARDING & FAMILY SUPPORT,27.75,SECTION 1/17CHILD CARE ACT 1989-ASSISTANCE TO S/S CLIENTS,GOVERNMENT SERVICES
08 Oct 2014,BLAKEMORE FOODSERVICE,NEIGHBOURHOOD SERVICES,CA JOSEPH LECKIE COMMUNITY TECHNOLOGY COLLEGE,314.69,FROZEN FOODS-PROVISIONS,CATERERS
08 Oct 2014,BLAKEMORE FOODSERVICE,NEIGHBOURHOOD SERVICES,CA JOSEPH LECKIE COMMUNITY TECHNOLOGY COLLEGE,41.04,FROZEN FOODS-PROVISIONS,CATERERS
08 Oct 2014,OFFICE DEPOT,NEIGHBOURHOOD SERVICES,LIBRARY OPERATIONS CENTRAL,457.99,STATIONERY & GENERAL SUPPLIES-OFFICE EXP,"STATIONERY, OFFICE SUPPLIES AND WRITING PAPER"
08 Oct 2014,HOPWELLS LTD,CHILDRENS SERVICES,MARY ELLIOTT SPECIAL SCHOOL,223.38,BREAD-GENERAL-PROVISIONS,CATERERS
08 Oct 2014,TESCO STORES 6161,RESOURCES,ACCOMMODATION SERVICES MANAGEMENT,213.00,FOOD AND BEVERAGES-PROVISIONS,GROCERY STORES AND SUPERMARKETS
08 Oct 2014,BLAKEMORE FOODSERVICE,NEIGHBOURHOOD SERVICES,CA ELMORE GREEN PRIMARY SCHOOL,304.94,DRY FOODS-PROVISIONS,CATERERS
08 Oct 2014,BLAKEMORE FOODSERVICE,NEIGHBOURHOOD SERVICES,CA ELMORE GREEN PRIMARY SCHOOL,38.50,DRY FOODS-PROVISIONS,CATERERS
08 Oct 2014,BLAKEMORE FOODSERVICE,NEIGHBOURHOOD SERVICES,CA GREEN ROCK PRIMARY,48.60,FROZEN FOODS-PROVISIONS,CATERERS
08 Oct 2014,BLAKEMORE FOODSERVICE,NEIGHBOURHOOD SERVICES,CA ST ANNES CATHOLIC PRIMARY SCHOOL,111.26,FROZEN FOODS-PROVISIONS,CATERERS
08 Oct 2014,COSTA COFFEE,NEIGHBOURHOOD SERVICES,NEW ART GALLERY - ADMIN,7.60,MISC DAIRY PRODUCTS-PROVISIONS,"EATING PLACES, RESTAURANTS"
08 Oct 2014,BT BILL PAYMENT 2,SOCIAL CARE & INCLUSION,INTEGRATED BUSINESS PROCESSES & SERVICES,90.37,COSTS (NOT INTERNAL RECHARGES)-TELEPHONES,TELECOMMUNICATION EQUIPMENT & SALES
08 Oct 2014,TRAINLINE.COM,CHILDRENS SERVICES,SAFEGUARDING & FAMILY SUPPORT,157.08,OFFICER/STAFF-PUBLIC TRANSPORT,PASSENGER RAILWAYS
08 Oct 2014,BLAKEMORE FOODSERVICE,NEIGHBOURHOOD SERVICES,CA OAKWOOD SPECIAL SCHOOL,37.89,FROZEN FOODS-PROVISIONS,CATERERS
08 Oct 2014,BLAKEMORE FOODSERVICE,NEIGHBOURHOOD SERVICES,CA CASTLEFORT JMI SCHOOL,87.88,FROZEN FOODS-PROVISIONS,CATERERS
08 Oct 2014,AMAZON *MKTPLCE EU-UK,CHILDRENS SERVICES,S. NEEDS,30.45,FURNITURE & EQUIPMENT,BOOK STORES
08 Oct 2014,BLAKEMORE FOODSERVICE,NEIGHBOURHOOD SERVICES,CA BLUE COAT C OF E PERFORMING ARTS COLLEGE,287.83,DRY FOODS-PROVISIONS,CATERERS
08 Oct 2014,BLAKEMORE FOODSERVICE,NEIGHBOURHOOD SERVICES,CA BLUE COAT C OF E PERFORMING ARTS COLLEGE,59.19,DRY FOODS-PROVISIONS,CATERERS
08 Oct 2014,BLAKEMORE FOODSERVICE,NEIGHBOURHOOD SERVICES,CA FIBBERSLEY PARK PRIMARY SCHOOL,90.73,FROZEN FOODS-PROVISIONS,CATERERS
08 Oct 2014,OFFICE DEPOT,CHILDRENS SERVICES,INITIAL RESPONSE SERVICE,217.98,STATIONERY & GENERAL SUPPLIES-OFFICE EXP,"STATIONERY, OFFICE SUPPLIES AND WRITING PAPER"
08 Oct 2014,BLAKEMORE FOODSERVICE,NEIGHBOURHOOD SERVICES,CA JOSEPH LECKIE COMMUNITY TECHNOLOGY COLLEGE,816.58,DRY FOODS-PROVISIONS,CATERERS
08 Oct 2014,BLAKEMORE FOODSERVICE,NEIGHBOURHOOD SERVICES,CA JOSEPH LECKIE COMMUNITY TECHNOLOGY COLLEGE,269.86,DRY FOODS-PROVISIONS,CATERERS
08 Oct 2014,AMAZON *MKTPLCE EU-UK,CHILDRENS SERVICES,ICT LEARNING RESOURCES,37.35,FURNITURE & EQUIPMENT,BOOK STORES
08 Oct 2014,BLAKEMORE FOODSERVICE,NEIGHBOURHOOD SERVICES,CA BEACON PRIMARY SCHOOL,83.51,FROZEN FOODS-PROVISIONS,CATERERS
08 Oct 2014,BLAKEMORE FOODSERVICE,NEIGHBOURHOOD SERVICES,CA OLD HALL SPECIAL SCHOOL,75.83,DRY FOODS-PROVISIONS,CATERERS
08 Oct 2014,CRAZY HOUSE (BROWNHILL,RESOURCES,WALSALL CRISIS SUPPORT SCHEME,185.00,CRISIS SUPPORT PAYMENTS,"EQUIPMENT, FURNITURE, AND HOME FURNISHINGS STORES "
08 Oct 2014,BLAKEMORE FOODSERVICE,NEIGHBOURHOOD SERVICES,CA RUSHALL JMI SCHOOL,77.86,FROZEN FOODS-PROVISIONS,CATERERS
08 Oct 2014,HIE OLDBURY,REGENERATION,ERDF-AUTHORITY PARTNERS/TECHNICAL ASSISTANCE PROGRAMME,250.00,HOTEL ACCOMMODATION-EMPLOYEES,"HOTELS, MOTELS, RESORTS"
08 Oct 2014,BLAKEMORE FOODSERVICE,NEIGHBOURHOOD SERVICES,CA ST JOHNS C.E. PRIMARY SCHOOL,178.57,FROZEN FOODS-PROVISIONS,CATERERS
08 Oct 2014,BLAKEMORE FOODSERVICE,NEIGHBOURHOOD SERVICES,CA ST JOHNS C.E. PRIMARY SCHOOL,30.72,FROZEN FOODS-PROVISIONS,CATERERS
08 Oct 2014,BLAKEMORE FOODSERVICE,NEIGHBOURHOOD SERVICES,CA WATLING STREET PRIMARY SCHOOL,93.58,FROZEN FOODS-PROVISIONS,CATERERS
08 Oct 2014,BLAKEMORE FOODSERVICE,NEIGHBOURHOOD SERVICES,CA WATLING STREET PRIMARY SCHOOL,30.72,FROZEN FOODS-PROVISIONS,CATERERS
08 Oct 2014,BLAKEMORE FOODSERVICE,NEIGHBOURHOOD SERVICES,CA LEIGHSWOOD PRIMARY SCHOOL,106.19,FROZEN FOODS-PROVISIONS,CATERERS
08 Oct 2014,BLAKEMORE FOODSERVICE,NEIGHBOURHOOD SERVICES,CA BROWNHILLS WEST PRIMARY SCHOOL,119.69,FROZEN FOODS-PROVISIONS,CATERERS
08 Oct 2014,WWW.DAISYGROUPPIC.,CHILDRENS SERVICES,"CLUSTER 3 BLOXWICH,BLAKENALL,HATHERTON,E STAMMERS",132.83,COSTS (NOT INTERNAL RECHARGES)-TELEPHONES,TELECOMMUNICATION EQUIPMENT & SALES
08 Oct 2014,BORSHCH LIMITED,RESOURCES,WALSALL CRISIS SUPPORT SCHEME,325.00,CRISIS SUPPORT PAYMENTS,ELECTRONIC SALES
08 Oct 2014,TESCO STORES 6161,CHILDRENS SERVICES,FOOD TECH,28.15,GENERAL MATERIALS,GROCERY STORES AND SUPERMARKETS
08 Oct 2014,ASDA STORES 7134,CHILDRENS SERVICES,SPINDLETREE,0.49,GENERAL PROVISIONS-PROVISIONS,GROCERY STORES AND SUPERMARKETS
08 Oct 2014,ASDA STORES 7134,CHILDRENS SERVICES,SPINDLETREE,178.86,GENERAL PROVISIONS-PROVISIONS,GROCERY STORES AND SUPERMARKETS
08 Oct 2014,OFFICE DEPOT,NEIGHBOURHOOD SERVICES,LEISURE & CULTURE SUPPORT BUDGET,7.84,STATIONERY & GENERAL SUPPLIES-OFFICE EXP,"STATIONERY, OFFICE SUPPLIES AND WRITING PAPER"
08 Oct 2014,BLAKEMORE FOODSERVICE,NEIGHBOURHOOD SERVICES,CA RADLEYS PRIMARY SCHOOL,86.69,FROZEN FOODS-PROVISIONS,CATERERS
08 Oct 2014,CRAZY HOUSE (BROWNHILL,RESOURCES,WALSALL CRISIS SUPPORT SCHEME,105.00,CRISIS SUPPORT PAYMENTS,"EQUIPMENT, FURNITURE, AND HOME FURNISHINGS STORES "
08 Oct 2014,BLAKEMORE FOODSERVICE,NEIGHBOURHOOD SERVICES,CA BUSILL JONES PRIMARY SCHOOL,143.88,FROZEN FOODS-PROVISIONS,CATERERS
08 Oct 2014,BLAKEMORE FOODSERVICE,NEIGHBOURHOOD SERVICES,CA BUSILL JONES PRIMARY SCHOOL,15.36,FROZEN FOODS-PROVISIONS,CATERERS
08 Oct 2014,PARTRIDGE & PRINT,CHILDRENS SERVICES,FAMILY PLACEMENTS,655.50,REFERENCE BOOKS,OTHER SCHOOLS AND EDUCATIONAL SERVICES
08 Oct 2014,ARTHUR BRETT CATER,NEIGHBOURHOOD SERVICES,CA CASTLEFORT JMI SCHOOL,33.11,FRUIT & VEGETABLES OTHER-PROVISIONS,MISCELLANEOUS FOOD STORES & CONVENIENCE STORES
08 Oct 2014,OFFICE DEPOT,REGENERATION,CENTRALISED STATIONERY,3.66,STATIONERY & GENERAL SUPPLIES-OFFICE EXP,"STATIONERY, OFFICE SUPPLIES AND WRITING PAPER"
08 Oct 2014,BLAKEMORE FOODSERVICE,NEIGHBOURHOOD SERVICES,CA CALDMORE COMMUNITY PRIMARY SCHOOL,156.67,DRY FOODS-PROVISIONS,CATERERS
08 Oct 2014,BLAKEMORE FOODSERVICE,NEIGHBOURHOOD SERVICES,CA CALDMORE COMMUNITY PRIMARY SCHOOL,13.15,DRY FOODS-PROVISIONS,CATERERS
08 Oct 2014,BORSHCH LIMITED,RESOURCES,WALSALL CRISIS SUPPORT SCHEME,200.00,CRISIS SUPPORT PAYMENTS,ELECTRONIC SALES
08 Oct 2014,SCREWFIX,NEIGHBOURHOOD SERVICES,COMMUNITY LIAISON,13.98,"REPAIRS,ALTERATIONS & MAINTENANCE-PREM",LUMBER & BUILDING MATERIALS STORES
08 Oct 2014,BLAKEMORE FOODSERVICE,NEIGHBOURHOOD SERVICES,CA BUSILL JONES PRIMARY SCHOOL,549.86,DRY FOODS-PROVISIONS,CATERERS
08 Oct 2014,BLAKEMORE FOODSERVICE,NEIGHBOURHOOD SERVICES,CA BUSILL JONES PRIMARY SCHOOL,25.35,DRY FOODS-PROVISIONS,CATERERS
08 Oct 2014,OFFICE DEPOT,CHILDRENS SERVICES,CENTRAL SUPPORT,213.07,STATIONERY & GENERAL SUPPLIES-OFFICE EXP,"STATIONERY, OFFICE SUPPLIES AND WRITING PAPER"
08 Oct 2014,CRAZY HOUSE (BROWNHILL,RESOURCES,WALSALL CRISIS SUPPORT SCHEME,55.00,CRISIS SUPPORT PAYMENTS,"EQUIPMENT, FURNITURE, AND HOME FURNISHINGS STORES "
08 Oct 2014,WWW.DAISYGROUPPIC.,CHILDRENS SERVICES,"CLUSTER 3 BLOXWICH,BLAKENALL,HATHERTON,E STAMMERS",2.66,COSTS (NOT INTERNAL RECHARGES)-TELEPHONES,TELECOMMUNICATION EQUIPMENT & SALES
08 Oct 2014,WWW.ROYALMAIL.COM,CHILDRENS SERVICES,"CLUSTER 3 BLOXWICH,BLAKENALL,HATHERTON,E STAMMERS",168.00,POSTAGES AND COURIER SERVICES,POSTAL SERVICES - GOVERNMENT ONLY
08 Oct 2014,SCREWFIX,NEIGHBOURHOOD SERVICES,DEPOT,6.50,GENERAL MATERIALS,LUMBER & BUILDING MATERIALS STORES
08 Oct 2014,BLAKEMORE FOODSERVICE,NEIGHBOURHOOD SERVICES,CA BUSILL JONES PRIMARY SCHOOL,5.11,DRY FOODS-PROVISIONS,CATERERS
08 Oct 2014,BLAKEMORE FOODSERVICE,NEIGHBOURHOOD SERVICES,CA COOPER JORDAN CE PRIMARY SCHOOL,197.36,FROZEN FOODS-PROVISIONS,CATERERS
08 Oct 2014,BLAKEMORE FOODSERVICE,NEIGHBOURHOOD SERVICES,CA LINDENS PRIMARY SCHOOL,180.83,FROZEN FOODS-PROVISIONS,CATERERS
08 Oct 2014,BLAKEMORE FOODSERVICE,NEIGHBOURHOOD SERVICES,CA ST MICHAELS C.E. PRIMARY SCHOOL,138.52,FROZEN FOODS-PROVISIONS,CATERERS
08 Oct 2014,BLAKEMORE FOODSERVICE,NEIGHBOURHOOD SERVICES,CA FIBBERSLEY PARK PRIMARY SCHOOL,278.96,DRY FOODS-PROVISIONS,CATERERS
08 Oct 2014,BLAKEMORE FOODSERVICE,NEIGHBOURHOOD SERVICES,CA FIBBERSLEY PARK PRIMARY SCHOOL,36.64,DRY FOODS-PROVISIONS,CATERERS
08 Oct 2014,ARTHUR BRETT CATER,NEIGHBOURHOOD SERVICES,CA FIBBERSLEY PARK PRIMARY SCHOOL,5.75,FRUIT & VEGETABLES OTHER-PROVISIONS,MISCELLANEOUS FOOD STORES & CONVENIENCE STORES
08 Oct 2014,WWW.MUSICROOM.COM,NEIGHBOURHOOD SERVICES,FOREST ARTS CENTRE,16.70,GENERAL MATERIALS,MUSIC STORES & MUSICAL INSTRUMENTS
08 Oct 2014,WWW.MUSICROOM.COM,NEIGHBOURHOOD SERVICES,FOREST ARTS CENTRE,3.78,GENERAL MATERIALS,MUSIC STORES & MUSICAL INSTRUMENTS
08 Oct 2014,PAYPAL,CHILDRENS SERVICES,ELMWOOD SECONDARY SPECIAL SCHOOL,178.94,NEW-FURNITURE & EQUIPMENT,VARIETY STORES
08 Oct 2014,THE CARPET MAN,RESOURCES,WALSALL CRISIS SUPPORT SCHEME,480.00,CRISIS SUPPORT PAYMENTS,FLOOR COVERING STORES
08 Oct 2014,THE CARPET MAN,RESOURCES,WALSALL CRISIS SUPPORT SCHEME,384.00,CRISIS SUPPORT PAYMENTS,FLOOR COVERING STORES
08 Oct 2014,ARTHUR BRETT CATER,NEIGHBOURHOOD SERVICES,CA ELMWOOD SPECIAL SCHOOL,2.58,FRUIT & VEGETABLES OTHER-PROVISIONS,MISCELLANEOUS FOOD STORES & CONVENIENCE STORES
08 Oct 2014,ARTHUR BRETT CATER,NEIGHBOURHOOD SERVICES,TOWN HALL RESTAURANT BISTRO,31.63,FRUIT & VEGETABLES OTHER-PROVISIONS,MISCELLANEOUS FOOD STORES & CONVENIENCE STORES
08 Oct 2014,ARTHUR BRETT CATER,NEIGHBOURHOOD SERVICES,CA TOWN HALL RESTAURANT - CATERING,24.72,FRUIT & VEGETABLES OTHER-PROVISIONS,MISCELLANEOUS FOOD STORES & CONVENIENCE STORES
08 Oct 2014,WWW.GIROFOOD.COM,NEIGHBOURHOOD SERVICES,CA BUSILL JONES PRIMARY SCHOOL,180.20,DISPOSABLES-PROVISIONS,WHOLESALE CLUBS
08 Oct 2014,WWW.GIROFOOD.COM,NEIGHBOURHOOD SERVICES,CA GREEN ROCK PRIMARY,109.50,DISPOSABLES-PROVISIONS,WHOLESALE CLUBS
09 Oct 2014,OFFICE DEPOT,RESOURCES,TENANCY SERVICE,73.66,STATIONERY & GENERAL SUPPLIES-OFFICE EXP,"STATIONERY, OFFICE SUPPLIES AND WRITING PAPER"
09 Oct 2014,ARTHUR BRETT CATER,NEIGHBOURHOOD SERVICES,CA ST JOHNS C.E. PRIMARY SCHOOL,22.06,FRUIT & VEGETABLES OTHER-PROVISIONS,MISCELLANEOUS FOOD STORES & CONVENIENCE STORES
09 Oct 2014,AMAZON EU,CHILDRENS SERVICES,MATHEMATICS,34.50,GENERAL MATERIALS,OTHER DIRECT MARKETING-OTHER DIRECT MARKETERS
09 Oct 2014,AMAZON EU,CHILDRENS SERVICES,MATHEMATICS,58.80,GENERAL MATERIALS,OTHER DIRECT MARKETING-OTHER DIRECT MARKETERS
09 Oct 2014,TESCO DIRECT,CHILDRENS SERVICES,57 LICHFIELD ROAD,109.00,FURNITURE & EQUIPMENT,MISCELLANEOUS AND SPECIALTY RETAIL STORES
09 Oct 2014,THE BOOK PEOPLE,CHILDRENS SERVICES,GENERAL RESOURCES & MISC,535.76,GENERAL MATERIALS,BOOK STORES
09 Oct 2014,WALSALL COUNCIL,NEIGHBOURHOOD SERVICES,COMPLIANCE MANAGEMENT,30.00,GENERAL MATERIALS,GOVERNMENT SERVICES
09 Oct 2014,OFFICE DEPOT,SOCIAL CARE & INCLUSION,INTEGRATED BUSINESS PROCESSES & SERVICES,86.50,STATIONERY & GENERAL SUPPLIES-OFFICE EXP,"STATIONERY, OFFICE SUPPLIES AND WRITING PAPER"
09 Oct 2014,OFFICE DEPOT,RESOURCES,PRINT STORES,420.00,STATIONERY & GENERAL SUPPLIES-OFFICE EXP,"STATIONERY, OFFICE SUPPLIES AND WRITING PAPER"
09 Oct 2014,WM MORRISONS,CHILDRENS SERVICES,57 LICHFIELD ROAD,11.88,GENERAL PROVISIONS-PROVISIONS,GROCERY STORES AND SUPERMARKETS
09 Oct 2014,TRAVEL WEST MIDLAN,CHILDRENS SERVICES,TRANSITION AND LEAVING CARE,114.00,OFFICER/STAFF-PUBLIC TRANSPORT,BUS LINES
09 Oct 2014,NATIONAL GOVERNORS,CHILDRENS SERVICES,SCHOOL IMPROVEMENT,288.00,PROFESSIONAL FEES AND SERVICES,OTHER BUSINESS SERVICES
09 Oct 2014,TESCO STORES 6161,CHILDRENS SERVICES,57 LICHFIELD ROAD,1.00,GENERAL PROVISIONS-PROVISIONS,GROCERY STORES AND SUPERMARKETS
09 Oct 2014,TESCO STORES 6161,CHILDRENS SERVICES,57 LICHFIELD ROAD,24.11,GENERAL PROVISIONS-PROVISIONS,GROCERY STORES AND SUPERMARKETS
09 Oct 2014,TRAINLINE.COM,NEIGHBOURHOOD SERVICES,GARMAN RYAN,70.89,OTHER/VOLUNTEERS-PUBLIC TRANSPORT,PASSENGER RAILWAYS
09 Oct 2014,AMAZON *MKTPLCE EU-UK,CHILDRENS SERVICES,FOUNDATION PHASE RESOURCES,16.99,GENERAL MATERIALS,BOOK STORES
09 Oct 2014,TESCO DIRECT,CHILDRENS SERVICES,HOME TUITION,30.00,GENERAL MATERIALS,MISCELLANEOUS AND SPECIALTY RETAIL STORES
09 Oct 2014,ARTHUR BRETT CATER,NEIGHBOURHOOD SERVICES,CA LITTLE BLOXWICH CE PRIMARY SCHOOL,20.36,FRUIT & VEGETABLES OTHER-PROVISIONS,MISCELLANEOUS FOOD STORES & CONVENIENCE STORES
09 Oct 2014,FINDEL ED LTD,CHILDRENS SERVICES,MATHEMATICS,166.80,GENERAL MATERIALS,OTHER DIRECT MARKETING-OTHER DIRECT MARKETERS
09 Oct 2014,J P LENNARD LTD,NEIGHBOURHOOD SERVICES,POOLFITTERS,22.80,FURNITURE & EQUIPMENT,SPORTING GOODS STORES
09 Oct 2014,AMAZON *MKTPLCE EU-UK,CHILDRENS SERVICES,CHUCKERY PRIMARY SCHOOL,24.99,LANDSCAPE WORK-OP MTCE,BOOK STORES
09 Oct 2014,VIRTUAL SUBSIDIARY,RESOURCES,RECHARGEABLE EQUIPMENT,1418.44,COMPUTER EQUIPMENT AND SUPPLIES,"COMPUTERS, COMPUTER PERIPHERAL EQUIPMENT, SOFTWARE"
09 Oct 2014,TESCO DIRECT,CHILDRENS SERVICES,ICT LEARNING RESOURCES,258.00,NEW-FURNITURE & EQUIPMENT,MISCELLANEOUS AND SPECIALTY RETAIL STORES
09 Oct 2014,ARTHUR BRETT CATER,NEIGHBOURHOOD SERVICES,CA BEACON PRIMARY SCHOOL,109.05,FRUIT & VEGETABLES OTHER-PROVISIONS,MISCELLANEOUS FOOD STORES & CONVENIENCE STORES
09 Oct 2014,THE CARPET MAN,RESOURCES,WALSALL CRISIS SUPPORT SCHEME,318.00,CRISIS SUPPORT PAYMENTS,FLOOR COVERING STORES
09 Oct 2014,ARTHUR BRETT CATER,NEIGHBOURHOOD SERVICES,CA GREEN ROCK PRIMARY,33.72,FRUIT & VEGETABLES OTHER-PROVISIONS,MISCELLANEOUS FOOD STORES & CONVENIENCE STORES
09 Oct 2014,LONDON MIDLAND TIC,CHILDRENS SERVICES,LOOKED AFTER CHILDRENS SOCIAL WORK TEAM,190.00,OFFICER/STAFF-PUBLIC TRANSPORT,PASSENGER RAILWAYS
09 Oct 2014,WM MORRISONS,CHILDRENS SERVICES,57 LICHFIELD ROAD,18.00,FURNITURE & EQUIPMENT,GROCERY STORES AND SUPERMARKETS
09 Oct 2014,WM MORRISON 063,CHILDRENS SERVICES,REDRUTH ROAD,25.39,FOOD AND BEVERAGES-PROVISIONS,GROCERY STORES AND SUPERMARKETS
09 Oct 2014,ARTHUR BRETT CATER,NEIGHBOURHOOD SERVICES,CA ST JOHNS C.E. PRIMARY SCHOOL,61.46,FRUIT & VEGETABLES OTHER-PROVISIONS,MISCELLANEOUS FOOD STORES & CONVENIENCE STORES
09 Oct 2014,BT BILL PAYMENT 2,NEIGHBOURHOOD SERVICES,WALSALL CANAL BOATS,31.58,COSTS (NOT INTERNAL RECHARGES)-TELEPHONES,TELECOMMUNICATION EQUIPMENT & SALES
09 Oct 2014,BORSHCH LIMITED,RESOURCES,WALSALL CRISIS SUPPORT SCHEME,400.00,CRISIS SUPPORT PAYMENTS,ELECTRONIC SALES
09 Oct 2014,B&M RETAIL LTD,CHILDRENS SERVICES,SPINDLETREE,23.57,RESIDENTS PERSONAL EXPENSES-ALLOWANCES TO S/S CLIENTS,DISCOUNT STORES
09 Oct 2014,AMAZON EU,CHILDRENS SERVICES,ADMINISTRATIVE SUPPLIES,8.89,GENERAL MATERIALS,OTHER DIRECT MARKETING-OTHER DIRECT MARKETERS
09 Oct 2014,AMAZON EU,NEIGHBOURHOOD SERVICES,ACTIVE ENGLAND,6.79,NEW-FURNITURE & EQUIPMENT,OTHER DIRECT MARKETING-OTHER DIRECT MARKETERS
09 Oct 2014,AMAZON *MKTPLCE EU-UK,CHILDRENS SERVICES,FOUNDATION PHASE RESOURCES,25.85,GENERAL MATERIALS,BOOK STORES
09 Oct 2014,NOBISCO LTD,NEIGHBOURHOOD SERVICES,CA ST JOHNS C.E. PRIMARY SCHOOL,56.16,DISPOSABLES-PROVISIONS,"CLEANING AND MAINTENANCE, JANITORIAL SERVICES"
09 Oct 2014,BORSHCH LIMITED,RESOURCES,WALSALL CRISIS SUPPORT SCHEME,460.00,CRISIS SUPPORT PAYMENTS,ELECTRONIC SALES
09 Oct 2014,NOBISCO LTD,NEIGHBOURHOOD SERVICES,CA LEIGHSWOOD PRIMARY SCHOOL,31.81,DISPOSABLES-PROVISIONS,"CLEANING AND MAINTENANCE, JANITORIAL SERVICES"
09 Oct 2014,AMAZON *MKTPLCE EU-UK,CHILDRENS SERVICES,GENERAL RESOURCES & MISC,13.75,GENERAL MATERIALS,BOOK STORES
09 Oct 2014,BORSHCH LIMITED,RESOURCES,WALSALL CRISIS SUPPORT SCHEME,390.00,CRISIS SUPPORT PAYMENTS,ELECTRONIC SALES
09 Oct 2014,WILKO.COM,NEIGHBOURHOOD SERVICES,AP FINANCE & RESOURCES EXAMINATIONS,42.50,GENERAL MATERIALS,HOUSEHOLD APPLIANCE STORES
09 Oct 2014,W M MORRISON PLC,CHILDRENS SERVICES,"43A HILTON ROAD, WILLENHALL",41.12,GENERAL PROVISIONS-PROVISIONS,GROCERY STORES AND SUPERMARKETS
09 Oct 2014,W M MORRISON PLC,CHILDRENS SERVICES,"43A HILTON ROAD, WILLENHALL",51.28,GENERAL PROVISIONS-PROVISIONS,GROCERY STORES AND SUPERMARKETS
09 Oct 2014,BORSHCH LIMITED,RESOURCES,WALSALL CRISIS SUPPORT SCHEME,325.00,CRISIS SUPPORT PAYMENTS,ELECTRONIC SALES
09 Oct 2014,WELSH BROS FOODS LTD,RESOURCES,FINANCE ADMIN,-71.03,MEAT-PROVISIONS,FREEZER AND LOCKER MEAT PROVISIONERS
09 Oct 2014,BORSHCH LIMITED,RESOURCES,WALSALL CRISIS SUPPORT SCHEME,195.00,CRISIS SUPPORT PAYMENTS,ELECTRONIC SALES
09 Oct 2014,THE CARPET MAN,RESOURCES,WALSALL CRISIS SUPPORT SCHEME,372.00,CRISIS SUPPORT PAYMENTS,FLOOR COVERING STORES
09 Oct 2014,ARTHUR BRETT CATER,NEIGHBOURHOOD SERVICES,CA BUSILL JONES PRIMARY SCHOOL,124.33,FRUIT & VEGETABLES OTHER-PROVISIONS,MISCELLANEOUS FOOD STORES & CONVENIENCE STORES
09 Oct 2014,TRAINLINE.COM,CHILDRENS SERVICES,EDUCATION CONTRACT MANAGEMENT,159.12,OFFICER/STAFF-PUBLIC TRANSPORT,PASSENGER RAILWAYS
09 Oct 2014,BORSHCH LIMITED,RESOURCES,WALSALL CRISIS SUPPORT SCHEME,270.00,CRISIS SUPPORT PAYMENTS,ELECTRONIC SALES
09 Oct 2014,AGENZIE 365,NEIGHBOURHOOD SERVICES,NAG - TEMPORARY EXHIBITIONS,24.41,OFFICER/STAFF-PUBLIC TRANSPORT,RAILROADS
09 Oct 2014,BORSHCH LIMITED,RESOURCES,WALSALL CRISIS SUPPORT SCHEME,325.00,CRISIS SUPPORT PAYMENTS,ELECTRONIC SALES
09 Oct 2014,BORSHCH LIMITED,RESOURCES,WALSALL CRISIS SUPPORT SCHEME,585.00,CRISIS SUPPORT PAYMENTS,ELECTRONIC SALES
09 Oct 2014,AMAZON *MKTPLCE EU-UK,NEIGHBOURHOOD SERVICES,ARBORETUM,435.95,LIBRARY BOOKS,BOOK STORES
09 Oct 2014,WWW.MILITARY1ST.CO.UK,NEIGHBOURHOOD SERVICES,ARBORETUM,181.93,CLOTHING & LAUNDRY,MENS AND BOYS CLOTHING AND FURNISHINGS STORE
09 Oct 2014,AMAZON EU,CHILDRENS SERVICES,GENERAL RESOURCES & MISC,26.29,GENERAL MATERIALS,OTHER DIRECT MARKETING-OTHER DIRECT MARKETERS
09 Oct 2014,W M MORRISON PLC,CHILDRENS SERVICES,"43A HILTON ROAD, WILLENHALL",2.00,FOOD AND BEVERAGES-PROVISIONS,GROCERY STORES AND SUPERMARKETS
09 Oct 2014,W M MORRISON PLC,CHILDRENS SERVICES,"43A HILTON ROAD, WILLENHALL",70.79,FOOD AND BEVERAGES-PROVISIONS,GROCERY STORES AND SUPERMARKETS
09 Oct 2014,TESCO DIRECT,CHILDRENS SERVICES,ICT LEARNING RESOURCES,129.00,NEW-FURNITURE & EQUIPMENT,MISCELLANEOUS AND SPECIALTY RETAIL STORES
09 Oct 2014,CO-OPERATIVE FOOD,CHILDRENS SERVICES,FOOD TECH,7.00,GENERAL MATERIALS,GROCERY STORES AND SUPERMARKETS
09 Oct 2014,WWW.GIROFOOD.COM,NEIGHBOURHOOD SERVICES,CA BIRCHILLS CE PRIMARY COMMUNITY SCHOOL,66.51,DISPOSABLES-PROVISIONS,WHOLESALE CLUBS
09 Oct 2014,WWW.GIROFOOD.COM,NEIGHBOURHOOD SERVICES,CA FIBBERSLEY PARK PRIMARY SCHOOL,65.01,DISPOSABLES-PROVISIONS,WHOLESALE CLUBS
09 Oct 2014,WWW.GIROFOOD.COM,NEIGHBOURHOOD SERVICES,CA BEACON PRIMARY SCHOOL,389.62,DISPOSABLES-PROVISIONS,WHOLESALE CLUBS
10 Oct 2014,JOHAL DAIRIES LTD,NEIGHBOURHOOD SERVICES,CA ABBEY PRIMARY SCHOOL,37.85,MISC DAIRY PRODUCTS-PROVISIONS,OTHER NONDURABLE GOODS
10 Oct 2014,LINENS DIRECT LTD,CHILDRENS SERVICES,57 LICHFIELD ROAD,18.15,FURNITURE & EQUIPMENT,"DRAPERY, UPHOLSTERY, AND WINDOW COVERINGS STORES"
10 Oct 2014,ARTHUR BRETT CATER,NEIGHBOURHOOD SERVICES,CA FIBBERSLEY PARK PRIMARY SCHOOL,23.84,FRUIT & VEGETABLES OTHER-PROVISIONS,MISCELLANEOUS FOOD STORES & CONVENIENCE STORES
10 Oct 2014,WWW.CONNEVANS.COM,CHILDRENS SERVICES,SEN,77.88,MISCELLANEOUS SUPPLIES,MISCELLANEOUS AND SPECIALTY RETAIL STORES
10 Oct 2014,ARTHUR BRETT CATER,NEIGHBOURHOOD SERVICES,CA TOWN HALL RESTAURANT - CATERING,22.75,FRUIT & VEGETABLES OTHER-PROVISIONS,MISCELLANEOUS FOOD STORES & CONVENIENCE STORES
10 Oct 2014,DARLASTON BUILDERS,CHILDRENS SERVICES,ALUMWELL NURSERY,93.75,GENERAL MATERIALS,LUMBER & BUILDING MATERIALS STORES
10 Oct 2014,AMAZON *MKTPLCE EU-UK,NEIGHBOURHOOD SERVICES,NEW ART GALLERY - ADMIN,6.15,STATIONERY & GENERAL SUPPLIES-OFFICE EXP,BOOK STORES
10 Oct 2014,AMAZON *MKTPLCE EU-UK,CHILDRENS SERVICES,CHUCKERY PRIMARY SCHOOL,15.40,LANDSCAPE WORK-OP MTCE,BOOK STORES
10 Oct 2014,OFFICE DEPOT,RESOURCES,PRINT STORES,27.50,STATIONERY & GENERAL SUPPLIES-OFFICE EXP,"STATIONERY, OFFICE SUPPLIES AND WRITING PAPER"
10 Oct 2014,123-REG.CO.UK,REGENERATION,ERDF-AUTHORITY PARTNERS/TECHNICAL ASSISTANCE PROGRAMME,8.38,OFFICER/STAFF-PUBLIC TRANSPORT,COMPUTER NETWORK/INFORMATION SERVICES
10 Oct 2014,JOHAL DAIRIES LTD,NEIGHBOURHOOD SERVICES,CA ST JOHNS C.E. PRIMARY SCHOOL,4.25,MISC DAIRY PRODUCTS-PROVISIONS,OTHER NONDURABLE GOODS
10 Oct 2014,JOHAL DAIRIES LTD,CHILDRENS SERVICES,STROUD FAMILY CENTRE,5.97,GENERAL PROVISIONS-PROVISIONS,OTHER NONDURABLE GOODS
10 Oct 2014,OFFICE DEPOT,RESOURCES,PRINT STORES,-27.50,STATIONERY & GENERAL SUPPLIES-OFFICE EXP,"STATIONERY, OFFICE SUPPLIES AND WRITING PAPER"
10 Oct 2014,JOHAL DAIRIES LTD,NEIGHBOURHOOD SERVICES,CA ST GILES C.E. PRIMARY SCHOOL,53.40,MISC DAIRY PRODUCTS-PROVISIONS,OTHER NONDURABLE GOODS
10 Oct 2014,B&M RETAIL LTD,CHILDRENS SERVICES,SPINDLETREE,35.96,RESIDENTS PERSONAL EXPENSES-ALLOWANCES TO S/S CLIENTS,DISCOUNT STORES
10 Oct 2014,JOHAL DAIRIES LTD,NEIGHBOURHOOD SERVICES,CA WATLING STREET PRIMARY SCHOOL,17.50,MISC DAIRY PRODUCTS-PROVISIONS,OTHER NONDURABLE GOODS
10 Oct 2014,JOHAL DAIRIES LTD,SOCIAL CARE & INCLUSION,FALLINGS HEATH,31.63,MISC DAIRY PRODUCTS-PROVISIONS,OTHER NONDURABLE GOODS
10 Oct 2014,PAYPAL,CHILDRENS SERVICES,CITIZENSHIP,115.00,GENERAL MATERIALS,"ORGANIZATIONS, CHARITABLE AND SOCIAL SERVICE"
10 Oct 2014,OFFICE DEPOT,RESOURCES,TENANCY SERVICE,2.52,STATIONERY & GENERAL SUPPLIES-OFFICE EXP,"STATIONERY, OFFICE SUPPLIES AND WRITING PAPER"
10 Oct 2014,FARMFOODS- WALSALL,CHILDRENS SERVICES,REDRUTH ROAD,1.00,GENERAL PROVISIONS-PROVISIONS,GROCERY STORES AND SUPERMARKETS
10 Oct 2014,FARMFOODS- WALSALL,CHILDRENS SERVICES,REDRUTH ROAD,5.74,GENERAL PROVISIONS-PROVISIONS,GROCERY STORES AND SUPERMARKETS
10 Oct 2014,AMAZON *MKTPLCE EU-UK,CHILDRENS SERVICES,ENRICHMENT,33.98,GENERAL MATERIALS,BOOK STORES
10 Oct 2014,JOHAL DAIRIES LTD,NEIGHBOURHOOD SERVICES,CA ST BERNADETTES CATHOLIC PRIMARY SCHOOL,34.36,MISC DAIRY PRODUCTS-PROVISIONS,OTHER NONDURABLE GOODS
10 Oct 2014,OFFICE DEPOT,CHILDRENS SERVICES,LOOKED AFTER CHILDRENS SOCIAL WORK TEAM,153.97,STATIONERY & GENERAL SUPPLIES-OFFICE EXP,"STATIONERY, OFFICE SUPPLIES AND WRITING PAPER"
10 Oct 2014,JOHAL DAIRIES LTD,NEIGHBOURHOOD SERVICES,CA GREEN ROCK PRIMARY,31.52,MISC DAIRY PRODUCTS-PROVISIONS,OTHER NONDURABLE GOODS
10 Oct 2014,JOHAL DAIRIES LTD,NEIGHBOURHOOD SERVICES,CA ELMORE GREEN PRIMARY SCHOOL,10.22,MISC DAIRY PRODUCTS-PROVISIONS,OTHER NONDURABLE GOODS
10 Oct 2014,JOHAL DAIRIES LTD,NEIGHBOURHOOD SERVICES,CA BEACON PRIMARY SCHOOL,99.46,MISC DAIRY PRODUCTS-PROVISIONS,OTHER NONDURABLE GOODS
10 Oct 2014,JOHAL DAIRIES LTD,NEIGHBOURHOOD SERVICES,CA FIBBERSLEY PARK PRIMARY SCHOOL,33.86,MISC DAIRY PRODUCTS-PROVISIONS,OTHER NONDURABLE GOODS
10 Oct 2014,BUTLINS HOLIDAYS,CHILDRENS SERVICES,57 LICHFIELD ROAD,934.00,RESIDENTS PERSONAL EXPENSES-ALLOWANCES TO S/S CLIENTS,"HOTELS, MOTELS, RESORTS"
10 Oct 2014,B&M RETAIL LTD,CHILDRENS SERVICES,57 LICHFIELD ROAD,93.97,FURNITURE & EQUIPMENT,DISCOUNT STORES
10 Oct 2014,VIRGINTRAINS.CO.UK,NEIGHBOURHOOD SERVICES,PUBLIC HEALTH BUSINESS SUPPORT,164.00,OFFICER/STAFF-PUBLIC TRANSPORT,PASSENGER RAILWAYS
10 Oct 2014,OFFICE DEPOT,REGENERATION,CFR 876 DARLASTON PROJECT MANAGEMENT,46.37,STATIONERY & GENERAL SUPPLIES-OFFICE EXP,"STATIONERY, OFFICE SUPPLIES AND WRITING PAPER"
10 Oct 2014,OFFICE DEPOT,SOCIAL CARE & INCLUSION,INTEGRATED BUSINESS PROCESSES & SERVICES,38.51,STATIONERY & GENERAL SUPPLIES-OFFICE EXP,"STATIONERY, OFFICE SUPPLIES AND WRITING PAPER"
10 Oct 2014,OYSTER COMMUNICATIONS,RESOURCES,SIT-CORPORATE SERVICES,9.00,LANGUAGES & INTERPRETATION-SERVICES,PROFESSIONAL SERVICES
10 Oct 2014,JOHAL DAIRIES LTD,NEIGHBOURHOOD SERVICES,CA LEAMORE PRIMARY SCHOOL,3.43,MISC DAIRY PRODUCTS-PROVISIONS,OTHER NONDURABLE GOODS
10 Oct 2014,JOHAL DAIRIES LTD,NEIGHBOURHOOD SERVICES,CA BIRCHILLS CE PRIMARY COMMUNITY SCHOOL,33.48,MISC DAIRY PRODUCTS-PROVISIONS,OTHER NONDURABLE GOODS
10 Oct 2014,AMAZON EU,CHILDRENS SERVICES,CLUSTER 5 DARLASTON,220.33,NEW-FURNITURE & EQUIPMENT,OTHER DIRECT MARKETING-OTHER DIRECT MARKETERS
10 Oct 2014,JOHAL DAIRIES LTD,NEIGHBOURHOOD SERVICES,CA ELMWOOD SPECIAL SCHOOL,4.20,MISC DAIRY PRODUCTS-PROVISIONS,OTHER NONDURABLE GOODS
10 Oct 2014,IKEA,SOCIAL CARE & INCLUSION,FALLINGS HEATH,76.90,FOOD AND BEVERAGES-PROVISIONS,MISCELLANEOUS HOUSE FURNISHING SPECIALTY SHOPS
10 Oct 2014,JOHAL DAIRIES LTD,NEIGHBOURHOOD SERVICES,CA JOSEPH LECKIE COMMUNITY TECHNOLOGY COLLEGE,28.78,MISC DAIRY PRODUCTS-PROVISIONS,OTHER NONDURABLE GOODS
10 Oct 2014,WWW.FLYBE.COBC3FG7,CHILDRENS SERVICES,SAFEGUARDING & FAMILY SUPPORT,251.22,OTHER-TRAVEL ALLOWANCES,AIRLINES AND AIR CARRIERS
10 Oct 2014,OFFICE DEPOT,SOCIAL CARE & INCLUSION,INTEGRATED BUSINESS PROCESSES & SERVICES,87.58,STATIONERY & GENERAL SUPPLIES-OFFICE EXP,"STATIONERY, OFFICE SUPPLIES AND WRITING PAPER"
10 Oct 2014,JOHAL DAIRIES LTD,NEIGHBOURHOOD SERVICES,CA BLUE COAT C OF E PERFORMING ARTS COLLEGE,18.50,MISC DAIRY PRODUCTS-PROVISIONS,OTHER NONDURABLE GOODS
10 Oct 2014,JOHAL DAIRIES LTD,NEIGHBOURHOOD SERVICES,CA LEIGHSWOOD PRIMARY SCHOOL,13.44,MISC DAIRY PRODUCTS-PROVISIONS,OTHER NONDURABLE GOODS
10 Oct 2014,TP WALSALL BM,NEIGHBOURHOOD SERVICES,COMMUNITY LIAISON,9.48,"REPAIRS,ALTERATIONS & MAINTENANCE-PREM",LUMBER & BUILDING MATERIALS STORES
10 Oct 2014,OFFICE DEPOT,SOCIAL CARE & INCLUSION,INTEGRATED BUSINESS PROCESSES & SERVICES,28.44,GENERAL MATERIALS,"STATIONERY, OFFICE SUPPLIES AND WRITING PAPER"
10 Oct 2014,AMAZON *MKTPLCE EU-UK,CHILDRENS SERVICES,CLUSTER 5 DARLASTON,28.99,MISCELLANEOUS SUPPLIES,MISCELLANEOUS AND SPECIALTY RETAIL STORES
10 Oct 2014,ARRIVA PASSENGER S,NEIGHBOURHOOD SERVICES,AP QUALITY & PERFORMANCE DISCRETIONARY LEARNER SUP,175.50,HIRE OF VEHICLES,AUTOMOTIVE SERVICE SHOPS
10 Oct 2014,B&M RETAIL LTD,CHILDRENS SERVICES,SPINDLETREE,11.98,RESIDENTS PERSONAL EXPENSES-ALLOWANCES TO S/S CLIENTS,DISCOUNT STORES
10 Oct 2014,JOHAL DAIRIES LTD,NEIGHBOURHOOD SERVICES,CA MEADOW VIEW JMI PRIMARY SCHOOL,6.31,MISC DAIRY PRODUCTS-PROVISIONS,OTHER NONDURABLE GOODS
10 Oct 2014,DUNELM (SOFT FURNISHIN,CHILDRENS SERVICES,57 LICHFIELD ROAD,29.73,FURNITURE & EQUIPMENT,"DRAPERY, UPHOLSTERY, AND WINDOW COVERINGS STORES"
10 Oct 2014,JOHAL DAIRIES LTD,NEIGHBOURHOOD SERVICES,CA BLAKENALL HEATH JUNIOR SCHOOL,13.95,MISC DAIRY PRODUCTS-PROVISIONS,OTHER NONDURABLE GOODS
10 Oct 2014,JOHAL DAIRIES LTD,NEIGHBOURHOOD SERVICES,CA OLD HALL SPECIAL SCHOOL,9.56,MISC DAIRY PRODUCTS-PROVISIONS,OTHER NONDURABLE GOODS
10 Oct 2014,JOHAL DAIRIES LTD,NEIGHBOURHOOD SERVICES,CA LITTLE BLOXWICH CE PRIMARY SCHOOL,23.00,MISC DAIRY PRODUCTS-PROVISIONS,OTHER NONDURABLE GOODS
10 Oct 2014,JOHAL DAIRIES LTD,CHILDRENS SERVICES,57 LICHFIELD ROAD,15.24,GENERAL PROVISIONS-PROVISIONS,OTHER NONDURABLE GOODS
10 Oct 2014,ARTHUR BRETT CATER,NEIGHBOURHOOD SERVICES,CA BARCROFT D/C,35.08,FRUIT & VEGETABLES OTHER-PROVISIONS,MISCELLANEOUS FOOD STORES & CONVENIENCE STORES
10 Oct 2014,AMAZON *MKTPLCE EU-UK,CHILDRENS SERVICES,CLUSTER 5 DARLASTON,14.98,NEW-FURNITURE & EQUIPMENT,BOOK STORES
10 Oct 2014,TRAVEL WEST MIDLAN,CHILDRENS SERVICES,LOOKED AFTER CHILDRENS SOCIAL WORK TEAM,76.00,TRANSFER PAYMENTS - SOCIAL SERVICES CLIENTS,BUS LINES
10 Oct 2014,JOHAL DAIRIES LTD,NEIGHBOURHOOD SERVICES,CA LINDENS PRIMARY SCHOOL,27.06,MISC DAIRY PRODUCTS-PROVISIONS,OTHER NONDURABLE GOODS
10 Oct 2014,JOHAL DAIRIES LTD,NEIGHBOURHOOD SERVICES,TOWN HALL RESTAURANT BISTRO,38.51,MISC DAIRY PRODUCTS-PROVISIONS,OTHER NONDURABLE GOODS
10 Oct 2014,IKEA,RESOURCES,TENANCY SERVICE,435.00,FURNITURE & EQUIPMENT,MISCELLANEOUS HOUSE FURNISHING SPECIALTY SHOPS
10 Oct 2014,TRAVELODGE WEBSITE,CHILDRENS SERVICES,SAFEGUARDING & FAMILY SUPPORT,157.70,HOTEL ACCOMMODATION-EMPLOYEES,TRAVELODGE
10 Oct 2014,OFFICE DEPOT,REGENERATION,CENTRALISED STATIONERY,2.52,STATIONERY & GENERAL SUPPLIES-OFFICE EXP,"STATIONERY, OFFICE SUPPLIES AND WRITING PAPER"
10 Oct 2014,JOHAL DAIRIES LTD,NEIGHBOURHOOD SERVICES,CA TOWN HALL RESTAURANT - CATERING,29.66,MISC DAIRY PRODUCTS-PROVISIONS,OTHER NONDURABLE GOODS
10 Oct 2014,JOHAL DAIRIES LTD,NEIGHBOURHOOD SERVICES,CA ST ANNES CATHOLIC PRIMARY SCHOOL,17.45,MISC DAIRY PRODUCTS-PROVISIONS,OTHER NONDURABLE GOODS
10 Oct 2014,AMAZON *MKTPLCE EU-UK,CHILDRENS SERVICES,ADMINISTRATIVE SUPPLIES,12.95,GENERAL MATERIALS,BOOK STORES
10 Oct 2014,JOHAL DAIRIES LTD,NEIGHBOURHOOD SERVICES,CA WALSALL WOOD PRIMARY SCHOOL,4.20,MISC DAIRY PRODUCTS-PROVISIONS,OTHER NONDURABLE GOODS
10 Oct 2014,AMAZON *MKTPLCE EU-UK,CHILDRENS SERVICES,STANLEYS NURSERY,7.88,GENERAL MATERIALS,BOOK STORES
10 Oct 2014,JOHAL DAIRIES LTD,NEIGHBOURHOOD SERVICES,CA BARCROFT D/C,15.84,MISC DAIRY PRODUCTS-PROVISIONS,OTHER NONDURABLE GOODS
10 Oct 2014,DUNELM (SOFT FURNISHIN,CHILDRENS SERVICES,57 LICHFIELD ROAD,15.98,FURNITURE & EQUIPMENT,"DRAPERY, UPHOLSTERY, AND WINDOW COVERINGS STORES"
10 Oct 2014,IBIS CARDIFF CITY CENTRE,NEIGHBOURHOOD SERVICES,NEW ART GALLERY - ADMIN,115.05,EXTERNAL TRAINING,"HOTELS, MOTELS, RESORTS"
10 Oct 2014,JOHAL DAIRIES LTD,NEIGHBOURHOOD SERVICES,CA CASTLEFORT JMI SCHOOL,20.05,MISC DAIRY PRODUCTS-PROVISIONS,OTHER NONDURABLE GOODS
10 Oct 2014,OFFICE DEPOT,NEIGHBOURHOOD SERVICES,TRAFFIC CONTROL,148.52,STATIONERY & GENERAL SUPPLIES-OFFICE EXP,"STATIONERY, OFFICE SUPPLIES AND WRITING PAPER"
10 Oct 2014,JOHAL DAIRIES LTD,NEIGHBOURHOOD SERVICES,CA POOL HAYES PRIMARY SCHOOL,7.24,MISC DAIRY PRODUCTS-PROVISIONS,OTHER NONDURABLE GOODS
10 Oct 2014,OFFICE DEPOT,SOCIAL CARE & INCLUSION,INTEGRATED BUSINESS PROCESSES & SERVICES,82.37,GENERAL MATERIALS,"STATIONERY, OFFICE SUPPLIES AND WRITING PAPER"
10 Oct 2014,PARENTPAY.COM&PAY24-7.CO,CHILDRENS SERVICES,57 LICHFIELD ROAD,5.71,GENERAL PROVISIONS-PROVISIONS,"COLLEGES, UNIVERSITIES, PROFESSIONAL SCHOOLS"
10 Oct 2014,CHICKEN JOES LTD,NEIGHBOURHOOD SERVICES,CA BEACON PRIMARY SCHOOL,161.70,FROZEN FOODS-PROVISIONS,CATERERS
10 Oct 2014,WWW.INVESTEC.CO.UK,CHILDRENS SERVICES,CLUSTER 4 ALUMWELL & BIRCHILLS,176.61,LEASING/HIRE/RENTAL-EQUIPMENT,EQUIPMENT RENTAL AND LEASING SERVICES
10 Oct 2014,OFFICE DEPOT,CHILDRENS SERVICES,FAMILY PLACEMENTS,150.08,STATIONERY & GENERAL SUPPLIES-OFFICE EXP,"STATIONERY, OFFICE SUPPLIES AND WRITING PAPER"
10 Oct 2014,JOHAL DAIRIES LTD,SOCIAL CARE & INCLUSION,REABLEMENT TEAM - HOLLY BANK,89.07,MISC DAIRY PRODUCTS-PROVISIONS,OTHER NONDURABLE GOODS
10 Oct 2014,B&M RETAIL LTD,CHILDRENS SERVICES,57 LICHFIELD ROAD,84.14,FURNITURE & EQUIPMENT,DISCOUNT STORES
10 Oct 2014,TRAINLINE.COM,NEIGHBOURHOOD SERVICES,NEW ART GALLERY - ADMIN,35.60,OFFICER/STAFF-PUBLIC TRANSPORT,PASSENGER RAILWAYS
10 Oct 2014,OFFICE DEPOT,CHILDRENS SERVICES,FAMILY PLACEMENTS,38.27,STATIONERY & GENERAL SUPPLIES-OFFICE EXP,"STATIONERY, OFFICE SUPPLIES AND WRITING PAPER"
10 Oct 2014,OFFICE DEPOT,CHILDRENS SERVICES,ADMINISTRATIVE SUPPLIES,122.86,STATIONERY & GENERAL SUPPLIES-OFFICE EXP,"STATIONERY, OFFICE SUPPLIES AND WRITING PAPER"
10 Oct 2014,ARTHUR BRETT CATER,NEIGHBOURHOOD SERVICES,CA CALDMORE COMMUNITY PRIMARY SCHOOL,36.44,FRUIT & VEGETABLES OTHER-PROVISIONS,MISCELLANEOUS FOOD STORES & CONVENIENCE STORES
10 Oct 2014,JOHAL DAIRIES LTD,NEIGHBOURHOOD SERVICES,CA CALDMORE COMMUNITY PRIMARY SCHOOL,27.62,MISC DAIRY PRODUCTS-PROVISIONS,OTHER NONDURABLE GOODS
10 Oct 2014,AMAZON EU,NEIGHBOURHOOD SERVICES,ACTIVE ENGLAND,6.79,NEW-FURNITURE & EQUIPMENT,OTHER DIRECT MARKETING-OTHER DIRECT MARKETERS
10 Oct 2014,JOHAL DAIRIES LTD,NEIGHBOURHOOD SERVICES,CA CROFT COMMUNITY PRIMARY SCHOOL,5.70,MISC DAIRY PRODUCTS-PROVISIONS,OTHER NONDURABLE GOODS
10 Oct 2014,AMAZON *MKTPLCE EU-UK,CHILDRENS SERVICES,STANLEYS NURSERY,10.20,FURNITURE & EQUIPMENT,BOOK STORES
10 Oct 2014,POUNDWORLD RETAIL,CHILDRENS SERVICES,57 LICHFIELD ROAD,9.96,FURNITURE & EQUIPMENT,DISCOUNT STORES
10 Oct 2014,JOHAL DAIRIES LTD,NEIGHBOURHOOD SERVICES,CA COOPER JORDAN CE PRIMARY SCHOOL,16.80,MISC DAIRY PRODUCTS-PROVISIONS,OTHER NONDURABLE GOODS
10 Oct 2014,WILKO RETAIL LIMIT,CHILDRENS SERVICES,57 LICHFIELD ROAD,2.50,FURNITURE & EQUIPMENT,HOUSEHOLD APPLIANCE STORES
10 Oct 2014,AMAZON EU,CHILDRENS SERVICES,PUPIL PREMIUM,29.00,NEW-FURNITURE & EQUIPMENT,OTHER DIRECT MARKETING-OTHER DIRECT MARKETERS
10 Oct 2014,JOHAL DAIRIES LTD,NEIGHBOURHOOD SERVICES,CA RADLEYS PRIMARY SCHOOL,44.03,MISC DAIRY PRODUCTS-PROVISIONS,OTHER NONDURABLE GOODS
10 Oct 2014,TRAINLINE.COM,NEIGHBOURHOOD SERVICES,NAG - TEMPORARY EXHIBITIONS,176.56,OFFICER/STAFF-PUBLIC TRANSPORT,PASSENGER RAILWAYS
10 Oct 2014,ARTHUR BRETT CATER,NEIGHBOURHOOD SERVICES,TOWN HALL RESTAURANT BISTRO,32.46,FRUIT & VEGETABLES OTHER-PROVISIONS,MISCELLANEOUS FOOD STORES & CONVENIENCE STORES
10 Oct 2014,JOHAL DAIRIES LTD,NEIGHBOURHOOD SERVICES,CA RUSHALL JMI SCHOOL,38.60,MISC DAIRY PRODUCTS-PROVISIONS,OTHER NONDURABLE GOODS
10 Oct 2014,LATTITUDE,NEIGHBOURHOOD SERVICES,LEISURE & CULTURE SUPPORT BUDGET,1038.00,EXTERNAL TRAINING,"COLLEGES, UNIVERSITIES, PROFESSIONAL SCHOOLS"
10 Oct 2014,JOHAL DAIRIES LTD,NEIGHBOURHOOD SERVICES,CA JANE LANE SPECIAL SCHOOL,14.55,MISC DAIRY PRODUCTS-PROVISIONS,OTHER NONDURABLE GOODS
10 Oct 2014,ASDA STORES 7134,NEIGHBOURHOOD SERVICES,VP SCL VOCATIONAL & SUPPORTED LEARNING,33.10,CATERING,GROCERY STORES AND SUPERMARKETS
10 Oct 2014,ASDA STORES 7134,NEIGHBOURHOOD SERVICES,VP SCL VOCATIONAL & SUPPORTED LEARNING,5.00,CATERING,GROCERY STORES AND SUPERMARKETS
10 Oct 2014,ASDA STORES 7134,NEIGHBOURHOOD SERVICES,VP SCL VOCATIONAL & SUPPORTED LEARNING,244.42,CATERING,GROCERY STORES AND SUPERMARKETS
10 Oct 2014,JOHAL DAIRIES LTD,NEIGHBOURHOOD SERVICES,CA BROWNHILLS WEST PRIMARY SCHOOL,16.80,MISC DAIRY PRODUCTS-PROVISIONS,OTHER NONDURABLE GOODS
10 Oct 2014,NATIONAL SHOWER SP,NEIGHBOURHOOD SERVICES,DARLASTON LEISURE CENTRE,235.20,FURNITURE & EQUIPMENT,"EQUIPMENT, FURNITURE, AND HOME FURNISHINGS STORES "
10 Oct 2014,PAYPAL,CHILDRENS SERVICES,ICT LEARNING RESOURCES,16.00,GENERAL MATERIALS,CAMERA AND PHOTOGRAPHIC SUPPLY STORES
10 Oct 2014,OFFICE DEPOT,RESOURCES,BUSINESS SUPPORT - POST ROOM,105.47,COMPUTER STATIONERY-OFFICE EXP,"STATIONERY, OFFICE SUPPLIES AND WRITING PAPER"
10 Oct 2014,AMAZON *MKTPLCE EU-UK,CHILDRENS SERVICES,GENERAL RESOURCES & MISC,27.78,GENERAL MATERIALS,BOOK STORES
10 Oct 2014,ARTHUR BRETT CATER,NEIGHBOURHOOD SERVICES,CA CALDMORE COMMUNITY PRIMARY SCHOOL,48.46,FRUIT & VEGETABLES OTHER-PROVISIONS,MISCELLANEOUS FOOD STORES & CONVENIENCE STORES
10 Oct 2014,SCREWFIX,NEIGHBOURHOOD SERVICES,DEPOT,5.99,GENERAL MATERIALS,LUMBER & BUILDING MATERIALS STORES
10 Oct 2014,JOHAL DAIRIES LTD,NEIGHBOURHOOD SERVICES,CA ST FRANCIS CATHOLIC PRIMARY SCHOOL,8.92,MISC DAIRY PRODUCTS-PROVISIONS,OTHER NONDURABLE GOODS
10 Oct 2014,JOHAL DAIRIES LTD,NEIGHBOURHOOD SERVICES,CA MOORCROFT WOOD,33.54,MISC DAIRY PRODUCTS-PROVISIONS,OTHER NONDURABLE GOODS
10 Oct 2014,ALLPAY.NET VISA AND MAST,RESOURCES,HOMELESS PREVENTION GRANT,94.92,RENTS-OTHER,REAL ESTATE MANAGERS - RENTALS
10 Oct 2014,JOHAL DAIRIES LTD,NEIGHBOURHOOD SERVICES,CA BUSILL JONES PRIMARY SCHOOL,60.00,MISC DAIRY PRODUCTS-PROVISIONS,OTHER NONDURABLE GOODS
10 Oct 2014,V & A MUSEUM,CHILDRENS SERVICES,ST FRANCIS OF ASSISI CATHOLIC TECHNOLOGY COLLEGE,16.00,GENERAL MATERIALS,MISCELLANEOUS GENERAL MERCHANDISE
10 Oct 2014,LOCKS & FITTINGS,NEIGHBOURHOOD SERVICES,COMMUNITY LIAISON,66.50,"REPAIRS,ALTERATIONS & MAINTENANCE-PREM",HARDWARE EQUIPMENT AND SUPPLIES
10 Oct 2014,V & A MUSEUM,CHILDRENS SERVICES,ST FRANCIS OF ASSISI CATHOLIC TECHNOLOGY COLLEGE,144.00,GENERAL MATERIALS,MISCELLANEOUS GENERAL MERCHANDISE
10 Oct 2014,WWW.JOSEF-WEINBERGER.C,NEIGHBOURHOOD SERVICES,FOREST ARTS CENTRE,500.00,FURNITURE & EQUIPMENT,MUSIC STORES & MUSICAL INSTRUMENTS
10 Oct 2014,WWW.GIROFOOD.COM,NEIGHBOURHOOD SERVICES,CA BARCROFT D/C,69.85,DISPOSABLES-PROVISIONS,WHOLESALE CLUBS
10 Oct 2014,WWW.GIROFOOD.COM,NEIGHBOURHOOD SERVICES,CA BROWNHILLS WEST PRIMARY SCHOOL,44.52,DISPOSABLES-PROVISIONS,WHOLESALE CLUBS
11 Oct 2014,JOHAL DAIRIES LTD,NEIGHBOURHOOD SERVICES,CA ST MICHAELS C.E. PRIMARY SCHOOL,32.20,MISC DAIRY PRODUCTS-PROVISIONS,OTHER NONDURABLE GOODS
11 Oct 2014,OFFICE DEPOT,NEIGHBOURHOOD SERVICES,RESOURCE MANAGEMENT,96.50,STATIONERY & GENERAL SUPPLIES-OFFICE EXP,"STATIONERY, OFFICE SUPPLIES AND WRITING PAPER"
11 Oct 2014,OFFICE DEPOT,SOCIAL CARE & INCLUSION,INTEGRATED BUSINESS PROCESSES & SERVICES,95.58,STATIONERY & GENERAL SUPPLIES-OFFICE EXP,"STATIONERY, OFFICE SUPPLIES AND WRITING PAPER"
11 Oct 2014,AMAZON EU,CHILDRENS SERVICES,CLUSTER 5 DARLASTON,10.58,NEW-FURNITURE & EQUIPMENT,OTHER DIRECT MARKETING-OTHER DIRECT MARKETERS
11 Oct 2014,ATLANTIC SHOPPING,CHILDRENS SERVICES,SPINDLETREE,118.00,FURNITURE & EQUIPMENT,"EQUIPMENT, FURNITURE, AND HOME FURNISHINGS STORES "
11 Oct 2014,JOHAL DAIRIES LTD,NEIGHBOURHOOD SERVICES,CA GREEN ROCK PRIMARY,-31.52,MISC DAIRY PRODUCTS-PROVISIONS,OTHER NONDURABLE GOODS
11 Oct 2014,COMPLETESAVE.CO.UK,CHILDRENS SERVICES,FAMILY PLACEMENTS,-15.00,TAXIS-TRAVEL ALLOWANCES,DIRECT MARKETING CONTINUITY SUBSCRIPTION MERCHANTS
11 Oct 2014,OFFICE DEPOT,SOCIAL CARE & INCLUSION,RESPONSE SERVICES,263.10,STATIONERY & GENERAL SUPPLIES-OFFICE EXP,"STATIONERY, OFFICE SUPPLIES AND WRITING PAPER"
11 Oct 2014,JOHAL DAIRIES LTD,NEIGHBOURHOOD SERVICES,CA GREEN ROCK PRIMARY,31.52,MISC DAIRY PRODUCTS-PROVISIONS,OTHER NONDURABLE GOODS
11 Oct 2014,JOHAL DAIRIES LTD,NEIGHBOURHOOD SERVICES,CA GREEN ROCK PRIMARY,31.52,MISC DAIRY PRODUCTS-PROVISIONS,OTHER NONDURABLE GOODS
11 Oct 2014,OFFICE DEPOT,CHILDRENS SERVICES,VIRTUAL SCHOOL,10.42,STATIONERY & GENERAL SUPPLIES-OFFICE EXP,"STATIONERY, OFFICE SUPPLIES AND WRITING PAPER"
11 Oct 2014,JOHAL DAIRIES LTD,NEIGHBOURHOOD SERVICES,CA GREEN ROCK PRIMARY,-31.52,MISC DAIRY PRODUCTS-PROVISIONS,OTHER NONDURABLE GOODS
11 Oct 2014,B&M RETAIL LTD,CHILDRENS SERVICES,SPINDLETREE,67.87,RESIDENTS PERSONAL EXPENSES-ALLOWANCES TO S/S CLIENTS,DISCOUNT STORES
12 Oct 2014,ASDA SUPERSTORE,CHILDRENS SERVICES,SPINDLETREE,17.00,RESIDENTS PERSONAL EXPENSES-ALLOWANCES TO S/S CLIENTS,GROCERY STORES AND SUPERMARKETS
12 Oct 2014,MARKS & SPENCER,CHILDRENS SERVICES,ADMINISTRATIVE SUPPLIES,15.00,STATIONERY & GENERAL SUPPLIES-OFFICE EXP,GROCERY STORES AND SUPERMARKETS
12 Oct 2014,TESCO STORES 6161,CHILDRENS SERVICES,FOOD TECH,2.72,GENERAL MATERIALS,GROCERY STORES AND SUPERMARKETS
12 Oct 2014,DEBENHAMS.COM,CHILDRENS SERVICES,"43A HILTON ROAD, WILLENHALL",23.98,RESIDENTS PERSONAL EXPENSES-ALLOWANCES TO S/S CLIENTS,DEPARTMENT STORES
12 Oct 2014,AMAZON *MKTPLCE EU-UK,CHILDRENS SERVICES,ADMINISTRATIVE SUPPLIES,31.53,GENERAL MATERIALS,BOOK STORES
12 Oct 2014,TESCO STORES 6161,CHILDRENS SERVICES,HOSPITALITY & CATERING,30.30,GENERAL MATERIALS,GROCERY STORES AND SUPERMARKETS
12 Oct 2014,TESCO STORES 6161,CHILDRENS SERVICES,ELMWOOD SECONDARY SPECIAL SCHOOL,1.80,BREAD-GENERAL-PROVISIONS,GROCERY STORES AND SUPERMARKETS
13 Oct 2014,ASDA STORES 7134,CHILDRENS SERVICES,"CLUSTER 1 BROWNHILLS,GREENFIELDS,PELSALL",47.72,FOOD AND BEVERAGES-PROVISIONS,GROCERY STORES AND SUPERMARKETS
13 Oct 2014,WELSH BROS FOODS LTD,NEIGHBOURHOOD SERVICES,CA LINDENS PRIMARY SCHOOL,61.94,MEAT-PROVISIONS,FREEZER AND LOCKER MEAT PROVISIONERS
13 Oct 2014,WM MORRISON 063,CHILDRENS SERVICES,CLUSTER 4 ALUMWELL & BIRCHILLS,2.20,FOOD AND BEVERAGES-PROVISIONS,GROCERY STORES AND SUPERMARKETS
13 Oct 2014,WM MORRISON 063,CHILDRENS SERVICES,CLUSTER 4 ALUMWELL & BIRCHILLS,3.98,FOOD AND BEVERAGES-PROVISIONS,GROCERY STORES AND SUPERMARKETS
13 Oct 2014,THE TRAINLINE.COM,NEIGHBOURHOOD SERVICES,AP FINANCE & RESOURCES STAFF DEVELOPMENT,25.04,OFFICERS/STAFF-CAR ALLOWANCES,PASSENGER RAILWAYS
13 Oct 2014,WELSH BROS FOODS LTD,NEIGHBOURHOOD SERVICES,CA RADLEYS PRIMARY SCHOOL,214.77,MEAT-PROVISIONS,FREEZER AND LOCKER MEAT PROVISIONERS
13 Oct 2014,BLAKEMORE FOODSERVICE,NEIGHBOURHOOD SERVICES,CA BEACON PRIMARY SCHOOL,157.12,FROZEN FOODS-PROVISIONS,CATERERS
13 Oct 2014,W M MORRISONS.COM,CHILDRENS SERVICES,ALUMWELL NURSERY,52.00,FOOD AND BEVERAGES-PROVISIONS,GROCERY STORES AND SUPERMARKETS
13 Oct 2014,BLAKEMORE FOODSERVICE,NEIGHBOURHOOD SERVICES,CA OAKWOOD SPECIAL SCHOOL,205.47,DRY FOODS-PROVISIONS,CATERERS
13 Oct 2014,WWW.CONNEVANS.COM,CHILDRENS SERVICES,SEN,179.22,MISCELLANEOUS SUPPLIES,MISCELLANEOUS AND SPECIALTY RETAIL STORES
13 Oct 2014,WWW.ECO-SOL.CO.UK,CHILDRENS SERVICES,SPINDLETREE,45.45,PROFESSIONAL FEES AND SERVICES,OTHER DURABLE GOODS
13 Oct 2014,WELSH BROS FOODS LTD,NEIGHBOURHOOD SERVICES,CA RUSHALL JMI SCHOOL,66.78,MEAT-PROVISIONS,FREEZER AND LOCKER MEAT PROVISIONERS
13 Oct 2014,WELSH BROS FOODS LTD,NEIGHBOURHOOD SERVICES,CA WATLING STREET PRIMARY SCHOOL,159.15,MEAT-PROVISIONS,FREEZER AND LOCKER MEAT PROVISIONERS
13 Oct 2014,ASDA STORES 7134,CHILDRENS SERVICES,"CLUSTER 1 BROWNHILLS,GREENFIELDS,PELSALL",32.15,FOOD AND BEVERAGES-PROVISIONS,GROCERY STORES AND SUPERMARKETS
13 Oct 2014,WELSH BROS FOODS LTD,NEIGHBOURHOOD SERVICES,CA ST JOHNS C.E. PRIMARY SCHOOL,173.11,MEAT-PROVISIONS,FREEZER AND LOCKER MEAT PROVISIONERS
13 Oct 2014,ASDA SUPERSTORE,CHILDRENS SERVICES,"43A HILTON ROAD, WILLENHALL",4.00,GENERAL PROVISIONS-PROVISIONS,GROCERY STORES AND SUPERMARKETS
13 Oct 2014,AMAZON *MKTPLCE EU-UK,REGENERATION,CAPITAL-REGENERATION STRATEGIC TRANSPORTATION,-33.99,LIBRARY BOOKS,BOOK STORES
13 Oct 2014,BLAKEMORE FOODSERVICE,NEIGHBOURHOOD SERVICES,CA ST ANNES CATHOLIC PRIMARY SCHOOL,302.26,DRY FOODS-PROVISIONS,CATERERS
13 Oct 2014,TRAINLINE.COM,CHILDRENS SERVICES,SAFEGUARDING & FAMILY SUPPORT,171.87,OFFICER/STAFF-PUBLIC TRANSPORT,PASSENGER RAILWAYS
13 Oct 2014,TRAINLINE.COM,CHILDRENS SERVICES,EARLY YEARS AND DISABILITIES SERVICE,171.87,OFFICER/STAFF-PUBLIC TRANSPORT,PASSENGER RAILWAYS
13 Oct 2014,BLAKEMORE FOODSERVICE,NEIGHBOURHOOD SERVICES,CA OLD HALL SPECIAL SCHOOL,41.09,FROZEN FOODS-PROVISIONS,CATERERS
13 Oct 2014,W M MORRISONS.COM,CHILDRENS SERVICES,"CLUSTER 6 BENTLEY,LIGHTHOUSE,FIBBERSLEY",22.14,FOOD AND BEVERAGES-PROVISIONS,GROCERY STORES AND SUPERMARKETS
13 Oct 2014,W M MORRISONS.COM,CHILDRENS SERVICES,"CLUSTER 6 BENTLEY,LIGHTHOUSE,FIBBERSLEY",40.54,FOOD AND BEVERAGES-PROVISIONS,GROCERY STORES AND SUPERMARKETS
13 Oct 2014,BLAKEMORE FOODSERVICE,NEIGHBOURHOOD SERVICES,CA LINDENS PRIMARY SCHOOL,330.47,DRY FOODS-PROVISIONS,CATERERS
13 Oct 2014,BLAKEMORE FOODSERVICE,NEIGHBOURHOOD SERVICES,CA LINDENS PRIMARY SCHOOL,101.42,DRY FOODS-PROVISIONS,CATERERS
13 Oct 2014,BLAKEMORE FOODSERVICE,NEIGHBOURHOOD SERVICES,CA JOSEPH LECKIE COMMUNITY TECHNOLOGY COLLEGE,190.58,FROZEN FOODS-PROVISIONS,CATERERS
13 Oct 2014,ARTHUR BRETT CATER,NEIGHBOURHOOD SERVICES,CA BROWNHILLS WEST PRIMARY SCHOOL,91.24,FRUIT & VEGETABLES OTHER-PROVISIONS,MISCELLANEOUS FOOD STORES & CONVENIENCE STORES
13 Oct 2014,ARTHUR BRETT CATER,NEIGHBOURHOOD SERVICES,CA CASTLEFORT JMI SCHOOL,41.81,FRUIT & VEGETABLES OTHER-PROVISIONS,MISCELLANEOUS FOOD STORES & CONVENIENCE STORES
13 Oct 2014,WELSH BROS FOODS LTD,NEIGHBOURHOOD SERVICES,CA ST MICHAELS C.E. PRIMARY SCHOOL,119.13,MEAT-PROVISIONS,FREEZER AND LOCKER MEAT PROVISIONERS
13 Oct 2014,BLAKEMORE FOODSERVICE,NEIGHBOURHOOD SERVICES,CA TOWN HALL RESTAURANT - CATERING,363.12,DRY FOODS-PROVISIONS,CATERERS
13 Oct 2014,BLAKEMORE FOODSERVICE,NEIGHBOURHOOD SERVICES,CA MOORCROFT WOOD,78.64,FROZEN FOODS-PROVISIONS,CATERERS
13 Oct 2014,BLAKEMORE FOODSERVICE,NEIGHBOURHOOD SERVICES,CA MOORCROFT WOOD,7.68,FROZEN FOODS-PROVISIONS,CATERERS
13 Oct 2014,LUL TICKET MACHINE,NEIGHBOURHOOD SERVICES,NEW ART GALLERY - ADMIN,15.00,OFFICER/STAFF-PUBLIC TRANSPORT,PASSENGER RAILWAYS
13 Oct 2014,WELSH BROS FOODS LTD,NEIGHBOURHOOD SERVICES,CA GREEN ROCK PRIMARY,117.86,MEAT-PROVISIONS,FREEZER AND LOCKER MEAT PROVISIONERS
13 Oct 2014,BLAKEMORE FOODSERVICE,NEIGHBOURHOOD SERVICES,CA JANE LANE SPECIAL SCHOOL,2.19,FROZEN FOODS-PROVISIONS,CATERERS
13 Oct 2014,ARTHUR BRETT CATER,NEIGHBOURHOOD SERVICES,CA LEIGHSWOOD PRIMARY SCHOOL,112.53,FRUIT & VEGETABLES OTHER-PROVISIONS,MISCELLANEOUS FOOD STORES & CONVENIENCE STORES
13 Oct 2014,OFFICE DEPOT,NEIGHBOURHOOD SERVICES,NAG - DIGITAL MEDIA/IT,86.16,RIBBONS & CONSUMABLES-COMPUTER,"STATIONERY, OFFICE SUPPLIES AND WRITING PAPER"
13 Oct 2014,OFFICE DEPOT,NEIGHBOURHOOD SERVICES,NEW ART GALLERY - ADMIN,47.90,STATIONERY & GENERAL SUPPLIES-OFFICE EXP,"STATIONERY, OFFICE SUPPLIES AND WRITING PAPER"
13 Oct 2014,B & Q,CHILDRENS SERVICES,SPINDLETREE,28.78,RESIDENTS PERSONAL EXPENSES-ALLOWANCES TO S/S CLIENTS,LUMBER & BUILDING MATERIALS STORES
13 Oct 2014,BLAKEMORE FOODSERVICE,NEIGHBOURHOOD SERVICES,CA CROFT COMMUNITY PRIMARY SCHOOL,328.49,DRY FOODS-PROVISIONS,CATERERS
13 Oct 2014,B&M RETAIL LTD,CHILDRENS SERVICES,SPINDLETREE,29.42,RESIDENTS PERSONAL EXPENSES-ALLOWANCES TO S/S CLIENTS,DISCOUNT STORES
13 Oct 2014,FAST KEY SERVICES,CHILDRENS SERVICES,UNIVERSAL EDUCATION CLIENT UNIT,17.76,"REPAIRS,ALTERATIONS & MAINTENANCE-PREM",OTHER BUSINESS SERVICES
13 Oct 2014,HEATON CHAPEL STN TO,NEIGHBOURHOOD SERVICES,NEW ART GALLERY - ADMIN,79.20,OFFICER/STAFF-PUBLIC TRANSPORT,PASSENGER RAILWAYS
13 Oct 2014,BLAKEMORE FOODSERVICE,NEIGHBOURHOOD SERVICES,CA FIBBERSLEY PARK PRIMARY SCHOOL,-4.54,FROZEN FOODS-PROVISIONS,CATERERS
13 Oct 2014,WELSH BROS FOODS LTD,NEIGHBOURHOOD SERVICES,CA LEIGHSWOOD PRIMARY SCHOOL,137.11,MEAT-PROVISIONS,FREEZER AND LOCKER MEAT PROVISIONERS
13 Oct 2014,ARTHUR BRETT CATER,NEIGHBOURHOOD SERVICES,CA MEADOW VIEW JMI PRIMARY SCHOOL,65.61,FRUIT & VEGETABLES OTHER-PROVISIONS,MISCELLANEOUS FOOD STORES & CONVENIENCE STORES
13 Oct 2014,ARTHUR BRETT CATER,NEIGHBOURHOOD SERVICES,CA ST JOHNS C.E. PRIMARY SCHOOL,145.21,FRUIT & VEGETABLES OTHER-PROVISIONS,MISCELLANEOUS FOOD STORES & CONVENIENCE STORES
13 Oct 2014,BLAKEMORE FOODSERVICE,NEIGHBOURHOOD SERVICES,CA COOPER JORDAN CE PRIMARY SCHOOL,240.98,DRY FOODS-PROVISIONS,CATERERS
13 Oct 2014,BLAKEMORE FOODSERVICE,NEIGHBOURHOOD SERVICES,CA COOPER JORDAN CE PRIMARY SCHOOL,32.26,DRY FOODS-PROVISIONS,CATERERS
13 Oct 2014,WEST COAST TRAINS,NEIGHBOURHOOD SERVICES,NAG - TEMPORARY EXHIBITIONS,17.80,OFFICER/STAFF-PUBLIC TRANSPORT,PASSENGER RAILWAYS
13 Oct 2014,BLAKEMORE FOODSERVICE,NEIGHBOURHOOD SERVICES,TOWN HALL RESTAURANT BISTRO,129.41,DRY FOODS-PROVISIONS,CATERERS
13 Oct 2014,BLAKEMORE FOODSERVICE,NEIGHBOURHOOD SERVICES,TOWN HALL RESTAURANT BISTRO,484.84,DRY FOODS-PROVISIONS,CATERERS
13 Oct 2014,AMAZON *MKTPLCE EU-UK,CHILDRENS SERVICES,OUTDOOR EDUCATION,13.95,NEW-FURNITURE & EQUIPMENT,BOOK STORES
13 Oct 2014,ASDA STORES 7134,CHILDRENS SERVICES,"CLUSTER 3 BLOXWICH,BLAKENALL,HATHERTON,E STAMMERS",-1.97,FOOD AND BEVERAGES-PROVISIONS,GROCERY STORES AND SUPERMARKETS
13 Oct 2014,ARTHUR BRETT CATER,NEIGHBOURHOOD SERVICES,CA OAKWOOD SPECIAL SCHOOL,33.97,FRUIT & VEGETABLES OTHER-PROVISIONS,MISCELLANEOUS FOOD STORES & CONVENIENCE STORES
13 Oct 2014,SMART FOOD UK LIMITED,NEIGHBOURHOOD SERVICES,CA JOSEPH LECKIE COMMUNITY TECHNOLOGY COLLEGE,687.60,FROZEN FOODS-PROVISIONS,CATERERS
13 Oct 2014,ASDA STORES 7134,NEIGHBOURHOOD SERVICES,VP SCL VOCATIONAL & SUPPORTED LEARNING,0.85,CATERING,GROCERY STORES AND SUPERMARKETS
13 Oct 2014,ASDA STORES 7134,NEIGHBOURHOOD SERVICES,VP SCL VOCATIONAL & SUPPORTED LEARNING,148.69,CATERING,GROCERY STORES AND SUPERMARKETS
13 Oct 2014,BLAKEMORE FOODSERVICE,NEIGHBOURHOOD SERVICES,CA BIRCHILLS CE PRIMARY COMMUNITY SCHOOL,-8.85,FROZEN FOODS-PROVISIONS,CATERERS
13 Oct 2014,BLAKEMORE FOODSERVICE,NEIGHBOURHOOD SERVICES,CA BUSILL JONES PRIMARY SCHOOL,165.61,FROZEN FOODS-PROVISIONS,CATERERS
13 Oct 2014,BLAKEMORE FOODSERVICE,NEIGHBOURHOOD SERVICES,CA BUSILL JONES PRIMARY SCHOOL,7.68,FROZEN FOODS-PROVISIONS,CATERERS
13 Oct 2014,B & Q,CHILDRENS SERVICES,SPINDLETREE,55.00,RESIDENTS PERSONAL EXPENSES-ALLOWANCES TO S/S CLIENTS,LUMBER & BUILDING MATERIALS STORES
13 Oct 2014,ARTHUR BRETT CATER,NEIGHBOURHOOD SERVICES,CA WALSALL WOOD PRIMARY SCHOOL,37.51,FRUIT & VEGETABLES OTHER-PROVISIONS,MISCELLANEOUS FOOD STORES & CONVENIENCE STORES
13 Oct 2014,BLAKEMORE FOODSERVICE,NEIGHBOURHOOD SERVICES,CA BARCROFT D/C,204.30,FROZEN FOODS-PROVISIONS,CATERERS
13 Oct 2014,WELSH BROS FOODS LTD,NEIGHBOURHOOD SERVICES,TOWN HALL RESTAURANT BISTRO,59.29,MEAT-PROVISIONS,FREEZER AND LOCKER MEAT PROVISIONERS
13 Oct 2014,BOC TEL ORDER,NEIGHBOURHOOD SERVICES,DARLASTON TOWN HALL,9.24,CHEMICALS & SCIENTIFIC MATS-MATERIALS,OTHER CHEMICALS AND ALLIED PRODUCTS
13 Oct 2014,WELSH BROS FOODS LTD,NEIGHBOURHOOD SERVICES,CA BEACON PRIMARY SCHOOL,265.48,MEAT-PROVISIONS,FREEZER AND LOCKER MEAT PROVISIONERS
13 Oct 2014,PRET A MANGER,NEIGHBOURHOOD SERVICES,NEW ART GALLERY - ADMIN,8.30,MISC DAIRY PRODUCTS-PROVISIONS,"EATING PLACES, RESTAURANTS"
13 Oct 2014,ASDA STORES 4791,CHILDRENS SERVICES,SPINDLETREE,38.00,FURNITURE & EQUIPMENT,GROCERY STORES AND SUPERMARKETS
13 Oct 2014,ASDA SUPERSTORE,CHILDRENS SERVICES,"43A HILTON ROAD, WILLENHALL",34.00,EQUIP NEW-CLEANING,GROCERY STORES AND SUPERMARKETS
13 Oct 2014,AMAZON *MKTPLCE EU-UK,CHILDRENS SERVICES,MATHS,139.02,GENERAL MATERIALS,BOOK STORES
13 Oct 2014,TRAINLINE.COM,NEIGHBOURHOOD SERVICES,GARMAN RYAN,52.02,OTHER/VOLUNTEERS-PUBLIC TRANSPORT,PASSENGER RAILWAYS
13 Oct 2014,TRAINLINE.COM,NEIGHBOURHOOD SERVICES,TECHNICAL/ART HANDLING,69.87,OFFICER/STAFF-PUBLIC TRANSPORT,PASSENGER RAILWAYS
13 Oct 2014,WELSH BROS FOODS LTD,NEIGHBOURHOOD SERVICES,CA ELMORE GREEN PRIMARY SCHOOL,161.26,MEAT-PROVISIONS,FREEZER AND LOCKER MEAT PROVISIONERS
13 Oct 2014,BLAKEMORE FOODSERVICE,NEIGHBOURHOOD SERVICES,CA GREEN ROCK PRIMARY,9.46,FROZEN FOODS-PROVISIONS,CATERERS
13 Oct 2014,ABC SKIP HIRE,NEIGHBOURHOOD SERVICES,NAG - MAINTENANCE,180.00,SKIPS/PORTALOOS/PORTACABINS-HIRE OF PLANT,"UTILITIES - ELECTRIC, GAS, SANITARY & WATER"
13 Oct 2014,WELSH BROS FOODS LTD,NEIGHBOURHOOD SERVICES,CA JOSEPH LECKIE COMMUNITY TECHNOLOGY COLLEGE,203.22,MEAT-PROVISIONS,FREEZER AND LOCKER MEAT PROVISIONERS
13 Oct 2014,BLAKEMORE FOODSERVICE,NEIGHBOURHOOD SERVICES,CA BROWNHILLS WEST PRIMARY SCHOOL,287.83,DRY FOODS-PROVISIONS,CATERERS
13 Oct 2014,BLAKEMORE FOODSERVICE,NEIGHBOURHOOD SERVICES,CA BROWNHILLS WEST PRIMARY SCHOOL,73.30,DRY FOODS-PROVISIONS,CATERERS
13 Oct 2014,GRO HM PASSPORT OFFICE,CHILDRENS SERVICES,SAFEGUARDING & FAMILY SUPPORT,9.25,REGISTRAR OF BIRTHS/DEATHS/MARRIAGES/CIVIL PARTNERSHIPS-SERV-FEES/CHARGES,GOVERNMENT SERVICES
13 Oct 2014,AMAZON *MKTPLCE EU-UK,CHILDRENS SERVICES,CLUSTER 5 DARLASTON,55.74,NEW-FURNITURE & EQUIPMENT,BOOK STORES
13 Oct 2014,MIDLAND RADIO LINKS,NEIGHBOURHOOD SERVICES,WALSALL CANAL BOATS,285.60,MISCELLANEOUS SUPPLIES,MISCELLANEOUS AND SPECIALTY RETAIL STORES
13 Oct 2014,BLAKEMORE FOODSERVICE,NEIGHBOURHOOD SERVICES,CA BARCROFT D/C,13.59,FROZEN FOODS-PROVISIONS,CATERERS
13 Oct 2014,BLAKEMORE FOODSERVICE,NEIGHBOURHOOD SERVICES,CA JANE LANE SPECIAL SCHOOL,76.79,FROZEN FOODS-PROVISIONS,CATERERS
13 Oct 2014,ARTHUR BRETT CATER,NEIGHBOURHOOD SERVICES,CA WATLING STREET PRIMARY SCHOOL,120.59,FRUIT & VEGETABLES OTHER-PROVISIONS,MISCELLANEOUS FOOD STORES & CONVENIENCE STORES
13 Oct 2014,SMART FOOD UK LIMITED,NEIGHBOURHOOD SERVICES,CA ELMORE GREEN PRIMARY SCHOOL,382.00,FROZEN FOODS-PROVISIONS,CATERERS
13 Oct 2014,WM MORRISON FOOD.COM,CHILDRENS SERVICES,"CLUSTER 3 BLOXWICH,BLAKENALL,HATHERTON,E STAMMERS",3.00,FOOD AND BEVERAGES-PROVISIONS,GROCERY STORES AND SUPERMARKETS
13 Oct 2014,WM MORRISON FOOD.COM,CHILDRENS SERVICES,"CLUSTER 3 BLOXWICH,BLAKENALL,HATHERTON,E STAMMERS",43.26,FOOD AND BEVERAGES-PROVISIONS,GROCERY STORES AND SUPERMARKETS
13 Oct 2014,AMAZON *MKTPLCE EU-UK,CHILDRENS SERVICES,PUPIL PREMIUM,11.00,GENERAL MATERIALS,BOOK STORES
13 Oct 2014,AMAZON *MKTPLCE EU-UK,CHILDRENS SERVICES,ADMINISTRATIVE SUPPLIES,149.94,GENERAL MATERIALS,BOOK STORES
13 Oct 2014,ALLPAY.NET VISA AND MAST,RESOURCES,HOMELESS PREVENTION GRANT,88.43,RENTS-OTHER,REAL ESTATE MANAGERS - RENTALS
13 Oct 2014,MNA LTD CARDCHARGE,REGENERATION,DEVELOPMENT MANAGEMENT,47.52,PERIODICALS/MAGAZINES/NEWSPAPERS-SUBSCRIPTIONS,NEWS DEALERS AND NEWSSTANDS
13 Oct 2014,BLAKEMORE FOODSERVICE,NEIGHBOURHOOD SERVICES,CA LEIGHSWOOD PRIMARY SCHOOL,317.24,DRY FOODS-PROVISIONS,CATERERS
13 Oct 2014,BLAKEMORE FOODSERVICE,NEIGHBOURHOOD SERVICES,CA LEIGHSWOOD PRIMARY SCHOOL,73.30,DRY FOODS-PROVISIONS,CATERERS
13 Oct 2014,BLAKEMORE FOODSERVICE,NEIGHBOURHOOD SERVICES,CA GREEN ROCK PRIMARY,83.93,DRY FOODS-PROVISIONS,CATERERS
13 Oct 2014,BLAKEMORE FOODSERVICE,NEIGHBOURHOOD SERVICES,CA GREEN ROCK PRIMARY,36.64,DRY FOODS-PROVISIONS,CATERERS
13 Oct 2014,OFFICE DEPOT,CHILDRENS SERVICES,DUKE OF EDINBURGH AWARDS PROJECT,30.65,STATIONERY & GENERAL SUPPLIES-OFFICE EXP,"STATIONERY, OFFICE SUPPLIES AND WRITING PAPER"
13 Oct 2014,ALLPAY.NET VISA AND MAST,RESOURCES,HOMELESS PREVENTION GRANT,750.00,RENTS,REAL ESTATE MANAGERS - RENTALS
13 Oct 2014,BLAKEMORE FOODSERVICE,NEIGHBOURHOOD SERVICES,CA CALDMORE COMMUNITY PRIMARY SCHOOL,124.66,FROZEN FOODS-PROVISIONS,CATERERS
13 Oct 2014,BLAKEMORE FOODSERVICE,NEIGHBOURHOOD SERVICES,TOWN HALL RESTAURANT BISTRO,50.23,FROZEN FOODS-PROVISIONS,CATERERS
13 Oct 2014,BLAKEMORE FOODSERVICE,NEIGHBOURHOOD SERVICES,CA TOWN HALL RESTAURANT - CATERING,112.58,FROZEN FOODS-PROVISIONS,CATERERS
13 Oct 2014,WELSH BROS FOODS LTD,NEIGHBOURHOOD SERVICES,CA COOPER JORDAN CE PRIMARY SCHOOL,90.39,MEAT-PROVISIONS,FREEZER AND LOCKER MEAT PROVISIONERS
13 Oct 2014,WWW.FIVEGOCAMPING.COM,CHILDRENS SERVICES,OUTDOOR EDUCATION,55.00,NEW-FURNITURE & EQUIPMENT,MISCELLANEOUS AND SPECIALTY RETAIL STORES
13 Oct 2014,WM MORRISON FOOD.COM,CHILDRENS SERVICES,57 LICHFIELD ROAD,30.90,GENERAL PROVISIONS-PROVISIONS,GROCERY STORES AND SUPERMARKETS
13 Oct 2014,WM MORRISON FOOD.COM,CHILDRENS SERVICES,57 LICHFIELD ROAD,127.54,GENERAL PROVISIONS-PROVISIONS,GROCERY STORES AND SUPERMARKETS
13 Oct 2014,W M MORRISONS.COM,CHILDRENS SERVICES,CLUSTER 4 ALUMWELL & BIRCHILLS,10.22,FOOD AND BEVERAGES-PROVISIONS,GROCERY STORES AND SUPERMARKETS
13 Oct 2014,W M MORRISONS.COM,CHILDRENS SERVICES,STANLEYS NURSERY,5.20,FOOD AND BEVERAGES-PROVISIONS,GROCERY STORES AND SUPERMARKETS
13 Oct 2014,W M MORRISONS.COM,CHILDRENS SERVICES,STANLEYS NURSERY,49.38,FOOD AND BEVERAGES-PROVISIONS,GROCERY STORES AND SUPERMARKETS
13 Oct 2014,W M MORRISONS.COM,CHILDRENS SERVICES,STANLEYS NURSERY,4.40,GENERAL MATERIALS,GROCERY STORES AND SUPERMARKETS
13 Oct 2014,W M MORRISONS.COM,CHILDRENS SERVICES,CLUSTER 4 ALUMWELL & BIRCHILLS,0.51,GENERAL MATERIALS,GROCERY STORES AND SUPERMARKETS
13 Oct 2014,W M MORRISONS.COM,CHILDRENS SERVICES,STANLEYS NURSERY,0.51,GENERAL MATERIALS,GROCERY STORES AND SUPERMARKETS
13 Oct 2014,POSTOFFICE SELFSERVICE,NEIGHBOURHOOD SERVICES,NAG - TEMPORARY EXHIBITIONS,4.30,POSTAGES AND COURIER SERVICES,POSTAL SERVICES - GOVERNMENT ONLY
13 Oct 2014,BLAKEMORE FOODSERVICE,NEIGHBOURHOOD SERVICES,CA BUSILL JONES PRIMARY SCHOOL,-39.40,FROZEN FOODS-PROVISIONS,CATERERS
13 Oct 2014,BLAKEMORE FOODSERVICE,NEIGHBOURHOOD SERVICES,CA RADLEYS PRIMARY SCHOOL,382.90,DRY FOODS-PROVISIONS,CATERERS
13 Oct 2014,BLAKEMORE FOODSERVICE,NEIGHBOURHOOD SERVICES,CA RADLEYS PRIMARY SCHOOL,80.64,DRY FOODS-PROVISIONS,CATERERS
13 Oct 2014,BLAKEMORE FOODSERVICE,NEIGHBOURHOOD SERVICES,CA BUSILL JONES PRIMARY SCHOOL,39.40,FROZEN FOODS-PROVISIONS,CATERERS
13 Oct 2014,ESE WORLD LTD,NEIGHBOURHOOD SERVICES,WASTE COLLECTIONS,492.00,GENERAL MATERIALS,MISCELLANEOUS GENERAL MERCHANDISE
13 Oct 2014,BLAKEMORE FOODSERVICE,NEIGHBOURHOOD SERVICES,CA CROFT COMMUNITY PRIMARY SCHOOL,-26.55,FROZEN FOODS-PROVISIONS,CATERERS
13 Oct 2014,OFFICE DEPOT,NEIGHBOURHOOD SERVICES,CA CENTRAL SUPPORT SERVICES,59.88,STATIONERY & GENERAL SUPPLIES-OFFICE EXP,"STATIONERY, OFFICE SUPPLIES AND WRITING PAPER"
13 Oct 2014,ARTHUR BRETT CATER,NEIGHBOURHOOD SERVICES,CA ST ANNES CATHOLIC PRIMARY SCHOOL,64.04,FRUIT & VEGETABLES OTHER-PROVISIONS,MISCELLANEOUS FOOD STORES & CONVENIENCE STORES
13 Oct 2014,BLAKEMORE FOODSERVICE,NEIGHBOURHOOD SERVICES,CA CROFT COMMUNITY PRIMARY SCHOOL,165.52,FROZEN FOODS-PROVISIONS,CATERERS
13 Oct 2014,ARTHUR BRETT CATER,NEIGHBOURHOOD SERVICES,CA COOPER JORDAN CE PRIMARY SCHOOL,105.93,FRUIT & VEGETABLES OTHER-PROVISIONS,MISCELLANEOUS FOOD STORES & CONVENIENCE STORES
13 Oct 2014,WELSH BROS FOODS LTD,NEIGHBOURHOOD SERVICES,CA BARCROFT D/C,210.05,MEAT-PROVISIONS,FREEZER AND LOCKER MEAT PROVISIONERS
13 Oct 2014,AMAZON EU,CHILDRENS SERVICES,LANGUAGES,15.18,LIBRARY BOOKS,OTHER DIRECT MARKETING-OTHER DIRECT MARKETERS
13 Oct 2014,BOC TEL ORDER,NEIGHBOURHOOD SERVICES,WALSALL TOWN HALL,5.70,CHEMICALS & SCIENTIFIC MATS-MATERIALS,OTHER CHEMICALS AND ALLIED PRODUCTS
13 Oct 2014,ASDA STORES 7134,CHILDRENS SERVICES,"CLUSTER 3 BLOXWICH,BLAKENALL,HATHERTON,E STAMMERS",31.00,FOOD AND BEVERAGES-PROVISIONS,GROCERY STORES AND SUPERMARKETS
13 Oct 2014,ASDA STORES 7134,CHILDRENS SERVICES,"CLUSTER 3 BLOXWICH,BLAKENALL,HATHERTON,E STAMMERS",6.00,FOOD AND BEVERAGES-PROVISIONS,GROCERY STORES AND SUPERMARKETS
13 Oct 2014,BLAKEMORE FOODSERVICE,NEIGHBOURHOOD SERVICES,CA RADLEYS PRIMARY SCHOOL,112.69,FROZEN FOODS-PROVISIONS,CATERERS
13 Oct 2014,WELSH BROS FOODS LTD,NEIGHBOURHOOD SERVICES,CA FIBBERSLEY PARK PRIMARY SCHOOL,128.56,MEAT-PROVISIONS,FREEZER AND LOCKER MEAT PROVISIONERS
13 Oct 2014,WELSH BROS FOODS LTD,NEIGHBOURHOOD SERVICES,CA TOWN HALL RESTAURANT - CATERING,104.97,MEAT-PROVISIONS,FREEZER AND LOCKER MEAT PROVISIONERS
13 Oct 2014,ARTHUR BRETT CATER,NEIGHBOURHOOD SERVICES,CA ST BERNADETTES CATHOLIC PRIMARY SCHOOL,32.53,FRUIT & VEGETABLES OTHER-PROVISIONS,MISCELLANEOUS FOOD STORES & CONVENIENCE STORES
13 Oct 2014,BLAKEMORE FOODSERVICE,NEIGHBOURHOOD SERVICES,CA GREEN ROCK PRIMARY,57.10,FROZEN FOODS-PROVISIONS,CATERERS
13 Oct 2014,BLAKEMORE FOODSERVICE,NEIGHBOURHOOD SERVICES,CA RUSHALL JMI SCHOOL,307.80,DRY FOODS-PROVISIONS,CATERERS
13 Oct 2014,BLAKEMORE FOODSERVICE,NEIGHBOURHOOD SERVICES,CA RUSHALL JMI SCHOOL,25.35,DRY FOODS-PROVISIONS,CATERERS
13 Oct 2014,WELSH BROS FOODS LTD,NEIGHBOURHOOD SERVICES,CA CASTLEFORT JMI SCHOOL,101.28,MEAT-PROVISIONS,FREEZER AND LOCKER MEAT PROVISIONERS
13 Oct 2014,TRAINLINE.COM,NEIGHBOURHOOD SERVICES,LEISURE - MANAGEMENT AND ADMIN,27.00,OFFICER/STAFF-PUBLIC TRANSPORT,PASSENGER RAILWAYS
13 Oct 2014,TRAINLINE.COM,NEIGHBOURHOOD SERVICES,SPORT & LEISURE DEVELOPMENT SERVICES,24.82,OFFICER/STAFF-PUBLIC TRANSPORT,PASSENGER RAILWAYS
13 Oct 2014,BLAKEMORE FOODSERVICE,NEIGHBOURHOOD SERVICES,CA BIRCHILLS CE PRIMARY COMMUNITY SCHOOL,203.92,FROZEN FOODS-PROVISIONS,CATERERS
13 Oct 2014,BLAKEMORE FOODSERVICE,NEIGHBOURHOOD SERVICES,CA WATLING STREET PRIMARY SCHOOL,157.57,DRY FOODS-PROVISIONS,CATERERS
13 Oct 2014,BLAKEMORE FOODSERVICE,NEIGHBOURHOOD SERVICES,CA FIBBERSLEY PARK PRIMARY SCHOOL,17.66,FROZEN FOODS-PROVISIONS,CATERERS
13 Oct 2014,WELSH BROS FOODS LTD,NEIGHBOURHOOD SERVICES,CA BUSILL JONES PRIMARY SCHOOL,450.24,MEAT-PROVISIONS,FREEZER AND LOCKER MEAT PROVISIONERS
13 Oct 2014,BLAKEMORE FOODSERVICE,NEIGHBOURHOOD SERVICES,CA MEADOW VIEW JMI PRIMARY SCHOOL,232.42,DRY FOODS-PROVISIONS,CATERERS
13 Oct 2014,WM MORRISON FOOD.COM,CHILDRENS SERVICES,BLUEBELLS,24.06,GENERAL PROVISIONS-PROVISIONS,GROCERY STORES AND SUPERMARKETS
13 Oct 2014,WM MORRISON FOOD.COM,CHILDRENS SERVICES,BLUEBELLS,98.57,GENERAL PROVISIONS-PROVISIONS,GROCERY STORES AND SUPERMARKETS
13 Oct 2014,WELSH BROS FOODS LTD,NEIGHBOURHOOD SERVICES,CA JANE LANE SPECIAL SCHOOL,51.75,MEAT-PROVISIONS,FREEZER AND LOCKER MEAT PROVISIONERS
13 Oct 2014,IKEA SACAT,CHILDRENS SERVICES,57 LICHFIELD ROAD,63.00,FURNITURE & EQUIPMENT,MISCELLANEOUS HOUSE FURNISHING SPECIALTY SHOPS
13 Oct 2014,ARTHUR BRETT CATER,NEIGHBOURHOOD SERVICES,CA LINDENS PRIMARY SCHOOL,105.58,FRUIT & VEGETABLES OTHER-PROVISIONS,MISCELLANEOUS FOOD STORES & CONVENIENCE STORES
13 Oct 2014,WM MORRISON FOOD.COM,CHILDRENS SERVICES,"CLUSTER 3 BLOXWICH,BLAKENALL,HATHERTON,E STAMMERS",7.66,FOOD AND BEVERAGES-PROVISIONS,GROCERY STORES AND SUPERMARKETS
13 Oct 2014,WM MORRISON FOOD.COM,CHILDRENS SERVICES,"CLUSTER 3 BLOXWICH,BLAKENALL,HATHERTON,E STAMMERS",36.92,FOOD AND BEVERAGES-PROVISIONS,GROCERY STORES AND SUPERMARKETS
13 Oct 2014,DULUX DECORATOR CENTRE,NEIGHBOURHOOD SERVICES,NAG - TEMPORARY EXHIBITIONS,128.88,LOOSE TOOLS & CONSUMABLES,"PAINTS, VARNISHES, AND SUPPLIES"
13 Oct 2014,WWW.THECONSORTIUM/WMS,CHILDRENS SERVICES,SEN,16.76,GENERAL MATERIALS,DIRECT MARKETING CONTINUITY SUBSCRIPTION MERCHANTS
13 Oct 2014,WEST COAST TRAINS,NEIGHBOURHOOD SERVICES,NEW ART GALLERY - ADMIN,50.50,OFFICER/STAFF-PUBLIC TRANSPORT,PASSENGER RAILWAYS
13 Oct 2014,ASDA STORES,CHILDRENS SERVICES,CLUSTER 5 DARLASTON,20.68,FOOD AND BEVERAGES-PROVISIONS,GROCERY STORES AND SUPERMARKETS
13 Oct 2014,ASDA STORES,CHILDRENS SERVICES,CLUSTER 5 DARLASTON,12.00,NEW-FURNITURE & EQUIPMENT,GROCERY STORES AND SUPERMARKETS
13 Oct 2014,WWW.GIROFOOD.COM,NEIGHBOURHOOD SERVICES,CA ST MICHAELS C.E. PRIMARY SCHOOL,96.99,DISPOSABLES-PROVISIONS,WHOLESALE CLUBS
13 Oct 2014,GRO HM PASSPORT OFFICE,CHILDRENS SERVICES,SAFEGUARDING & FAMILY SUPPORT,-9.25,REGISTRAR OF BIRTHS/DEATHS/MARRIAGES/CIVIL PARTNERSHIPS-SERV-FEES/CHARGES,GOVERNMENT SERVICES
14 Oct 2014,SPENDVISION,RESOURCES,FINANCE ADMIN,1197.84,SERVICE AGREEMENTS-SERVICES,
14 Oct 2014,ARTHUR BRETT CATER,NEIGHBOURHOOD SERVICES,CA BLOXWICH C.E. JMI PRIMARY SCHOOL,67.02,FRUIT & VEGETABLES OTHER-PROVISIONS,MISCELLANEOUS FOOD STORES & CONVENIENCE STORES
14 Oct 2014,ARTHUR BRETT CATER,NEIGHBOURHOOD SERVICES,CA FIBBERSLEY PARK PRIMARY SCHOOL,113.25,FRUIT & VEGETABLES OTHER-PROVISIONS,MISCELLANEOUS FOOD STORES & CONVENIENCE STORES
14 Oct 2014,ARTHUR BRETT CATER,NEIGHBOURHOOD SERVICES,CA MOORCROFT WOOD,67.51,FRUIT & VEGETABLES OTHER-PROVISIONS,MISCELLANEOUS FOOD STORES & CONVENIENCE STORES
14 Oct 2014,OFSTED MOTO,CHILDRENS SERVICES,"CLUSTER 1 BROWNHILLS,GREENFIELDS,PELSALL",35.00,PUBLICATIONS/ORGANISATIONS-SUBSCRIPTIONS,GOVERNMENT SERVICES
14 Oct 2014,AMAZON *MKTPLCE EU-UK,CHILDRENS SERVICES,GENERAL RESOURCES & MISC,13.96,GENERAL MATERIALS,BOOK STORES
14 Oct 2014,ARTHUR BRETT CATER,NEIGHBOURHOOD SERVICES,CA BIRCHILLS CE PRIMARY COMMUNITY SCHOOL,47.67,FRUIT & VEGETABLES OTHER-PROVISIONS,MISCELLANEOUS FOOD STORES & CONVENIENCE STORES
14 Oct 2014,ARTHUR BRETT CATER,NEIGHBOURHOOD SERVICES,CA GREEN ROCK PRIMARY,40.46,FRUIT & VEGETABLES OTHER-PROVISIONS,MISCELLANEOUS FOOD STORES & CONVENIENCE STORES
14 Oct 2014,WELSH BROS FOODS LTD,NEIGHBOURHOOD SERVICES,CA MEADOW VIEW JMI PRIMARY SCHOOL,90.27,MEAT-PROVISIONS,FREEZER AND LOCKER MEAT PROVISIONERS
14 Oct 2014,THE CARPET MAN,RESOURCES,WALSALL CRISIS SUPPORT SCHEME,126.00,CRISIS SUPPORT PAYMENTS,FLOOR COVERING STORES
14 Oct 2014,AMAZON *MKTPLCE EU-UK,CHILDRENS SERVICES,CLUSTER 5 DARLASTON,27.56,CLEANING-MATERIALS (INC LIGHT BULBS),BOOK STORES
14 Oct 2014,ROYAL ACADEMY/INET,NEIGHBOURHOOD SERVICES,TECHNICAL/ART HANDLING,15.50,PUBLICATIONS/ORGANISATIONS-SUBSCRIPTIONS,TOURIST ATTRACTIONS AND EXHIBITS
14 Oct 2014,AMAZON *MKTPLCE EU-UK,RESOURCES,ADMIN SUPPORT,11.98,STATIONERY & GENERAL SUPPLIES-OFFICE EXP,BOOK STORES
14 Oct 2014,OFFICE DEPOT,CHILDRENS SERVICES,ADOPTION TEAM,118.98,STATIONERY & GENERAL SUPPLIES-OFFICE EXP,"STATIONERY, OFFICE SUPPLIES AND WRITING PAPER"
14 Oct 2014,GRO HM PASSPORT OFFICE,CHILDRENS SERVICES,SAFEGUARDING & FAMILY SUPPORT,9.25,TRANSFER PAYMENTS - SOCIAL SERVICES CLIENTS,GOVERNMENT SERVICES
14 Oct 2014,WALSALL COUNCIL,CHILDRENS SERVICES,SAFEGUARDING & FAMILY SUPPORT,10.00,TRANSFER PAYMENTS - SOCIAL SERVICES CLIENTS,GOVERNMENT SERVICES
14 Oct 2014,NEWHAM COLLEGE EDUCATI,CHILDRENS SERVICES,ST FRANCIS OF ASSISI CATHOLIC TECHNOLOGY COLLEGE,55.00,GENERAL MATERIALS,OTHER SCHOOLS AND EDUCATIONAL SERVICES
14 Oct 2014,ARTHUR BRETT CATER,NEIGHBOURHOOD SERVICES,CA ST FRANCIS CATHOLIC PRIMARY SCHOOL,51.30,FRUIT & VEGETABLES OTHER-PROVISIONS,MISCELLANEOUS FOOD STORES & CONVENIENCE STORES
14 Oct 2014,THE CARPET MAN,RESOURCES,WALSALL CRISIS SUPPORT SCHEME,336.00,CRISIS SUPPORT PAYMENTS,FLOOR COVERING STORES
14 Oct 2014,HMCOURTS-SERVICE.G,CHILDRENS SERVICES,SPINDLETREE,15.00,RESIDENTS PERSONAL EXPENSES-ALLOWANCES TO S/S CLIENTS,FINES
14 Oct 2014,TESCO STORES 6161,CHILDRENS SERVICES,"43A HILTON ROAD, WILLENHALL",9.18,GENERAL PROVISIONS-PROVISIONS,GROCERY STORES AND SUPERMARKETS
14 Oct 2014,ARTHUR BRETT CATER,NEIGHBOURHOOD SERVICES,CA ELMORE GREEN PRIMARY SCHOOL,147.57,FRUIT & VEGETABLES OTHER-PROVISIONS,MISCELLANEOUS FOOD STORES & CONVENIENCE STORES
14 Oct 2014,ARTHUR BRETT CATER,NEIGHBOURHOOD SERVICES,CA JANE LANE SPECIAL SCHOOL,47.32,FRUIT & VEGETABLES OTHER-PROVISIONS,MISCELLANEOUS FOOD STORES & CONVENIENCE STORES
14 Oct 2014,WWW.LAMPSHOPONLINE.CO.UK,CHILDRENS SERVICES,"CLUSTER 3 BLOXWICH,BLAKENALL,HATHERTON,E STAMMERS",26.87,CLEANING-MATERIALS (INC LIGHT BULBS),HARDWARE EQUIPMENT AND SUPPLIES
14 Oct 2014,ARTHUR BRETT CATER,NEIGHBOURHOOD SERVICES,CA ST MICHAELS C.E. PRIMARY SCHOOL,66.62,FRUIT & VEGETABLES OTHER-PROVISIONS,MISCELLANEOUS FOOD STORES & CONVENIENCE STORES
14 Oct 2014,AQUAID FRANCHISING LTD,REGENERATION,PELSALL EDUCATION DEVELOPMENT CENTRE,137.40,STAFF MINERAL WATER-EQUIPMENT,OTHER BUSINESS SERVICES
14 Oct 2014,TRAINLINE.COM,NEIGHBOURHOOD SERVICES,TECHNICAL/ART HANDLING,69.87,OFFICER/STAFF-PUBLIC TRANSPORT,PASSENGER RAILWAYS
14 Oct 2014,WM MORRISON 063,CHILDRENS SERVICES,REDRUTH ROAD,1.25,GENERAL PROVISIONS-PROVISIONS,GROCERY STORES AND SUPERMARKETS
14 Oct 2014,WM MORRISON 063,CHILDRENS SERVICES,REDRUTH ROAD,43.42,GENERAL PROVISIONS-PROVISIONS,GROCERY STORES AND SUPERMARKETS
14 Oct 2014,ARTHUR BRETT CATER,NEIGHBOURHOOD SERVICES,CA CALDMORE COMMUNITY PRIMARY SCHOOL,59.40,FRUIT & VEGETABLES OTHER-PROVISIONS,MISCELLANEOUS FOOD STORES & CONVENIENCE STORES
14 Oct 2014,ARGOS LTD,NEIGHBOURHOOD SERVICES,EMERGENCY PLANNING 2012/2013,23.72,FURNITURE & EQUIPMENT,DISCOUNT STORES
14 Oct 2014,WWW.RBF-PRODUCTS.CO.UK,CHILDRENS SERVICES,BLUEBELLS,75.60,NEW-FURNITURE & EQUIPMENT,PROFESSIONAL SERVICES
14 Oct 2014,WWW.RBF-PRODUCTS.CO.UK,CHILDRENS SERVICES,BLUEBELLS,378.00,NEW-FURNITURE & EQUIPMENT,PROFESSIONAL SERVICES
14 Oct 2014,ARTHUR BRETT CATER,NEIGHBOURHOOD SERVICES,CA LITTLE BLOXWICH CE PRIMARY SCHOOL,21.87,FRUIT & VEGETABLES OTHER-PROVISIONS,MISCELLANEOUS FOOD STORES & CONVENIENCE STORES
14 Oct 2014,ARTHUR BRETT CATER,NEIGHBOURHOOD SERVICES,CA RADLEYS PRIMARY SCHOOL,118.98,FRUIT & VEGETABLES OTHER-PROVISIONS,MISCELLANEOUS FOOD STORES & CONVENIENCE STORES
14 Oct 2014,FARMFOODS- BLOXWIC,CHILDRENS SERVICES,SPINDLETREE,65.54,GENERAL PROVISIONS-PROVISIONS,GROCERY STORES AND SUPERMARKETS
14 Oct 2014,ARTHUR BRETT CATER,NEIGHBOURHOOD SERVICES,CA ELMWOOD SPECIAL SCHOOL,40.53,FRUIT & VEGETABLES OTHER-PROVISIONS,MISCELLANEOUS FOOD STORES & CONVENIENCE STORES
14 Oct 2014,THE TRAINLINE.COM,REGENERATION,REGENERATION MANAGEMENT,10.45,OFFICER/STAFF-PUBLIC TRANSPORT,PASSENGER RAILWAYS
14 Oct 2014,ARTHUR BRETT CATER,NEIGHBOURHOOD SERVICES,CA CROFT COMMUNITY PRIMARY SCHOOL,72.58,FRUIT & VEGETABLES OTHER-PROVISIONS,MISCELLANEOUS FOOD STORES & CONVENIENCE STORES
14 Oct 2014,AQUAID FRANCHISING LTD,CHILDRENS SERVICES,UNIVERSAL EDUCATION CLIENT UNIT,416.40,STAFF MINERAL WATER-EQUIPMENT,OTHER BUSINESS SERVICES
14 Oct 2014,DINER CAMDEN,NEIGHBOURHOOD SERVICES,NEW ART GALLERY - ADMIN,28.86,MISC DAIRY PRODUCTS-PROVISIONS,"BARS, COCKTAIL LOUNGES, DISCOTHEQUES, NIGHTCLUBS"
14 Oct 2014,THE BOOK PEOPLE,CHILDRENS SERVICES,LIBRARY,81.44,GENERAL MATERIALS,BOOK STORES
14 Oct 2014,OFFICE DEPOT,RESOURCES,PRINT STORES,420.00,STATIONERY & GENERAL SUPPLIES-OFFICE EXP,"STATIONERY, OFFICE SUPPLIES AND WRITING PAPER"
14 Oct 2014,ARTHUR BRETT CATER,NEIGHBOURHOOD SERVICES,CA ABBEY PRIMARY SCHOOL,55.21,FOOD AND BEVERAGES-PROVISIONS,MISCELLANEOUS FOOD STORES & CONVENIENCE STORES
14 Oct 2014,ARTHUR BRETT CATER,NEIGHBOURHOOD SERVICES,CA JOSEPH LECKIE COMMUNITY TECHNOLOGY COLLEGE,155.55,FRUIT & VEGETABLES OTHER-PROVISIONS,MISCELLANEOUS FOOD STORES & CONVENIENCE STORES
14 Oct 2014,CO-OPERATIVE FOOD,SOCIAL CARE & INCLUSION,RESPONSE SERVICES,12.00,FOOD AND BEVERAGES-PROVISIONS,GROCERY STORES AND SUPERMARKETS
14 Oct 2014,ARTHUR BRETT CATER,NEIGHBOURHOOD SERVICES,CA ST GILES C.E. PRIMARY SCHOOL,34.01,FRUIT & VEGETABLES OTHER-PROVISIONS,MISCELLANEOUS FOOD STORES & CONVENIENCE STORES
14 Oct 2014,ARTHUR BRETT CATER,NEIGHBOURHOOD SERVICES,CA BUSILL JONES PRIMARY SCHOOL,144.10,FRUIT & VEGETABLES OTHER-PROVISIONS,MISCELLANEOUS FOOD STORES & CONVENIENCE STORES
14 Oct 2014,ARTHUR BRETT CATER,NEIGHBOURHOOD SERVICES,CA OLD HALL SPECIAL SCHOOL,33.26,FRUIT & VEGETABLES OTHER-PROVISIONS,MISCELLANEOUS FOOD STORES & CONVENIENCE STORES
14 Oct 2014,BLOXWICH HARDWARE,NEIGHBOURHOOD SERVICES,WALSALL CANAL BOATS,23.00,"CROCKERY,HARDWARE & DISPOSABLES-MATERIALS",HARDWARE STORES
14 Oct 2014,VIRGINTRAINS.CO.UK,NEIGHBOURHOOD SERVICES,EH DIV GENERAL COSTS,48.00,OFFICER/STAFF-PUBLIC TRANSPORT,PASSENGER RAILWAYS
14 Oct 2014,WELSH BROS FOODS LTD,RESOURCES,FINANCE ADMIN,71.03,MEAT-PROVISIONS,FREEZER AND LOCKER MEAT PROVISIONERS
14 Oct 2014,OTICON LTD,CHILDRENS SERVICES,SEN,201.60,MEDICAL REQUISITES-MATERIALS,DENTAL/LABORATORY/MEDICAL EQUIPMENT & SUPPLIES
14 Oct 2014,TESCO STORES 6161,CHILDRENS SERVICES,"43A HILTON ROAD, WILLENHALL",3.00,GENERAL PROVISIONS-PROVISIONS,GROCERY STORES AND SUPERMARKETS
14 Oct 2014,ARTHUR BRETT CATER,NEIGHBOURHOOD SERVICES,CA LEAMORE PRIMARY SCHOOL,44.85,FRUIT & VEGETABLES OTHER-PROVISIONS,MISCELLANEOUS FOOD STORES & CONVENIENCE STORES
14 Oct 2014,OFFICE DEPOT,SOCIAL CARE & INCLUSION,INTEGRATED BUSINESS PROCESSES & SERVICES,138.28,STATIONERY & GENERAL SUPPLIES-OFFICE EXP,"STATIONERY, OFFICE SUPPLIES AND WRITING PAPER"
14 Oct 2014,ARTHUR BRETT CATER,NEIGHBOURHOOD SERVICES,CA BLAKENALL HEATH JUNIOR SCHOOL,51.08,FRUIT & VEGETABLES OTHER-PROVISIONS,MISCELLANEOUS FOOD STORES & CONVENIENCE STORES
14 Oct 2014,HMCOURTS-SERVICE.G,CHILDRENS SERVICES,SPINDLETREE,15.00,RESIDENTS PERSONAL EXPENSES-ALLOWANCES TO S/S CLIENTS,FINES
14 Oct 2014,TATE BRITAIN - LONDON,NEIGHBOURHOOD SERVICES,NEW ART GALLERY - ADMIN,12.50,PUBLICATIONS/ORGANISATIONS-SUBSCRIPTIONS,ART DEALERS AND GALLERIES
14 Oct 2014,MCDONALDS REST,CHILDRENS SERVICES,LOOKED AFTER CHILDRENS SOCIAL WORK TEAM,10.22,TRANSFER PAYMENTS - SOCIAL SERVICES CLIENTS,QUICK PAYMENT SERVICE-FAST-FOOD RESTAURANTS
14 Oct 2014,MCDONALDS REST,CHILDRENS SERVICES,LOOKED AFTER CHILDRENS SOCIAL WORK TEAM,7.79,TRANSFER PAYMENTS - SOCIAL SERVICES CLIENTS,QUICK PAYMENT SERVICE-FAST-FOOD RESTAURANTS
14 Oct 2014,ARTHUR BRETT CATER,NEIGHBOURHOOD SERVICES,CA BIRCHILLS CE PRIMARY COMMUNITY SCHOOL,43.84,FRUIT & VEGETABLES OTHER-PROVISIONS,MISCELLANEOUS FOOD STORES & CONVENIENCE STORES
14 Oct 2014,ARTHUR BRETT CATER,NEIGHBOURHOOD SERVICES,CA RUSHALL JMI SCHOOL,19.46,FRUIT & VEGETABLES OTHER-PROVISIONS,MISCELLANEOUS FOOD STORES & CONVENIENCE STORES
14 Oct 2014,TESCO STORES 6161,RESOURCES,WALSALL CRISIS SUPPORT SCHEME,2.50,CRISIS SUPPORT PAYMENTS,GROCERY STORES AND SUPERMARKETS
14 Oct 2014,GADGET EXPRESS,NEIGHBOURHOOD SERVICES,COMMUNITY LIAISON,28.68,STATIONERY & GENERAL SUPPLIES-OFFICE EXP,"CARD, GIFT, NOVELTY, AND SOUVENIR SHOPS"
14 Oct 2014,WM MORRISON FOOD.COM,CHILDRENS SERVICES,CLUSTER 5 DARLASTON,208.43,FOOD AND BEVERAGES-PROVISIONS,GROCERY STORES AND SUPERMARKETS
14 Oct 2014,WM MORRISON FOOD.COM,CHILDRENS SERVICES,CLUSTER 5 DARLASTON,5.88,FOOD AND BEVERAGES-PROVISIONS,GROCERY STORES AND SUPERMARKETS
14 Oct 2014,OFFICE DEPOT,CHILDRENS SERVICES,ADMINISTRATIVE SUPPLIES,4.86,GENERAL MATERIALS,"STATIONERY, OFFICE SUPPLIES AND WRITING PAPER"
14 Oct 2014,FARMFOODS- WALSALL,CHILDRENS SERVICES,REDRUTH ROAD,3.22,GENERAL PROVISIONS-PROVISIONS,GROCERY STORES AND SUPERMARKETS
14 Oct 2014,FARMFOODS- WALSALL,CHILDRENS SERVICES,REDRUTH ROAD,19.44,GENERAL PROVISIONS-PROVISIONS,GROCERY STORES AND SUPERMARKETS
14 Oct 2014,OFFICE DEPOT,CHILDRENS SERVICES,CLUSTER 4 ALUMWELL & BIRCHILLS,162.52,STATIONERY & GENERAL SUPPLIES-OFFICE EXP,"STATIONERY, OFFICE SUPPLIES AND WRITING PAPER"
14 Oct 2014,ESEDIRECT.CO.UK,REGENERATION,CENTRAL OFFICE ACCOMMODATION,364.42,PROFESSIONAL SERVICES-PRIV CONTRACTOR & OTHER AGENCIES,"OFFICE, SCHOOL SUPPLY, AND STATIONERY STORES"
14 Oct 2014,AMAZON *MKTPLCE EU-UK,CHILDRENS SERVICES,ADMINISTRATIVE SUPPLIES,8.27,MEDICAL REQUISITES-MATERIALS,BOOK STORES
14 Oct 2014,ASN FIRST AID AND HYGIENE,CHILDRENS SERVICES,ADMINISTRATIVE SUPPLIES,73.18,MEDICAL REQUISITES-MATERIALS,DENTAL/LABORATORY/MEDICAL EQUIPMENT & SUPPLIES
14 Oct 2014,ARTHUR BRETT CATER,NEIGHBOURHOOD SERVICES,CA POOL HAYES PRIMARY SCHOOL,52.11,FRUIT & VEGETABLES OTHER-PROVISIONS,MISCELLANEOUS FOOD STORES & CONVENIENCE STORES
14 Oct 2014,WH SMITH,NEIGHBOURHOOD SERVICES,EMERGENCY PLANNING 2012/2013,13.90,FURNITURE & EQUIPMENT,NEWS DEALERS AND NEWSSTANDS
14 Oct 2014,J & S GENERAL STOR,RESOURCES,WALSALL CRISIS SUPPORT SCHEME,10.50,CRISIS SUPPORT PAYMENTS,MISCELLANEOUS FOOD STORES & CONVENIENCE STORES
14 Oct 2014,ARTHUR BRETT CATER,NEIGHBOURHOOD SERVICES,CA BARCROFT D/C,104.04,FRUIT & VEGETABLES OTHER-PROVISIONS,MISCELLANEOUS FOOD STORES & CONVENIENCE STORES
14 Oct 2014,ARTHUR BRETT CATER,NEIGHBOURHOOD SERVICES,CA BLUE COAT C OF E PERFORMING ARTS COLLEGE,50.10,FRUIT & VEGETABLES OTHER-PROVISIONS,MISCELLANEOUS FOOD STORES & CONVENIENCE STORES
14 Oct 2014,ESEDIRECT.CO.UK,REGENERATION,CENTRAL OFFICE ACCOMMODATION,564.96,PROFESSIONAL SERVICES-PRIV CONTRACTOR & OTHER AGENCIES,"OFFICE, SCHOOL SUPPLY, AND STATIONERY STORES"
14 Oct 2014,AMAZON *MKTPLCE EU-UK,CHILDRENS SERVICES,CHUCKERY PRIMARY SCHOOL,3.45,MEDICAL REQUISITES-MATERIALS,BOOK STORES
14 Oct 2014,W M MORRISONS.COM,CHILDRENS SERVICES,"CLUSTER 6 BENTLEY,LIGHTHOUSE,FIBBERSLEY",-4.75,FOOD AND BEVERAGES-PROVISIONS,GROCERY STORES AND SUPERMARKETS
14 Oct 2014,THE LINER HOTEL,CHILDRENS SERVICES,SHEPWELL GREEN PUPIL REFERRAL UNIT,67.50,HOTEL ACCOMMODATION-EMPLOYEES,"HOTELS, MOTELS, RESORTS"
14 Oct 2014,LOCKS & FITTINGS,CHILDRENS SERVICES,CLUSTER 4 ALUMWELL & BIRCHILLS,32.99,GENERAL MATERIALS,HARDWARE EQUIPMENT AND SUPPLIES
14 Oct 2014,DULUX DECORATOR CENTRE,NEIGHBOURHOOD SERVICES,NAG - TEMPORARY EXHIBITIONS,128.88,LOOSE TOOLS & CONSUMABLES,"PAINTS, VARNISHES, AND SUPPLIES"
14 Oct 2014,ARTHUR BRETT CATER,NEIGHBOURHOOD SERVICES,CA FIBBERSLEY PARK PRIMARY SCHOOL,-4.33,FRUIT & VEGETABLES OTHER-PROVISIONS,MISCELLANEOUS FOOD STORES & CONVENIENCE STORES
14 Oct 2014,ARTHUR BRETT CATER,NEIGHBOURHOOD SERVICES,CA BEACON PRIMARY SCHOOL,-272.25,FRUIT & VEGETABLES OTHER-PROVISIONS,MISCELLANEOUS FOOD STORES & CONVENIENCE STORES
14 Oct 2014,ARTHUR BRETT CATER,NEIGHBOURHOOD SERVICES,CA BEACON PRIMARY SCHOOL,272.25,FRUIT & VEGETABLES OTHER-PROVISIONS,MISCELLANEOUS FOOD STORES & CONVENIENCE STORES
14 Oct 2014,ARTHUR BRETT CATER,NEIGHBOURHOOD SERVICES,CA BEACON PRIMARY SCHOOL,241.63,FRUIT & VEGETABLES OTHER-PROVISIONS,MISCELLANEOUS FOOD STORES & CONVENIENCE STORES
14 Oct 2014,GRO HM PASSPORT OFFICE,CHILDRENS SERVICES,SAFEGUARDING & FAMILY SUPPORT,-9.25,SECTION 1/17CHILD CARE ACT 1989-ASSISTANCE TO S/S CLIENTS,GOVERNMENT SERVICES
15 Oct 2014,SAINSBURYS S/MKTS,CHILDRENS SERVICES,SPINDLETREE,12.00,GENERAL PROVISIONS-PROVISIONS,GROCERY STORES AND SUPERMARKETS
15 Oct 2014,ARGOS LTD,CHILDRENS SERVICES,ADOPTION TEAM,59.83,AGENCY STAFF-EMPLOYEES,DISCOUNT STORES
15 Oct 2014,LICENSED CONVEYANCERS,RESOURCES,LAW LIBRARY,400.00,PUBLICATIONS/ORGANISATIONS-SUBSCRIPTIONS,PROFESSIONAL SERVICES
15 Oct 2014,WWW.CARTRIDGESAVE.CO.U,CHILDRENS SERVICES,D & T,32.60,GENERAL MATERIALS,"OFFICE, SCHOOL SUPPLY, AND STATIONERY STORES"
15 Oct 2014,OFFICE DEPOT,NEIGHBOURHOOD SERVICES,LIBRARY OPERATIONS CENTRAL,402.94,STATIONERY & GENERAL SUPPLIES-OFFICE EXP,"STATIONERY, OFFICE SUPPLIES AND WRITING PAPER"
15 Oct 2014,BLAKEMORE FOODSERVICE,NEIGHBOURHOOD SERVICES,CA ST ANNES CATHOLIC PRIMARY SCHOOL,78.24,FROZEN FOODS-PROVISIONS,CATERERS
15 Oct 2014,BLAKEMORE FOODSERVICE,NEIGHBOURHOOD SERVICES,CA ST ANNES CATHOLIC PRIMARY SCHOOL,15.36,FROZEN FOODS-PROVISIONS,CATERERS
15 Oct 2014,TESCO STORES 6161,RESOURCES,WALSALL CRISIS SUPPORT SCHEME,9.99,CRISIS SUPPORT PAYMENTS,GROCERY STORES AND SUPERMARKETS
15 Oct 2014,SIM MAYOU HARDWARE,NEIGHBOURHOOD SERVICES,COMMUNITY LIAISON,17.53,"REPAIRS,ALTERATIONS & MAINTENANCE-PREM",OTHER CONSTRUCTION MATERIALS
15 Oct 2014,BLAKEMORE FOODSERVICE,NEIGHBOURHOOD SERVICES,CA OLD HALL SPECIAL SCHOOL,-756.79,DRY FOODS-PROVISIONS,CATERERS
15 Oct 2014,BLAKEMORE FOODSERVICE,NEIGHBOURHOOD SERVICES,CA JANE LANE SPECIAL SCHOOL,-14.42,DRY FOODS-PROVISIONS,CATERERS
15 Oct 2014,AMAZON *MKTPLCE EU-UK,CHILDRENS SERVICES,LODGE FARM JMI SCHOOL,13.56,PERSONAL REQUISITES-MATERIALS,MISCELLANEOUS AND SPECIALTY RETAIL STORES
15 Oct 2014,AMAZON *MKTPLCE EU-UK,CHILDRENS SERVICES,CHUCKERY PRIMARY SCHOOL,14.40,"REPAIRS,ALTERATIONS & MAINTENANCE-PREM",BOOK STORES
15 Oct 2014,ASDA,CHILDRENS SERVICES,57 LICHFIELD ROAD,9.14,FOOD AND BEVERAGES-PROVISIONS,GROCERY STORES AND SUPERMARKETS
15 Oct 2014,BLAKEMORE FOODSERVICE,NEIGHBOURHOOD SERVICES,CA ELMWOOD SPECIAL SCHOOL,63.60,FROZEN FOODS-PROVISIONS,CATERERS
15 Oct 2014,BLAKEMORE FOODSERVICE,NEIGHBOURHOOD SERVICES,CA ST JOHNS C.E. PRIMARY SCHOOL,167.38,DRY FOODS-PROVISIONS,CATERERS
15 Oct 2014,BLAKEMORE FOODSERVICE,NEIGHBOURHOOD SERVICES,CA ST JOHNS C.E. PRIMARY SCHOOL,38.40,DRY FOODS-PROVISIONS,CATERERS
15 Oct 2014,ARTHUR BRETT CATER,NEIGHBOURHOOD SERVICES,CA CASTLEFORT JMI SCHOOL,38.38,FRUIT & VEGETABLES OTHER-PROVISIONS,MISCELLANEOUS FOOD STORES & CONVENIENCE STORES
15 Oct 2014,TESCO STORE 3351,CHILDRENS SERVICES,PARENTING TEAM,7.17,FOOD AND BEVERAGES-PROVISIONS,GROCERY STORES AND SUPERMARKETS
15 Oct 2014,TESCO STORE 3351,CHILDRENS SERVICES,PARENTING TEAM,5.60,FOOD AND BEVERAGES-PROVISIONS,GROCERY STORES AND SUPERMARKETS
15 Oct 2014,BLAKEMORE FOODSERVICE,NEIGHBOURHOOD SERVICES,CA JANE LANE SPECIAL SCHOOL,-3.08,DRY FOODS-PROVISIONS,CATERERS
15 Oct 2014,BLAKEMORE FOODSERVICE,NEIGHBOURHOOD SERVICES,CA OLD HALL SPECIAL SCHOOL,756.79,DRY FOODS-PROVISIONS,CATERERS
15 Oct 2014,BLAKEMORE FOODSERVICE,NEIGHBOURHOOD SERVICES,CA BLUE COAT C OF E PERFORMING ARTS COLLEGE,275.93,DRY FOODS-PROVISIONS,CATERERS
15 Oct 2014,BLAKEMORE FOODSERVICE,NEIGHBOURHOOD SERVICES,CA BLUE COAT C OF E PERFORMING ARTS COLLEGE,60.81,DRY FOODS-PROVISIONS,CATERERS
15 Oct 2014,IKEA SACAT,CHILDRENS SERVICES,SPINDLETREE,200.00,FURNITURE & EQUIPMENT,MISCELLANEOUS HOUSE FURNISHING SPECIALTY SHOPS
15 Oct 2014,BLAKEMORE FOODSERVICE,NEIGHBOURHOOD SERVICES,CA BUSILL JONES PRIMARY SCHOOL,211.51,FROZEN FOODS-PROVISIONS,CATERERS
15 Oct 2014,BLAKEMORE FOODSERVICE,NEIGHBOURHOOD SERVICES,CA LEIGHSWOOD PRIMARY SCHOOL,48.89,FROZEN FOODS-PROVISIONS,CATERERS
15 Oct 2014,BLAKEMORE FOODSERVICE,NEIGHBOURHOOD SERVICES,CA BROWNHILLS WEST PRIMARY SCHOOL,109.00,FROZEN FOODS-PROVISIONS,CATERERS
15 Oct 2014,LUL TICKET OFFICE.,NEIGHBOURHOOD SERVICES,NEW ART GALLERY - ADMIN,30.00,OFFICER/STAFF-PUBLIC TRANSPORT,PASSENGER RAILWAYS
15 Oct 2014,OFFICE DEPOT,REGENERATION,PELSALL EDUCATION DEVELOPMENT CENTRE,221.81,STATIONERY & GENERAL SUPPLIES-OFFICE EXP,"STATIONERY, OFFICE SUPPLIES AND WRITING PAPER"
15 Oct 2014,ASDA SUPERSTORE,CHILDRENS SERVICES,MARY ELLIOTT SPECIAL SCHOOL,3.92,BREAD-GENERAL-PROVISIONS,GROCERY STORES AND SUPERMARKETS
15 Oct 2014,EE & T-MOBILE,CHILDRENS SERVICES,"CLUSTER 1 BROWNHILLS,GREENFIELDS,PELSALL",116.60,COSTS (NOT INTERNAL RECHARGES)-TELEPHONES,TELECOMMUNICATION SERVICES
15 Oct 2014,BLAKEMORE FOODSERVICE,NEIGHBOURHOOD SERVICES,CA FIBBERSLEY PARK PRIMARY SCHOOL,163.40,FROZEN FOODS-PROVISIONS,CATERERS
15 Oct 2014,OFFICE DEPOT,SOCIAL CARE & INCLUSION,INTEGRATED BUSINESS PROCESSES & SERVICES,14.30,STATIONERY & GENERAL SUPPLIES-OFFICE EXP,"STATIONERY, OFFICE SUPPLIES AND WRITING PAPER"
15 Oct 2014,LW PAYMENTS,REGENERATION,DEVELOPMENT MANAGEMENT,353.76,PERIODICALS/MAGAZINES/NEWSPAPERS-SUBSCRIPTIONS,"BOOKS, PERIODICALS AND NEWSPAPERS"
15 Oct 2014,ARTHUR BRETT CATER,NEIGHBOURHOOD SERVICES,CA FIBBERSLEY PARK PRIMARY SCHOOL,4.33,FRUIT & VEGETABLES OTHER-PROVISIONS,MISCELLANEOUS FOOD STORES & CONVENIENCE STORES
15 Oct 2014,AMAZON *MKTPLCE EU-UK,CHILDRENS SERVICES,LODGE FARM JMI SCHOOL,26.45,PERSONAL REQUISITES-MATERIALS,BOOK STORES
15 Oct 2014,TESCO STORES 3162,RESOURCES,HOMELESS PREVENTION GRANT,16.48,FOOD AND BEVERAGES-PROVISIONS,GROCERY STORES AND SUPERMARKETS
15 Oct 2014,BLAKEMORE FOODSERVICE,NEIGHBOURHOOD SERVICES,CA JOSEPH LECKIE COMMUNITY TECHNOLOGY COLLEGE,392.64,FROZEN FOODS-PROVISIONS,CATERERS
15 Oct 2014,BLAKEMORE FOODSERVICE,NEIGHBOURHOOD SERVICES,CA JOSEPH LECKIE COMMUNITY TECHNOLOGY COLLEGE,40.24,FROZEN FOODS-PROVISIONS,CATERERS
15 Oct 2014,BLAKEMORE FOODSERVICE,NEIGHBOURHOOD SERVICES,CA FIBBERSLEY PARK PRIMARY SCHOOL,285.58,DRY FOODS-PROVISIONS,CATERERS
15 Oct 2014,BLAKEMORE FOODSERVICE,NEIGHBOURHOOD SERVICES,CA FIBBERSLEY PARK PRIMARY SCHOOL,49.79,DRY FOODS-PROVISIONS,CATERERS
15 Oct 2014,BLAKEMORE FOODSERVICE,NEIGHBOURHOOD SERVICES,CA OAKWOOD SPECIAL SCHOOL,89.34,DRY FOODS-PROVISIONS,CATERERS
15 Oct 2014,BLAKEMORE FOODSERVICE,NEIGHBOURHOOD SERVICES,CA BEACON PRIMARY SCHOOL,216.33,FROZEN FOODS-PROVISIONS,CATERERS
15 Oct 2014,BLAKEMORE FOODSERVICE,NEIGHBOURHOOD SERVICES,CA ELMORE GREEN PRIMARY SCHOOL,170.25,FROZEN FOODS-PROVISIONS,CATERERS
15 Oct 2014,GRANADA LEARNING,CHILDRENS SERVICES,EDUCATIONAL PSYCHOLOGISTS,168.00,GENERAL MATERIALS,DIRECT MARKETING COMBINATION CATALOG
15 Oct 2014,GRANADA LEARNING,CHILDRENS SERVICES,EDUCATIONAL PSYCHOLOGISTS,5.16,POSTAGES AND COURIER SERVICES,DIRECT MARKETING COMBINATION CATALOG
15 Oct 2014,SMART FOOD UK LIMITED,NEIGHBOURHOOD SERVICES,CA BUSILL JONES PRIMARY SCHOOL,305.60,FROZEN FOODS-PROVISIONS,CATERERS
15 Oct 2014,COUNTY HOTEL - THE,RESOURCES,HOMELESS PREVENTION GRANT,54.50,RENTS-OTHER,"HOTELS, MOTELS, RESORTS"
15 Oct 2014,IKEA SACAT,CHILDRENS SERVICES,SPINDLETREE,220.00,FURNITURE & EQUIPMENT,MISCELLANEOUS HOUSE FURNISHING SPECIALTY SHOPS
15 Oct 2014,AMAZON *MKTPLCE EU-UK,REGENERATION,CENTRALISED STATIONERY,12.58,STATIONERY & GENERAL SUPPLIES-OFFICE EXP,BOOK STORES
15 Oct 2014,BODYCARE,CHILDRENS SERVICES,57 LICHFIELD ROAD,6.54,RESIDENTS PERSONAL EXPENSES-ALLOWANCES TO S/S CLIENTS,COSMETIC STORES
15 Oct 2014,BLAKEMORE FOODSERVICE,NEIGHBOURHOOD SERVICES,CA WATLING STREET PRIMARY SCHOOL,179.44,FROZEN FOODS-PROVISIONS,CATERERS
15 Oct 2014,BLAKEMORE FOODSERVICE,NEIGHBOURHOOD SERVICES,CA COOPER JORDAN CE PRIMARY SCHOOL,91.77,FROZEN FOODS-PROVISIONS,CATERERS
15 Oct 2014,BLAKEMORE FOODSERVICE,NEIGHBOURHOOD SERVICES,CA JANE LANE SPECIAL SCHOOL,515.80,DRY FOODS-PROVISIONS,CATERERS
15 Oct 2014,BLAKEMORE FOODSERVICE,NEIGHBOURHOOD SERVICES,CA LINDENS PRIMARY SCHOOL,153.03,DRY FOODS-PROVISIONS,CATERERS
15 Oct 2014,BLAKEMORE FOODSERVICE,NEIGHBOURHOOD SERVICES,CA BARCROFT D/C,318.17,DRY FOODS-PROVISIONS,CATERERS
15 Oct 2014,BLAKEMORE FOODSERVICE,NEIGHBOURHOOD SERVICES,CA BARCROFT D/C,25.35,DRY FOODS-PROVISIONS,CATERERS
15 Oct 2014,BLAKEMORE FOODSERVICE,NEIGHBOURHOOD SERVICES,CA CASTLEFORT JMI SCHOOL,80.26,FROZEN FOODS-PROVISIONS,CATERERS
15 Oct 2014,BLAKEMORE FOODSERVICE,NEIGHBOURHOOD SERVICES,CA BIRCHILLS CE PRIMARY COMMUNITY SCHOOL,655.95,DRY FOODS-PROVISIONS,CATERERS
15 Oct 2014,BLAKEMORE FOODSERVICE,NEIGHBOURHOOD SERVICES,CA BIRCHILLS CE PRIMARY COMMUNITY SCHOOL,36.00,DRY FOODS-PROVISIONS,CATERERS
15 Oct 2014,BLAKEMORE FOODSERVICE,NEIGHBOURHOOD SERVICES,CA RADLEYS PRIMARY SCHOOL,127.79,FROZEN FOODS-PROVISIONS,CATERERS
15 Oct 2014,BLAKEMORE FOODSERVICE,NEIGHBOURHOOD SERVICES,CA ELMWOOD SPECIAL SCHOOL,122.06,DRY FOODS-PROVISIONS,CATERERS
15 Oct 2014,BLAKEMORE FOODSERVICE,NEIGHBOURHOOD SERVICES,CA ELMWOOD SPECIAL SCHOOL,17.07,DRY FOODS-PROVISIONS,CATERERS
15 Oct 2014,LANGHAM COURT,CHILDRENS SERVICES,SAFEGUARDING & FAMILY SUPPORT,202.80,ACCOMMODATION AND RELATED COSTS-ASSISTANCE TO S/S CLIENTS,"HOTELS, MOTELS, RESORTS"
15 Oct 2014,LANGHAM COURT,CHILDRENS SERVICES,EARLY YEARS AND DISABILITIES SERVICE,202.80,ACCOMMODATION AND RELATED COSTS-ASSISTANCE TO S/S CLIENTS,"HOTELS, MOTELS, RESORTS"
15 Oct 2014,BLAKEMORE FOODSERVICE,NEIGHBOURHOOD SERVICES,CA BUSILL JONES PRIMARY SCHOOL,611.89,DRY FOODS-PROVISIONS,CATERERS
15 Oct 2014,BLAKEMORE FOODSERVICE,NEIGHBOURHOOD SERVICES,CA BUSILL JONES PRIMARY SCHOOL,13.15,DRY FOODS-PROVISIONS,CATERERS
15 Oct 2014,BLAKEMORE FOODSERVICE,NEIGHBOURHOOD SERVICES,CA ELMORE GREEN PRIMARY SCHOOL,271.86,DRY FOODS-PROVISIONS,CATERERS
15 Oct 2014,BLAKEMORE FOODSERVICE,NEIGHBOURHOOD SERVICES,CA ELMORE GREEN PRIMARY SCHOOL,25.35,DRY FOODS-PROVISIONS,CATERERS
15 Oct 2014,LUL TICKET MACHINE,NEIGHBOURHOOD SERVICES,NEW ART GALLERY - ADMIN,10.00,OFFICER/STAFF-PUBLIC TRANSPORT,PASSENGER RAILWAYS
15 Oct 2014,BLAKEMORE FOODSERVICE,NEIGHBOURHOOD SERVICES,CA MEADOW VIEW JMI PRIMARY SCHOOL,181.01,FROZEN FOODS-PROVISIONS,CATERERS
15 Oct 2014,AMAZON *MKTPLCE EU-UK,CHILDRENS SERVICES,ADMINISTRATIVE SUPPLIES,61.35,GENERAL MATERIALS,BOOK STORES
15 Oct 2014,BLAKEMORE FOODSERVICE,NEIGHBOURHOOD SERVICES,CA BEACON PRIMARY SCHOOL,509.17,DRY FOODS-PROVISIONS,CATERERS
15 Oct 2014,BLAKEMORE FOODSERVICE,NEIGHBOURHOOD SERVICES,CA BEACON PRIMARY SCHOOL,101.42,DRY FOODS-PROVISIONS,CATERERS
15 Oct 2014,SMART FOOD UK LIMITED,NEIGHBOURHOOD SERVICES,CA RADLEYS PRIMARY SCHOOL,305.60,FROZEN FOODS-PROVISIONS,CATERERS
15 Oct 2014,BLAKEMORE FOODSERVICE,NEIGHBOURHOOD SERVICES,CA JOSEPH LECKIE COMMUNITY TECHNOLOGY COLLEGE,337.47,DRY FOODS-PROVISIONS,CATERERS
15 Oct 2014,WWW.STAPLES.CO.UK,CHILDRENS SERVICES,CHILDRENS RESIDENTIAL SVCS,65.98,STATIONERY & GENERAL SUPPLIES-OFFICE EXP,"OFFICE, SCHOOL SUPPLY, AND STATIONERY STORES"
15 Oct 2014,BLAKEMORE FOODSERVICE,NEIGHBOURHOOD SERVICES,CA ST MICHAELS C.E. PRIMARY SCHOOL,139.66,DRY FOODS-PROVISIONS,CATERERS
15 Oct 2014,BLAKEMORE FOODSERVICE,NEIGHBOURHOOD SERVICES,CA ST MICHAELS C.E. PRIMARY SCHOOL,7.68,DRY FOODS-PROVISIONS,CATERERS
15 Oct 2014,ARTHUR BRETT CATER,NEIGHBOURHOOD SERVICES,TOWN HALL RESTAURANT BISTRO,36.20,FRUIT & VEGETABLES OTHER-PROVISIONS,MISCELLANEOUS FOOD STORES & CONVENIENCE STORES
15 Oct 2014,BLAKEMORE FOODSERVICE,NEIGHBOURHOOD SERVICES,CA BLUE COAT C OF E PERFORMING ARTS COLLEGE,310.89,FROZEN FOODS-PROVISIONS,CATERERS
15 Oct 2014,ARTHUR BRETT CATER,NEIGHBOURHOOD SERVICES,CA TOWN HALL RESTAURANT - CATERING,32.51,FRUIT & VEGETABLES OTHER-PROVISIONS,MISCELLANEOUS FOOD STORES & CONVENIENCE STORES
15 Oct 2014,WM MORRISONS,RESOURCES,ACCOMMODATION SERVICES MANAGEMENT,7.77,FURNITURE & EQUIPMENT,GROCERY STORES AND SUPERMARKETS
15 Oct 2014,BLAKEMORE FOODSERVICE,NEIGHBOURHOOD SERVICES,CA CALDMORE COMMUNITY PRIMARY SCHOOL,128.98,DRY FOODS-PROVISIONS,CATERERS
15 Oct 2014,BLAKEMORE FOODSERVICE,NEIGHBOURHOOD SERVICES,CA LEIGHSWOOD PRIMARY SCHOOL,63.20,FROZEN FOODS-PROVISIONS,CATERERS
15 Oct 2014,ARGOS LTD,CHILDRENS SERVICES,"CLUSTER 6 BENTLEY,LIGHTHOUSE,FIBBERSLEY",28.49,FURNITURE & EQUIPMENT,DISCOUNT STORES
15 Oct 2014,BLAKEMORE FOODSERVICE,NEIGHBOURHOOD SERVICES,CA RUSHALL JMI SCHOOL,99.01,FROZEN FOODS-PROVISIONS,CATERERS
15 Oct 2014,THE TRAINLINE.COM,NEIGHBOURHOOD SERVICES,ROAD SAFETY & SUSTAINABLE TRAVEL,84.15,SUBSISTENCE OFFICERS-EXPENSES,PASSENGER RAILWAYS
15 Oct 2014,AMAZON *MKTPLCE EU-UK,CHILDRENS SERVICES,GENERAL RESOURCES & MISC,110.08,GENERAL MATERIALS,BOOK STORES
15 Oct 2014,ASDA,CHILDRENS SERVICES,57 LICHFIELD ROAD,8.00,RESIDENTS PERSONAL EXPENSES-ALLOWANCES TO S/S CLIENTS,GROCERY STORES AND SUPERMARKETS
15 Oct 2014,VIRGINTRAINS.CO.UK,NEIGHBOURHOOD SERVICES,EH DIV GENERAL COSTS,59.50,OFFICER/STAFF-PUBLIC TRANSPORT,PASSENGER RAILWAYS
15 Oct 2014,WM MORRISON 063,CHILDRENS SERVICES,LOOKED AFTER CHILDRENS SOCIAL WORK TEAM,2.00,FOOD AND BEVERAGES-PROVISIONS,GROCERY STORES AND SUPERMARKETS
15 Oct 2014,WM MORRISON 063,CHILDRENS SERVICES,LOOKED AFTER CHILDRENS SOCIAL WORK TEAM,10.99,FOOD AND BEVERAGES-PROVISIONS,GROCERY STORES AND SUPERMARKETS
15 Oct 2014,TRAINLINE.COM,NEIGHBOURHOOD SERVICES,NEW ART GALLERY - ADMIN,63.10,OFFICER/STAFF-PUBLIC TRANSPORT,PASSENGER RAILWAYS
15 Oct 2014,TRAINLINE.COM,NEIGHBOURHOOD SERVICES,EXHIBITIONS - SPECIAL PROJECTS/PARTNERSHIPS,67.05,OTHER/VOLUNTEERS-PUBLIC TRANSPORT,PASSENGER RAILWAYS
15 Oct 2014,WALSALL COUNCIL,CHILDRENS SERVICES,SAFEGUARDING & FAMILY SUPPORT,25.00,REGISTRAR OF BIRTHS/DEATHS/MARRIAGES/CIVIL PARTNERSHIPS-SERV-FEES/CHARGES,GOVERNMENT SERVICES
15 Oct 2014,BLAKEMORE FOODSERVICE,NEIGHBOURHOOD SERVICES,CA GREEN ROCK PRIMARY,65.61,FROZEN FOODS-PROVISIONS,CATERERS
15 Oct 2014,TESCO STORES 6161,CHILDRENS SERVICES,FOOD TECH,28.07,GENERAL MATERIALS,GROCERY STORES AND SUPERMARKETS
15 Oct 2014,THE CARPET MAN,RESOURCES,WALSALL CRISIS SUPPORT SCHEME,390.00,CRISIS SUPPORT PAYMENTS,FLOOR COVERING STORES
16 Oct 2014,WELSH BROS FOODS LTD,NEIGHBOURHOOD SERVICES,CA JANE LANE SPECIAL SCHOOL,78.73,MEAT-PROVISIONS,FREEZER AND LOCKER MEAT PROVISIONERS
16 Oct 2014,JOHAL DAIRIES LTD,NEIGHBOURHOOD SERVICES,CA LEIGHSWOOD PRIMARY SCHOOL,13.44,MISC DAIRY PRODUCTS-PROVISIONS,OTHER NONDURABLE GOODS
16 Oct 2014,CRAZY HOUSE (BROWNHILL,RESOURCES,WALSALL CRISIS SUPPORT SCHEME,60.00,CRISIS SUPPORT PAYMENTS,"EQUIPMENT, FURNITURE, AND HOME FURNISHINGS STORES "
16 Oct 2014,WWW.DVLA.GOV.UK,NEIGHBOURHOOD SERVICES,FLEET,142.50,LICENCES-TRANSPORT RUN COSTS,GOVERNMENT SERVICES
16 Oct 2014,DWP,REGENERATION,CENTRAL OFFICE ACCOMMODATION,458.80,PROFESSIONAL SERVICES-PRIV CONTRACTOR & OTHER AGENCIES,GOVERNMENT SERVICES
16 Oct 2014,ARGOS,NEIGHBOURHOOD SERVICES,BLOXWICH LEISURE CENTRE,12.98,NEW-FURNITURE & EQUIPMENT,DISCOUNT STORES
16 Oct 2014,WWW.DVLA.GOV.UK,NEIGHBOURHOOD SERVICES,FLEET,227.50,LICENCES-TRANSPORT RUN COSTS,GOVERNMENT SERVICES
16 Oct 2014,FINDEL ED LTD,CHILDRENS SERVICES,STANLEYS NURSERY,47.80,GENERAL MATERIALS,OTHER DIRECT MARKETING-OTHER DIRECT MARKETERS
16 Oct 2014,GAILS - EVENTS,NEIGHBOURHOOD SERVICES,NEW ART GALLERY - ADMIN,11.90,MISC DAIRY PRODUCTS-PROVISIONS,BAKERIES
16 Oct 2014,GAILS - EVENTS,NEIGHBOURHOOD SERVICES,NEW ART GALLERY - ADMIN,2.20,MISC DAIRY PRODUCTS-PROVISIONS,BAKERIES
16 Oct 2014,JOHAL DAIRIES LTD,NEIGHBOURHOOD SERVICES,CA TOWN HALL RESTAURANT - CATERING,29.66,MISC DAIRY PRODUCTS-PROVISIONS,OTHER NONDURABLE GOODS
16 Oct 2014,WWW.DVLA.GOV.UK,NEIGHBOURHOOD SERVICES,FLEET,227.50,LICENCES-TRANSPORT RUN COSTS,GOVERNMENT SERVICES
16 Oct 2014,WWW.DVLA.GOV.UK,NEIGHBOURHOOD SERVICES,FLEET,227.50,LICENCES-TRANSPORT RUN COSTS,GOVERNMENT SERVICES
16 Oct 2014,AMAZON *MKTPLCE EU-UK,CHILDRENS SERVICES,R.E.,10.99,LIBRARY BOOKS,BOOK STORES
16 Oct 2014,WWW.DVLA.GOV.UK,NEIGHBOURHOOD SERVICES,FLEET,227.50,LICENCES-TRANSPORT RUN COSTS,GOVERNMENT SERVICES
16 Oct 2014,OFFICE DEPOT,RESOURCES,SIT-CORPORATE SERVICES,23.47,STATIONERY & GENERAL SUPPLIES-OFFICE EXP,"STATIONERY, OFFICE SUPPLIES AND WRITING PAPER"
16 Oct 2014,WILKO RETAIL LIMIT,NEIGHBOURHOOD SERVICES,ARBORETUM,47.86,FURNITURE & EQUIPMENT,HOUSEHOLD APPLIANCE STORES
16 Oct 2014,CRAZY HOUSE (BROWNHILL,CHILDRENS SERVICES,GREENFIELD PRIMARY,100.00,FURNITURE & EQUIPMENT,"EQUIPMENT, FURNITURE, AND HOME FURNISHINGS STORES "
16 Oct 2014,ARTHUR BRETT CATER,NEIGHBOURHOOD SERVICES,CA GREEN ROCK PRIMARY,28.31,FRUIT & VEGETABLES OTHER-PROVISIONS,MISCELLANEOUS FOOD STORES & CONVENIENCE STORES
16 Oct 2014,JOHAL DAIRIES LTD,CHILDRENS SERVICES,57 LICHFIELD ROAD,15.24,GENERAL PROVISIONS-PROVISIONS,OTHER NONDURABLE GOODS
16 Oct 2014,WWW.DVLA.GOV.UK,NEIGHBOURHOOD SERVICES,FLEET,202.50,LICENCES-TRANSPORT RUN COSTS,GOVERNMENT SERVICES
16 Oct 2014,WWW.DVLA.GOV.UK,NEIGHBOURHOOD SERVICES,FLEET,142.50,LICENCES-TRANSPORT RUN COSTS,GOVERNMENT SERVICES
16 Oct 2014,ARGOS LTD,NEIGHBOURHOOD SERVICES,LEISURE - MANAGEMENT AND ADMIN,109.99,NEW-FURNITURE & EQUIPMENT,DISCOUNT STORES
16 Oct 2014,ARTHUR BRETT CATER,NEIGHBOURHOOD SERVICES,CA BEACON PRIMARY SCHOOL,246.67,FRUIT & VEGETABLES OTHER-PROVISIONS,MISCELLANEOUS FOOD STORES & CONVENIENCE STORES
16 Oct 2014,AMAZON EU,CHILDRENS SERVICES,R.E.,12.21,LIBRARY BOOKS,OTHER DIRECT MARKETING-OTHER DIRECT MARKETERS
16 Oct 2014,JOHAL DAIRIES LTD,CHILDRENS SERVICES,STROUD FAMILY CENTRE,3.98,GENERAL PROVISIONS-PROVISIONS,OTHER NONDURABLE GOODS
16 Oct 2014,AMAZON EU,CHILDRENS SERVICES,ST FRANCIS OF ASSISI CATHOLIC TECHNOLOGY COLLEGE,41.29,GENERAL MATERIALS,OTHER DIRECT MARKETING-OTHER DIRECT MARKETERS
16 Oct 2014,STRIKE ELECTRICAL DIST,NEIGHBOURHOOD SERVICES,DARLASTON LEISURE CENTRE,71.28,FURNITURE & EQUIPMENT,HOUSEHOLD APPLIANCE STORES
16 Oct 2014,DENMANS ELECTRICAL,NEIGHBOURHOOD SERVICES,DARLASTON LEISURE CENTRE,9.60,FURNITURE & EQUIPMENT,ELECTRICAL PARTS AND EQUIPMENT
16 Oct 2014,ASDA STORES 7134,CHILDRENS SERVICES,SPINDLETREE,0.78,GENERAL PROVISIONS-PROVISIONS,GROCERY STORES AND SUPERMARKETS
16 Oct 2014,ASDA STORES 7134,CHILDRENS SERVICES,SPINDLETREE,95.93,GENERAL PROVISIONS-PROVISIONS,GROCERY STORES AND SUPERMARKETS
16 Oct 2014,WWW.DVLA.GOV.UK,NEIGHBOURHOOD SERVICES,FLEET,142.50,LICENCES-TRANSPORT RUN COSTS,GOVERNMENT SERVICES
16 Oct 2014,WWW.DVLA.GOV.UK,NEIGHBOURHOOD SERVICES,FLEET,227.50,LICENCES-TRANSPORT RUN COSTS,GOVERNMENT SERVICES
16 Oct 2014,WWW.DVLA.GOV.UK,NEIGHBOURHOOD SERVICES,FLEET,142.50,LICENCES-TRANSPORT RUN COSTS,GOVERNMENT SERVICES
16 Oct 2014,WWW.DVLA.GOV.UK,NEIGHBOURHOOD SERVICES,FLEET,142.50,LICENCES-TRANSPORT RUN COSTS,GOVERNMENT SERVICES
16 Oct 2014,WWW.DVLA.GOV.UK,NEIGHBOURHOOD SERVICES,FLEET,232.50,LICENCES-TRANSPORT RUN COSTS,GOVERNMENT SERVICES
16 Oct 2014,JOHAL DAIRIES LTD,NEIGHBOURHOOD SERVICES,CA BUSILL JONES PRIMARY SCHOOL,62.08,MISC DAIRY PRODUCTS-PROVISIONS,OTHER NONDURABLE GOODS
16 Oct 2014,WWW.DVLA.GOV.UK,NEIGHBOURHOOD SERVICES,FLEET,227.50,LICENCES-TRANSPORT RUN COSTS,GOVERNMENT SERVICES
16 Oct 2014,FINDEL ED LTD,CHILDRENS SERVICES,STANLEYS NURSERY,76.31,GENERAL MATERIALS,OTHER DIRECT MARKETING-OTHER DIRECT MARKETERS
16 Oct 2014,JOHAL DAIRIES LTD,NEIGHBOURHOOD SERVICES,CA MOORCROFT WOOD,30.50,MISC DAIRY PRODUCTS-PROVISIONS,OTHER NONDURABLE GOODS
16 Oct 2014,PAYPAL,CHILDRENS SERVICES,POSITIVE ACTIVITIES SUMMER PROGRAMMES,111.99,LIBRARY BOOKS,BOOK STORES
16 Oct 2014,ARTHUR BRETT CATER,NEIGHBOURHOOD SERVICES,CA LITTLE BLOXWICH CE PRIMARY SCHOOL,20.43,FRUIT & VEGETABLES OTHER-PROVISIONS,MISCELLANEOUS FOOD STORES & CONVENIENCE STORES
16 Oct 2014,JOHAL DAIRIES LTD,NEIGHBOURHOOD SERVICES,CA CROFT COMMUNITY PRIMARY SCHOOL,2.73,MISC DAIRY PRODUCTS-PROVISIONS,OTHER NONDURABLE GOODS
16 Oct 2014,JOHAL DAIRIES LTD,SOCIAL CARE & INCLUSION,REABLEMENT TEAM - HOLLY BANK,90.37,MISC DAIRY PRODUCTS-PROVISIONS,OTHER NONDURABLE GOODS
16 Oct 2014,JOHAL DAIRIES LTD,NEIGHBOURHOOD SERVICES,CA ST GILES C.E. PRIMARY SCHOOL,48.08,MISC DAIRY PRODUCTS-PROVISIONS,OTHER NONDURABLE GOODS
16 Oct 2014,WALSALL COUNCIL,RESOURCES,HOMELESS PREVENTION GRANT,27.00,PROFESSIONAL SERVICES-PRIV CONTRACTOR & OTHER AGENCIES,GOVERNMENT SERVICES
16 Oct 2014,JOHAL DAIRIES LTD,NEIGHBOURHOOD SERVICES,CA CALDMORE COMMUNITY PRIMARY SCHOOL,24.52,MISC DAIRY PRODUCTS-PROVISIONS,OTHER NONDURABLE GOODS
16 Oct 2014,WWW.DVLA.GOV.UK,NEIGHBOURHOOD SERVICES,FLEET,202.50,LICENCES-TRANSPORT RUN COSTS,GOVERNMENT SERVICES
16 Oct 2014,JOHAL DAIRIES LTD,NEIGHBOURHOOD SERVICES,CA BARCROFT D/C,26.10,MISC DAIRY PRODUCTS-PROVISIONS,OTHER NONDURABLE GOODS
16 Oct 2014,W M MORRISON PLC,CHILDRENS SERVICES,"43A HILTON ROAD, WILLENHALL",25.37,GENERAL PROVISIONS-PROVISIONS,GROCERY STORES AND SUPERMARKETS
16 Oct 2014,W M MORRISON PLC,CHILDRENS SERVICES,"43A HILTON ROAD, WILLENHALL",38.47,GENERAL PROVISIONS-PROVISIONS,GROCERY STORES AND SUPERMARKETS
16 Oct 2014,W M MORRISON PLC,CHILDRENS SERVICES,"43A HILTON ROAD, WILLENHALL",38.33,GENERAL PROVISIONS-PROVISIONS,GROCERY STORES AND SUPERMARKETS
16 Oct 2014,W M MORRISON PLC,CHILDRENS SERVICES,"43A HILTON ROAD, WILLENHALL",3.00,GENERAL PROVISIONS-PROVISIONS,GROCERY STORES AND SUPERMARKETS
16 Oct 2014,W M MORRISON PLC,CHILDRENS SERVICES,"43A HILTON ROAD, WILLENHALL",14.54,GENERAL PROVISIONS-PROVISIONS,GROCERY STORES AND SUPERMARKETS
16 Oct 2014,W M MORRISON PLC,CHILDRENS SERVICES,"43A HILTON ROAD, WILLENHALL",22.67,GENERAL PROVISIONS-PROVISIONS,GROCERY STORES AND SUPERMARKETS
16 Oct 2014,SACKTRUCKSDIRECT.C,NEIGHBOURHOOD SERVICES,STREET CLEANSING,220.00,GENERAL MATERIALS,HARDWARE STORES
16 Oct 2014,JOHAL DAIRIES LTD,NEIGHBOURHOOD SERVICES,CA BEACON PRIMARY SCHOOL,87.78,MISC DAIRY PRODUCTS-PROVISIONS,OTHER NONDURABLE GOODS
16 Oct 2014,JOHAL DAIRIES LTD,NEIGHBOURHOOD SERVICES,CA COOPER JORDAN CE PRIMARY SCHOOL,16.80,MISC DAIRY PRODUCTS-PROVISIONS,OTHER NONDURABLE GOODS
16 Oct 2014,WWW.DVLA.GOV.UK,NEIGHBOURHOOD SERVICES,FLEET,142.50,LICENCES-TRANSPORT RUN COSTS,GOVERNMENT SERVICES
16 Oct 2014,OFFICE DEPOT,NEIGHBOURHOOD SERVICES,STREETLY CREMATORIUM,131.26,STATIONERY & GENERAL SUPPLIES-OFFICE EXP,"STATIONERY, OFFICE SUPPLIES AND WRITING PAPER"
16 Oct 2014,TESCO STORES 6161,CHILDRENS SERVICES,57 LICHFIELD ROAD,17.95,RESIDENTS PERSONAL EXPENSES-ALLOWANCES TO S/S CLIENTS,GROCERY STORES AND SUPERMARKETS
16 Oct 2014,JOHAL DAIRIES LTD,SOCIAL CARE & INCLUSION,FALLINGS HEATH,31.63,FOOD AND BEVERAGES-PROVISIONS,OTHER NONDURABLE GOODS
16 Oct 2014,WWW.DVLA.GOV.UK,NEIGHBOURHOOD SERVICES,FLEET,227.50,LICENCES-TRANSPORT RUN COSTS,GOVERNMENT SERVICES
16 Oct 2014,JOHAL DAIRIES LTD,NEIGHBOURHOOD SERVICES,CA MEADOW VIEW JMI PRIMARY SCHOOL,6.31,MISC DAIRY PRODUCTS-PROVISIONS,OTHER NONDURABLE GOODS
16 Oct 2014,JOHAL DAIRIES LTD,NEIGHBOURHOOD SERVICES,CA ST FRANCIS CATHOLIC PRIMARY SCHOOL,6.59,MISC DAIRY PRODUCTS-PROVISIONS,OTHER NONDURABLE GOODS
16 Oct 2014,AMAZON EU,REGENERATION,CAPITAL-REGENERATION STRATEGIC TRANSPORTATION,44.35,PUBLICATIONS/ORGANISATIONS-SUBSCRIPTIONS,OTHER DIRECT MARKETING-OTHER DIRECT MARKETERS
16 Oct 2014,B & Q,NEIGHBOURHOOD SERVICES,BLOXWICH LEISURE CENTRE,31.96,NEW-FURNITURE & EQUIPMENT,LUMBER & BUILDING MATERIALS STORES
16 Oct 2014,DOMESTIC HEROES LTD,RESOURCES,WALSALL CRISIS SUPPORT SCHEME,71.75,CRISIS SUPPORT PAYMENTS,HOUSEHOLD APPLIANCE STORES
16 Oct 2014,W M MORRISON PLC,CHILDRENS SERVICES,UNDERSTANDING OF THE WORLD,5.00,GENERAL MATERIALS,GROCERY STORES AND SUPERMARKETS
16 Oct 2014,W M MORRISON PLC,CHILDRENS SERVICES,UNDERSTANDING OF THE WORLD,11.58,GENERAL MATERIALS,GROCERY STORES AND SUPERMARKETS
16 Oct 2014,JOHAL DAIRIES LTD,NEIGHBOURHOOD SERVICES,CA LINDENS PRIMARY SCHOOL,22.02,MISC DAIRY PRODUCTS-PROVISIONS,OTHER NONDURABLE GOODS
16 Oct 2014,JOHAL DAIRIES LTD,NEIGHBOURHOOD SERVICES,CA ELMWOOD SPECIAL SCHOOL,4.20,MISC DAIRY PRODUCTS-PROVISIONS,OTHER NONDURABLE GOODS
16 Oct 2014,WWW.TITANMAGAZINES.COM,CHILDRENS SERVICES,PUPIL PREMIUM,26.80,GENERAL MATERIALS,MISCELLANEOUS PUBLISHING AND PRINTING
16 Oct 2014,CRAZY HOUSE (BROWNHILL,RESOURCES,WALSALL CRISIS SUPPORT SCHEME,65.00,CRISIS SUPPORT PAYMENTS,"EQUIPMENT, FURNITURE, AND HOME FURNISHINGS STORES "
16 Oct 2014,WWW.DVLA.GOV.UK,NEIGHBOURHOOD SERVICES,FLEET,227.50,LICENCES-TRANSPORT RUN COSTS,GOVERNMENT SERVICES
16 Oct 2014,AMAZON EU,CHILDRENS SERVICES,CLUSTER 5 DARLASTON,21.00,CLEANING-MATERIALS (INC LIGHT BULBS),OTHER DIRECT MARKETING-OTHER DIRECT MARKETERS
16 Oct 2014,AMAZON EU,CHILDRENS SERVICES,CLUSTER 5 DARLASTON,23.00,NEW-FURNITURE & EQUIPMENT,OTHER DIRECT MARKETING-OTHER DIRECT MARKETERS
16 Oct 2014,AMAZON *MKTPLCE EU-UK,NEIGHBOURHOOD SERVICES,TRADING STANDARDS,86.98,LIBRARY BOOKS,BOOK STORES
16 Oct 2014,WALSALL COUNCIL,CHILDRENS SERVICES,SAFEGUARDING & FAMILY SUPPORT,-6.00,REGISTRAR OF BIRTHS/DEATHS/MARRIAGES/CIVIL PARTNERSHIPS-SERV-FEES/CHARGES,GOVERNMENT SERVICES
16 Oct 2014,ARTHUR BRETT CATER,NEIGHBOURHOOD SERVICES,CA ST JOHNS C.E. PRIMARY SCHOOL,73.59,FRUIT & VEGETABLES OTHER-PROVISIONS,MISCELLANEOUS FOOD STORES & CONVENIENCE STORES
16 Oct 2014,CRAZY HOUSE (BROWNHILL,CHILDRENS SERVICES,GREENFIELD PRIMARY,85.00,FURNITURE & EQUIPMENT,"EQUIPMENT, FURNITURE, AND HOME FURNISHINGS STORES "
16 Oct 2014,JOHAL DAIRIES LTD,NEIGHBOURHOOD SERVICES,CA RUSHALL JMI SCHOOL,37.05,MISC DAIRY PRODUCTS-PROVISIONS,OTHER NONDURABLE GOODS
16 Oct 2014,ASDA SUPERSTORE,CHILDRENS SERVICES,ADOPTION TEAM,31.68,FOOD AND BEVERAGES-PROVISIONS,GROCERY STORES AND SUPERMARKETS
16 Oct 2014,CRAZY HOUSE (BROWNHILL,CHILDRENS SERVICES,GREENFIELD PRIMARY,100.00,FURNITURE & EQUIPMENT,"EQUIPMENT, FURNITURE, AND HOME FURNISHINGS STORES "
16 Oct 2014,CRAZY HOUSE (BROWNHILL,RESOURCES,WALSALL CRISIS SUPPORT SCHEME,60.00,CRISIS SUPPORT PAYMENTS,"EQUIPMENT, FURNITURE, AND HOME FURNISHINGS STORES "
16 Oct 2014,WWW.DVLA.GOV.UK,NEIGHBOURHOOD SERVICES,FLEET,142.50,LICENCES-TRANSPORT RUN COSTS,GOVERNMENT SERVICES
16 Oct 2014,LONDON MIDLAND TIC,CHILDRENS SERVICES,LOOKED AFTER CHILDRENS SOCIAL WORK TEAM,148.40,OFFICER/STAFF-PUBLIC TRANSPORT,PASSENGER RAILWAYS
16 Oct 2014,A F BLAKEMORE & SON LTD,CHILDRENS SERVICES,MARY ELLIOTT SPECIAL SCHOOL,290.47,BREAD-GENERAL-PROVISIONS,GROCERY STORES AND SUPERMARKETS
16 Oct 2014,JOHAL DAIRIES LTD,NEIGHBOURHOOD SERVICES,CA ST ANNES CATHOLIC PRIMARY SCHOOL,17.45,MISC DAIRY PRODUCTS-PROVISIONS,OTHER NONDURABLE GOODS
16 Oct 2014,JOHAL DAIRIES LTD,NEIGHBOURHOOD SERVICES,CA POOL HAYES PRIMARY SCHOOL,7.24,MISC DAIRY PRODUCTS-PROVISIONS,OTHER NONDURABLE GOODS
16 Oct 2014,TESCO STORES 6161,RESOURCES,WALSALL CRISIS SUPPORT SCHEME,1.24,CRISIS SUPPORT PAYMENTS,GROCERY STORES AND SUPERMARKETS
16 Oct 2014,JOHAL DAIRIES LTD,NEIGHBOURHOOD SERVICES,CA BROWNHILLS WEST PRIMARY SCHOOL,16.80,MISC DAIRY PRODUCTS-PROVISIONS,OTHER NONDURABLE GOODS
16 Oct 2014,WWW.DVLA.GOV.UK,NEIGHBOURHOOD SERVICES,FLEET,142.50,LICENCES-TRANSPORT RUN COSTS,GOVERNMENT SERVICES
16 Oct 2014,JOHAL DAIRIES LTD,NEIGHBOURHOOD SERVICES,CA LITTLE BLOXWICH CE PRIMARY SCHOOL,23.00,MISC DAIRY PRODUCTS-PROVISIONS,OTHER NONDURABLE GOODS
16 Oct 2014,CRAZY HOUSE (BROWNHILL,RESOURCES,WALSALL CRISIS SUPPORT SCHEME,125.00,CRISIS SUPPORT PAYMENTS,"EQUIPMENT, FURNITURE, AND HOME FURNISHINGS STORES "
16 Oct 2014,ARTHUR BRETT CATER,NEIGHBOURHOOD SERVICES,CA BUSILL JONES PRIMARY SCHOOL,139.79,FRUIT & VEGETABLES OTHER-PROVISIONS,MISCELLANEOUS FOOD STORES & CONVENIENCE STORES
16 Oct 2014,JOHAL DAIRIES LTD,NEIGHBOURHOOD SERVICES,CA JANE LANE SPECIAL SCHOOL,9.50,MISC DAIRY PRODUCTS-PROVISIONS,OTHER NONDURABLE GOODS
16 Oct 2014,WWW.TTS-GROUPS.CO.UK,CHILDRENS SERVICES,STANLEYS NURSERY,65.79,GENERAL MATERIALS,"OFFICE, SCHOOL SUPPLY, AND STATIONERY STORES"
16 Oct 2014,WWW.DVLA.GOV.UK,NEIGHBOURHOOD SERVICES,FLEET,227.50,LICENCES-TRANSPORT RUN COSTS,GOVERNMENT SERVICES
16 Oct 2014,AMAZON *MKTPLCE EU-UK,CHILDRENS SERVICES,ADMINISTRATIVE SUPPLIES,5.55,GENERAL MATERIALS,BOOK STORES
16 Oct 2014,TRAINLINE.COM,RESOURCES,LAW LIBRARY,100.47,OFFICER/STAFF-PUBLIC TRANSPORT,PASSENGER RAILWAYS
16 Oct 2014,CRAZY HOUSE (BROWNHILL,RESOURCES,WALSALL CRISIS SUPPORT SCHEME,105.00,CRISIS SUPPORT PAYMENTS,"EQUIPMENT, FURNITURE, AND HOME FURNISHINGS STORES "
16 Oct 2014,THE CARPET MAN,RESOURCES,WALSALL CRISIS SUPPORT SCHEME,318.00,CRISIS SUPPORT PAYMENTS,FLOOR COVERING STORES
16 Oct 2014,BORSHCH LIMITED,RESOURCES,WALSALL CRISIS SUPPORT SCHEME,200.00,CRISIS SUPPORT PAYMENTS,ELECTRONIC SALES
16 Oct 2014,BORSHCH LIMITED,RESOURCES,WALSALL CRISIS SUPPORT SCHEME,325.00,CRISIS SUPPORT PAYMENTS,ELECTRONIC SALES
16 Oct 2014,BORSHCH LIMITED,RESOURCES,WALSALL CRISIS SUPPORT SCHEME,195.00,CRISIS SUPPORT PAYMENTS,ELECTRONIC SALES
16 Oct 2014,BORSHCH LIMITED,RESOURCES,WALSALL CRISIS SUPPORT SCHEME,195.00,CRISIS SUPPORT PAYMENTS,ELECTRONIC SALES
16 Oct 2014,THE CARPET MAN,RESOURCES,WALSALL CRISIS SUPPORT SCHEME,360.00,CRISIS SUPPORT PAYMENTS,FLOOR COVERING STORES
16 Oct 2014,DARLASTON BUILDERS,NEIGHBOURHOOD SERVICES,DARLASTON LEISURE CENTRE,3.70,FURNITURE & EQUIPMENT,LUMBER & BUILDING MATERIALS STORES
16 Oct 2014,BORSHCH LIMITED,RESOURCES,WALSALL CRISIS SUPPORT SCHEME,390.00,CRISIS SUPPORT PAYMENTS,ELECTRONIC SALES
16 Oct 2014,BORSHCH LIMITED,RESOURCES,WALSALL CRISIS SUPPORT SCHEME,195.00,CRISIS SUPPORT PAYMENTS,ELECTRONIC SALES
16 Oct 2014,PEARSON ED LTD,CHILDRENS SERVICES,EDUCATIONAL PSYCHOLOGISTS,170.40,GENERAL MATERIALS,OTHER SCHOOLS AND EDUCATIONAL SERVICES
16 Oct 2014,PEARSON ED LTD,CHILDRENS SERVICES,EDUCATIONAL PSYCHOLOGISTS,170.40,GENERAL MATERIALS,OTHER SCHOOLS AND EDUCATIONAL SERVICES
16 Oct 2014,PEARSON ED LTD,CHILDRENS SERVICES,EDUCATIONAL PSYCHOLOGISTS,4.50,POSTAGES AND COURIER SERVICES,OTHER SCHOOLS AND EDUCATIONAL SERVICES
16 Oct 2014,BORSHCH LIMITED,RESOURCES,WALSALL CRISIS SUPPORT SCHEME,580.00,CRISIS SUPPORT PAYMENTS,ELECTRONIC SALES
16 Oct 2014,WWW.GIROFOOD.COM,NEIGHBOURHOOD SERVICES,CA JANE LANE SPECIAL SCHOOL,29.95,DISPOSABLES-PROVISIONS,WHOLESALE CLUBS
16 Oct 2014,WWW.GIROFOOD.COM,NEIGHBOURHOOD SERVICES,CA ELMORE GREEN PRIMARY SCHOOL,166.66,DISPOSABLES-PROVISIONS,WHOLESALE CLUBS
17 Oct 2014,WWW.LEARNING-WORKS.ORG.U,CHILDRENS SERVICES,GIFTED & TALENTED,55.94,GENERAL MATERIALS,BOOK STORES
17 Oct 2014,TESCO STORES 6161,CHILDRENS SERVICES,STANLEYS NURSERY,17.14,GENERAL MATERIALS,GROCERY STORES AND SUPERMARKETS
17 Oct 2014,TESCO STORES 6161,CHILDRENS SERVICES,CLUSTER 4 ALUMWELL & BIRCHILLS,53.08,FOOD AND BEVERAGES-PROVISIONS,GROCERY STORES AND SUPERMARKETS
17 Oct 2014,OFFICE DEPOT,CHILDRENS SERVICES,ACCESS TEAM,119.76,STATIONERY & GENERAL SUPPLIES-OFFICE EXP,"STATIONERY, OFFICE SUPPLIES AND WRITING PAPER"
17 Oct 2014,CHICKEN JOES LTD,NEIGHBOURHOOD SERVICES,CA LEIGHSWOOD PRIMARY SCHOOL,52.85,FROZEN FOODS-PROVISIONS,CATERERS
17 Oct 2014,CHICKEN JOES LTD,NEIGHBOURHOOD SERVICES,CA BARCROFT D/C,57.00,FROZEN FOODS-PROVISIONS,CATERERS
17 Oct 2014,OFFICE DEPOT,NEIGHBOURHOOD SERVICES,LIBRARY OPERATIONS CENTRAL,316.88,STATIONERY & GENERAL SUPPLIES-OFFICE EXP,"STATIONERY, OFFICE SUPPLIES AND WRITING PAPER"
17 Oct 2014,WWW.CORNERHOUSE.ORG,NEIGHBOURHOOD SERVICES,NAG - GARMAN RYAN/PERMANENT COLLECTION,126.00,VISUAL ARTS,MOTION PICTURE THEATERS
17 Oct 2014,WWW.PRIMARYTEACHING.CO,CHILDRENS SERVICES,ACCESS TEAM,124.15,STATIONERY & GENERAL SUPPLIES-OFFICE EXP,"OFFICE, SCHOOL SUPPLY, AND STATIONERY STORES"
17 Oct 2014,CHICKEN JOES LTD,NEIGHBOURHOOD SERVICES,CA MOORCROFT WOOD,74.71,FROZEN FOODS-PROVISIONS,CATERERS
17 Oct 2014,JOHAL DAIRIES LTD,NEIGHBOURHOOD SERVICES,CA ABBEY PRIMARY SCHOOL,44.96,MISC DAIRY PRODUCTS-PROVISIONS,OTHER NONDURABLE GOODS
17 Oct 2014,JOHAL DAIRIES LTD,NEIGHBOURHOOD SERVICES,CA LEAMORE PRIMARY SCHOOL,3.43,MISC DAIRY PRODUCTS-PROVISIONS,OTHER NONDURABLE GOODS
17 Oct 2014,BT BILL PAYMENT 2,CHILDRENS SERVICES,EARLY YEARS SERVICE,129.84,COSTS (NOT INTERNAL RECHARGES)-TELEPHONES,TELECOMMUNICATION EQUIPMENT & SALES
17 Oct 2014,P&L IND EQUIP LTD,NEIGHBOURHOOD SERVICES,FOREST ARTS CENTRE,34.84,GENERAL MATERIALS,HARDWARE EQUIPMENT AND SUPPLIES
17 Oct 2014,ITUNES.COM/BILL,CHILDRENS SERVICES,ICT LEARNING RESOURCES,13.27,GENERAL MATERIALS,RECORD SHOPS
17 Oct 2014,ARTHUR BRETT CATER,NEIGHBOURHOOD SERVICES,TOWN HALL RESTAURANT BISTRO,26.70,FRUIT & VEGETABLES OTHER-PROVISIONS,MISCELLANEOUS FOOD STORES & CONVENIENCE STORES
17 Oct 2014,CHICKEN JOES LTD,NEIGHBOURHOOD SERVICES,CA ELMWOOD SPECIAL SCHOOL,15.02,FROZEN FOODS-PROVISIONS,CATERERS
17 Oct 2014,OFFICE DEPOT,REGENERATION,PELSALL EDUCATION DEVELOPMENT CENTRE,206.11,STATIONERY & GENERAL SUPPLIES-OFFICE EXP,"STATIONERY, OFFICE SUPPLIES AND WRITING PAPER"
17 Oct 2014,WELSH BROS FOODS LTD,NEIGHBOURHOOD SERVICES,CA RADLEYS PRIMARY SCHOOL,259.40,MEAT-PROVISIONS,FREEZER AND LOCKER MEAT PROVISIONERS
17 Oct 2014,ITUNES.COM/BILL,CHILDRENS SERVICES,ICT LEARNING RESOURCES,18.20,GENERAL MATERIALS,RECORD SHOPS
17 Oct 2014,BORSHCH LIMITED,RESOURCES,WALSALL CRISIS SUPPORT SCHEME,195.00,CRISIS SUPPORT PAYMENTS,ELECTRONIC SALES
17 Oct 2014,CHICKEN JOES LTD,NEIGHBOURHOOD SERVICES,CA BUSILL JONES PRIMARY SCHOOL,136.35,FROZEN FOODS-PROVISIONS,CATERERS
17 Oct 2014,JOHAL DAIRIES LTD,NEIGHBOURHOOD SERVICES,CA CASTLEFORT JMI SCHOOL,20.05,MISC DAIRY PRODUCTS-PROVISIONS,OTHER NONDURABLE GOODS
17 Oct 2014,JOHAL DAIRIES LTD,NEIGHBOURHOOD SERVICES,CA ELMORE GREEN PRIMARY SCHOOL,10.22,MISC DAIRY PRODUCTS-PROVISIONS,OTHER NONDURABLE GOODS
17 Oct 2014,JOHAL DAIRIES LTD,NEIGHBOURHOOD SERVICES,CA GREEN ROCK PRIMARY,19.68,MISC DAIRY PRODUCTS-PROVISIONS,OTHER NONDURABLE GOODS
17 Oct 2014,AMAZON *MKTPLCE EU-UK,CHILDRENS SERVICES,ADMINISTRATIVE SUPPLIES,14.60,STATIONERY & GENERAL SUPPLIES-OFFICE EXP,BOOK STORES
17 Oct 2014,TRAINLINE.COM,NEIGHBOURHOOD SERVICES,GARMAN RYAN,84.66,OTHER/VOLUNTEERS-PUBLIC TRANSPORT,PASSENGER RAILWAYS
17 Oct 2014,OCTOBER GALLERY,NEIGHBOURHOOD SERVICES,NEW ART GALLERY - ADMIN,270.00,HOTEL ACCOMMODATION-EMPLOYEES,"ORGANIZATIONS, CHARITABLE AND SOCIAL SERVICE"
17 Oct 2014,AMAZON EU,CHILDRENS SERVICES,ST FRANCIS OF ASSISI CATHOLIC TECHNOLOGY COLLEGE,-8.99,GENERAL MATERIALS,OTHER DIRECT MARKETING-OTHER DIRECT MARKETERS
17 Oct 2014,BRITISH STANDARDS,NEIGHBOURHOOD SERVICES,LEISURE & CULTURE SUPPORT BUDGET,124.80,STATIONERY & GENERAL SUPPLIES-OFFICE EXP,OTHER BUSINESS SERVICES
17 Oct 2014,ITUNES.COM/BILL,CHILDRENS SERVICES,ICT LEARNING RESOURCES,8.40,GENERAL MATERIALS,RECORD SHOPS
17 Oct 2014,ITUNES.COM/BILL,CHILDRENS SERVICES,ICT LEARNING RESOURCES,7.77,GENERAL MATERIALS,RECORD SHOPS
17 Oct 2014,ASDA SUPERSTORE,RESOURCES,LINK SERVICE,22.58,FOOD AND BEVERAGES-PROVISIONS,GROCERY STORES AND SUPERMARKETS
17 Oct 2014,ASDA SUPERSTORE,RESOURCES,LINK SERVICE,6.25,FOOD AND BEVERAGES-PROVISIONS,GROCERY STORES AND SUPERMARKETS
17 Oct 2014,ITUNES.COM/BILL,CHILDRENS SERVICES,ICT LEARNING RESOURCES,13.00,GENERAL MATERIALS,RECORD SHOPS
17 Oct 2014,AMAZON *MKTPLCE EU-UK,CHILDRENS SERVICES,ACCESS TEAM,3.58,LIBRARY BOOKS,BOOK STORES
17 Oct 2014,CHICKEN JOES LTD,NEIGHBOURHOOD SERVICES,CA RADLEYS PRIMARY SCHOOL,105.70,FROZEN FOODS-PROVISIONS,CATERERS
17 Oct 2014,THE BOOK PEOPLE,CHILDRENS SERVICES,GENERAL RESOURCES & MISC,205.84,GENERAL MATERIALS,BOOK STORES
17 Oct 2014,OFFICE DEPOT,RESOURCES,PRINT STORES,420.00,STATIONERY & GENERAL SUPPLIES-OFFICE EXP,"STATIONERY, OFFICE SUPPLIES AND WRITING PAPER"
17 Oct 2014,BORSHCH LIMITED,RESOURCES,WALSALL CRISIS SUPPORT SCHEME,385.00,CRISIS SUPPORT PAYMENTS,ELECTRONIC SALES
17 Oct 2014,CHICKEN JOES LTD,NEIGHBOURHOOD SERVICES,CA WATLING STREET PRIMARY SCHOOL,73.00,FROZEN FOODS-PROVISIONS,CATERERS
17 Oct 2014,JOHAL DAIRIES LTD,NEIGHBOURHOOD SERVICES,CA WATLING STREET PRIMARY SCHOOL,33.70,MISC DAIRY PRODUCTS-PROVISIONS,OTHER NONDURABLE GOODS
17 Oct 2014,ITUNES.COM/BILL,CHILDRENS SERVICES,ICT LEARNING RESOURCES,18.20,GENERAL MATERIALS,RECORD SHOPS
17 Oct 2014,CHICKEN JOES LTD,NEIGHBOURHOOD SERVICES,CA COOPER JORDAN CE PRIMARY SCHOOL,39.15,FROZEN FOODS-PROVISIONS,CATERERS
17 Oct 2014,ALLPAY.NET VISA AND MAST,RESOURCES,ACCOMMODATION SERVICES MANAGEMENT,210.00,RENTS,REAL ESTATE MANAGERS - RENTALS
17 Oct 2014,OFFICE DEPOT,NEIGHBOURHOOD SERVICES,PUBLIC HEALTH BUSINESS SUPPORT,37.01,STATIONERY & GENERAL SUPPLIES-OFFICE EXP,"STATIONERY, OFFICE SUPPLIES AND WRITING PAPER"
17 Oct 2014,WM MORRISON 063,CHILDRENS SERVICES,REDRUTH ROAD,22.19,GENERAL PROVISIONS-PROVISIONS,GROCERY STORES AND SUPERMARKETS
17 Oct 2014,JOHAL DAIRIES LTD,NEIGHBOURHOOD SERVICES,CA BIRCHILLS CE PRIMARY COMMUNITY SCHOOL,37.49,MISC DAIRY PRODUCTS-PROVISIONS,OTHER NONDURABLE GOODS
17 Oct 2014,CHICKEN JOES LTD,NEIGHBOURHOOD SERVICES,CA BEACON PRIMARY SCHOOL,154.50,FROZEN FOODS-PROVISIONS,CATERERS
17 Oct 2014,JOHAL DAIRIES LTD,NEIGHBOURHOOD SERVICES,CA BLAKENALL HEATH JUNIOR SCHOOL,13.95,MISC DAIRY PRODUCTS-PROVISIONS,OTHER NONDURABLE GOODS
17 Oct 2014,CRH TRANSPORT TRAINING,NEIGHBOURHOOD SERVICES,LIBRARY OPERATIONS CENTRAL,343.75,GENERAL MATERIALS,"SCHOOLS, TRADE AND VOCATIONAL"
17 Oct 2014,ARTHUR BRETT CATER,NEIGHBOURHOOD SERVICES,CA BARCROFT D/C,82.75,FRUIT & VEGETABLES OTHER-PROVISIONS,MISCELLANEOUS FOOD STORES & CONVENIENCE STORES
17 Oct 2014,CHICKEN JOES LTD,NEIGHBOURHOOD SERVICES,CA CASTLEFORT JMI SCHOOL,30.65,FROZEN FOODS-PROVISIONS,CATERERS
17 Oct 2014,ITUNES.COM/BILL,CHILDRENS SERVICES,ICT LEARNING RESOURCES,9.07,GENERAL MATERIALS,RECORD SHOPS
17 Oct 2014,AMAZON *MKTPLCE EU-UK,CHILDRENS SERVICES,CLUSTER 4 ALUMWELL & BIRCHILLS,1.94,HEALTH & SAFETY-MATERIALS,BOOK STORES
17 Oct 2014,HOPWELLS LTD,CHILDRENS SERVICES,MARY ELLIOTT SPECIAL SCHOOL,212.88,BREAD-GENERAL-PROVISIONS,CATERERS
17 Oct 2014,CHICKEN JOES LTD,NEIGHBOURHOOD SERVICES,CA ST MICHAELS C.E. PRIMARY SCHOOL,41.75,FROZEN FOODS-PROVISIONS,CATERERS
17 Oct 2014,WELSH BROS FOODS LTD,NEIGHBOURHOOD SERVICES,CA JANE LANE SPECIAL SCHOOL,44.37,MEAT-PROVISIONS,FREEZER AND LOCKER MEAT PROVISIONERS
17 Oct 2014,TRAVEL WEST MIDLAN,RESOURCES,WALSALL CRISIS SUPPORT SCHEME,8.00,CRISIS SUPPORT PAYMENTS,BUS LINES
17 Oct 2014,CHICKEN JOES LTD,NEIGHBOURHOOD SERVICES,CA ELMORE GREEN PRIMARY SCHOOL,63.25,FROZEN FOODS-PROVISIONS,CATERERS
17 Oct 2014,TATE BRITAIN - LONDON,NEIGHBOURHOOD SERVICES,NEW ART GALLERY - ADMIN,11.00,PUBLICATIONS/ORGANISATIONS-SUBSCRIPTIONS,ART DEALERS AND GALLERIES
17 Oct 2014,OFFICE DEPOT,REGENERATION,CENTRALISED STATIONERY,350.53,STATIONERY & GENERAL SUPPLIES-OFFICE EXP,"STATIONERY, OFFICE SUPPLIES AND WRITING PAPER"
17 Oct 2014,JOHAL DAIRIES LTD,NEIGHBOURHOOD SERVICES,TOWN HALL RESTAURANT BISTRO,45.53,MISC DAIRY PRODUCTS-PROVISIONS,OTHER NONDURABLE GOODS
17 Oct 2014,TRAINLINE.COM,CHILDRENS SERVICES,ADOPTION TEAM,62.53,SECTION 34 (CONTACT),PASSENGER RAILWAYS
17 Oct 2014,RENAISSANCE MCHESTER,SOCIAL CARE & INCLUSION,SENIOR MANAGEMENT TEAM,516.00,HOTEL ACCOMMODATION-EMPLOYEES,RENAISSANCE HOTELS
17 Oct 2014,CHICKEN JOES LTD,NEIGHBOURHOOD SERVICES,CA ST JOHNS C.E. PRIMARY SCHOOL,96.28,FROZEN FOODS-PROVISIONS,CATERERS
17 Oct 2014,NOBISCO LTD,NEIGHBOURHOOD SERVICES,LIBRARY OPERATIONS CENTRAL,246.19,PAYMENT TO CONTRACTOR EXTERNAL-CLEANING,"CLEANING AND MAINTENANCE, JANITORIAL SERVICES"
17 Oct 2014,ARTHUR BRETT CATER,NEIGHBOURHOOD SERVICES,CA CALDMORE COMMUNITY PRIMARY SCHOOL,50.68,FRUIT & VEGETABLES OTHER-PROVISIONS,MISCELLANEOUS FOOD STORES & CONVENIENCE STORES
17 Oct 2014,ARTHUR BRETT CATER,NEIGHBOURHOOD SERVICES,CA CALDMORE COMMUNITY PRIMARY SCHOOL,36.44,FRUIT & VEGETABLES OTHER-PROVISIONS,MISCELLANEOUS FOOD STORES & CONVENIENCE STORES
17 Oct 2014,AMAZON *MKTPLCE EU-UK,CHILDRENS SERVICES,CHUCKERY PRIMARY SCHOOL,14.85,"REPAIRS,ALTERATIONS & MAINTENANCE-PREM",BOOK STORES
17 Oct 2014,JOHAL DAIRIES LTD,NEIGHBOURHOOD SERVICES,CA JOSEPH LECKIE COMMUNITY TECHNOLOGY COLLEGE,28.78,MISC DAIRY PRODUCTS-PROVISIONS,OTHER NONDURABLE GOODS
17 Oct 2014,WM MORRISON 063,CHILDRENS SERVICES,REDRUTH ROAD,12.78,CLEANING-MATERIALS (INC LIGHT BULBS),GROCERY STORES AND SUPERMARKETS
17 Oct 2014,PREMIER INN44010690,CHILDRENS SERVICES,LOOKED AFTER CHILDRENS SOCIAL WORK TEAM,53.99,SUPPORT UNDER SECTION 23 OF THE CHILDRENS ACT,PREMIER INN
17 Oct 2014,CHICKEN JOES LTD,NEIGHBOURHOOD SERVICES,CA BROWNHILLS WEST PRIMARY SCHOOL,47.98,FROZEN FOODS-PROVISIONS,CATERERS
17 Oct 2014,WEST COAST TRAINS,NEIGHBOURHOOD SERVICES,NEW ART GALLERY - ADMIN,39.00,OFFICER/STAFF-PUBLIC TRANSPORT,PASSENGER RAILWAYS
17 Oct 2014,PARENTPAY.COM&PAY24-7.CO,CHILDRENS SERVICES,57 LICHFIELD ROAD,15.40,GENERAL PROVISIONS-PROVISIONS,"COLLEGES, UNIVERSITIES, PROFESSIONAL SCHOOLS"
17 Oct 2014,JOHAL DAIRIES LTD,NEIGHBOURHOOD SERVICES,CA ST JOHNS C.E. PRIMARY SCHOOL,4.25,MISC DAIRY PRODUCTS-PROVISIONS,OTHER NONDURABLE GOODS
17 Oct 2014,OFFICE DEPOT,NEIGHBOURHOOD SERVICES,PRIVATE HIRE VEHICLES / HACKNEY CARRIAGES,21.59,STATIONERY & GENERAL SUPPLIES-OFFICE EXP,"STATIONERY, OFFICE SUPPLIES AND WRITING PAPER"
17 Oct 2014,JOHAL DAIRIES LTD,NEIGHBOURHOOD SERVICES,CA RADLEYS PRIMARY SCHOOL,42.00,MISC DAIRY PRODUCTS-PROVISIONS,OTHER NONDURABLE GOODS
17 Oct 2014,JOHAL DAIRIES LTD,NEIGHBOURHOOD SERVICES,CA ST BERNADETTES CATHOLIC PRIMARY SCHOOL,30.55,MISC DAIRY PRODUCTS-PROVISIONS,OTHER NONDURABLE GOODS
17 Oct 2014,AMAZON EU,CHILDRENS SERVICES,ADMINISTRATIVE SUPPLIES,53.95,GENERAL MATERIALS,OTHER DIRECT MARKETING-OTHER DIRECT MARKETERS
17 Oct 2014,OFFICE DEPOT,CHILDRENS SERVICES,ACCESS TEAM,50.81,STATIONERY & GENERAL SUPPLIES-OFFICE EXP,"STATIONERY, OFFICE SUPPLIES AND WRITING PAPER"
17 Oct 2014,OFFICE DEPOT,RESOURCES,SERVICE DESK 2nd LINE,30.50,GENERAL MATERIALS,"STATIONERY, OFFICE SUPPLIES AND WRITING PAPER"
17 Oct 2014,WILKO RETAIL LIMIT,RESOURCES,WALSALL CRISIS SUPPORT SCHEME,6.20,CRISIS SUPPORT PAYMENTS,HOUSEHOLD APPLIANCE STORES
17 Oct 2014,JOHAL DAIRIES LTD,NEIGHBOURHOOD SERVICES,CA ST MICHAELS C.E. PRIMARY SCHOOL,32.20,MISC DAIRY PRODUCTS-PROVISIONS,OTHER NONDURABLE GOODS
17 Oct 2014,AMAZON *MKTPLCE EU-UK,CHILDRENS SERVICES,ICT LEARNING RESOURCES,9.96,GENERAL MATERIALS,BOOK STORES
17 Oct 2014,ASDA STORES 7134,NEIGHBOURHOOD SERVICES,VP SCL VOCATIONAL & SUPPORTED LEARNING,5.00,CATERING,GROCERY STORES AND SUPERMARKETS
17 Oct 2014,ASDA STORES 7134,NEIGHBOURHOOD SERVICES,VP SCL VOCATIONAL & SUPPORTED LEARNING,48.00,CATERING,GROCERY STORES AND SUPERMARKETS
17 Oct 2014,ASDA STORES 7134,NEIGHBOURHOOD SERVICES,VP SCL VOCATIONAL & SUPPORTED LEARNING,354.54,CATERING,GROCERY STORES AND SUPERMARKETS
17 Oct 2014,JOHAL DAIRIES LTD,NEIGHBOURHOOD SERVICES,CA FIBBERSLEY PARK PRIMARY SCHOOL,48.52,MISC DAIRY PRODUCTS-PROVISIONS,OTHER NONDURABLE GOODS
17 Oct 2014,WM MORRISONS,CHILDRENS SERVICES,57 LICHFIELD ROAD,1.00,GENERAL PROVISIONS-PROVISIONS,GROCERY STORES AND SUPERMARKETS
17 Oct 2014,WM MORRISONS,CHILDRENS SERVICES,57 LICHFIELD ROAD,13.65,GENERAL PROVISIONS-PROVISIONS,GROCERY STORES AND SUPERMARKETS
17 Oct 2014,AMAZON *MKTPLCE EU-UK,NEIGHBOURHOOD SERVICES,FLEET,171.80,GENERAL MATERIALS,BOOK STORES
17 Oct 2014,THE TRAINLINE.COM,REGENERATION,CAPITAL-REGENERATION STRATEGIC TRANSPORTATION,107.61,OFFICER/STAFF-PUBLIC TRANSPORT,PASSENGER RAILWAYS
17 Oct 2014,FRAMA (UK) LTD,CHILDRENS SERVICES,CLUSTER 4 ALUMWELL & BIRCHILLS,119.52,RIBBONS & CONSUMABLES-COMPUTER,OTHER COMMERCIAL EQUIPMENT
17 Oct 2014,OYSTER COMMUNICATIONS,CHILDRENS SERVICES,CLUSTER 4 ALUMWELL & BIRCHILLS,210.00,RIBBONS & CONSUMABLES-COMPUTER,PROFESSIONAL SERVICES
17 Oct 2014,JOHAL DAIRIES LTD,NEIGHBOURHOOD SERVICES,CA BLUE COAT C OF E PERFORMING ARTS COLLEGE,18.50,MISC DAIRY PRODUCTS-PROVISIONS,OTHER NONDURABLE GOODS
17 Oct 2014,CHICKEN JOES LTD,NEIGHBOURHOOD SERVICES,CA FIBBERSLEY PARK PRIMARY SCHOOL,61.30,FROZEN FOODS-PROVISIONS,CATERERS
17 Oct 2014,BEST WESTERN,RESOURCES,BED & BREAKFAST PAYMENTS,132.00,HOTEL ACCOMMODATION-EMPLOYEES,BEST WESTERN HOTELS
17 Oct 2014,JOHAL DAIRIES LTD,NEIGHBOURHOOD SERVICES,CA WALSALL WOOD PRIMARY SCHOOL,4.20,MISC DAIRY PRODUCTS-PROVISIONS,OTHER NONDURABLE GOODS
17 Oct 2014,JOHAL DAIRIES LTD,NEIGHBOURHOOD SERVICES,CA OLD HALL SPECIAL SCHOOL,9.56,MISC DAIRY PRODUCTS-PROVISIONS,OTHER NONDURABLE GOODS
17 Oct 2014,WWW.GIROFOOD.COM,NEIGHBOURHOOD SERVICES,CA WATLING STREET PRIMARY SCHOOL,100.20,DISPOSABLES-PROVISIONS,WHOLESALE CLUBS
17 Oct 2014,WWW.GIROFOOD.COM,NEIGHBOURHOOD SERVICES,CA CASTLEFORT JMI SCHOOL,33.79,DISPOSABLES-PROVISIONS,WHOLESALE CLUBS
17 Oct 2014,WWW.GIROFOOD.COM,NEIGHBOURHOOD SERVICES,CA BARCROFT D/C,34.67,DISPOSABLES-PROVISIONS,WHOLESALE CLUBS
18 Oct 2014,B & Q,CHILDRENS SERVICES,"43A HILTON ROAD, WILLENHALL",31.98,RESIDENTS PERSONAL EXPENSES-ALLOWANCES TO S/S CLIENTS,LUMBER & BUILDING MATERIALS STORES
18 Oct 2014,VIRGIN MEDIA PYMTS,CHILDRENS SERVICES,57 LICHFIELD ROAD,31.50,RESIDENTS PERSONAL EXPENSES-ALLOWANCES TO S/S CLIENTS,TELECOMMUNICATION SERVICES
18 Oct 2014,MARKS & SPENCER SACAT,NEIGHBOURHOOD SERVICES,NAG - ARTISTS RESIDENCIES,12.90,MISC DAIRY PRODUCTS-PROVISIONS,GROCERY STORES AND SUPERMARKETS
18 Oct 2014,OFFICE DEPOT,NEIGHBOURHOOD SERVICES,RESOURCE MANAGEMENT,95.47,STATIONERY & GENERAL SUPPLIES-OFFICE EXP,"STATIONERY, OFFICE SUPPLIES AND WRITING PAPER"
18 Oct 2014,AMAZON EU,CHILDRENS SERVICES,PUPIL REFERAL UNIT EXCLUSIONS,10.96,STATIONERY & GENERAL SUPPLIES-OFFICE EXP,OTHER DIRECT MARKETING-OTHER DIRECT MARKETERS
18 Oct 2014,OFFICE DEPOT,CHILDRENS SERVICES,SEN,95.41,STATIONERY & GENERAL SUPPLIES-OFFICE EXP,"STATIONERY, OFFICE SUPPLIES AND WRITING PAPER"
18 Oct 2014,OFFICE DEPOT,CHILDRENS SERVICES,SEN ASSESSMENT,2.96,STATIONERY & GENERAL SUPPLIES-OFFICE EXP,"STATIONERY, OFFICE SUPPLIES AND WRITING PAPER"
18 Oct 2014,OFFICE DEPOT,CHILDRENS SERVICES,EDUCATIONAL PSYCHOLOGISTS,2.79,STATIONERY & GENERAL SUPPLIES-OFFICE EXP,"STATIONERY, OFFICE SUPPLIES AND WRITING PAPER"
18 Oct 2014,TESCO STORES 6161,NEIGHBOURHOOD SERVICES,NAG - ARTISTS RESIDENCIES,11.43,MISC DAIRY PRODUCTS-PROVISIONS,GROCERY STORES AND SUPERMARKETS
19 Oct 2014,ATLANTIC SHOPPING,CHILDRENS SERVICES,SPINDLETREE,239.97,FURNITURE & EQUIPMENT,"EQUIPMENT, FURNITURE, AND HOME FURNISHINGS STORES "
19 Oct 2014,ATLANTIC SHOPPING,CHILDRENS SERVICES,SPINDLETREE,239.97,FURNITURE & EQUIPMENT,"EQUIPMENT, FURNITURE, AND HOME FURNISHINGS STORES "
19 Oct 2014,HOME BARGAINS,CHILDRENS SERVICES,SCHOOL COUNCIL,12.49,GENERAL MATERIALS,HARDWARE STORES
20 Oct 2014,AMAZON *MKTPLCE EU-UK,CHILDRENS SERVICES,ADMINISTRATIVE SUPPLIES,31.42,GENERAL MATERIALS,BOOK STORES
20 Oct 2014,WELSH BROS FOODS LTD,NEIGHBOURHOOD SERVICES,CA RADLEYS PRIMARY SCHOOL,177.45,MEAT-PROVISIONS,FREEZER AND LOCKER MEAT PROVISIONERS
20 Oct 2014,WELSH BROS FOODS LTD,NEIGHBOURHOOD SERVICES,CA BUSILL JONES PRIMARY SCHOOL,281.84,MEAT-PROVISIONS,FREEZER AND LOCKER MEAT PROVISIONERS
20 Oct 2014,BLAKEMORE FOODSERVICE,NEIGHBOURHOOD SERVICES,CA BEACON PRIMARY SCHOOL,511.11,FROZEN FOODS-PROVISIONS,CATERERS
20 Oct 2014,LONDON MIDLAND INT,NEIGHBOURHOOD SERVICES,PUBLIC HEALTH BUSINESS SUPPORT,81.50,COURSE/CONFERENCE EXPENSES,PASSENGER RAILWAYS
20 Oct 2014,ARTHUR BRETT CATER,NEIGHBOURHOOD SERVICES,CA COOPER JORDAN CE PRIMARY SCHOOL,109.82,FRUIT & VEGETABLES OTHER-PROVISIONS,MISCELLANEOUS FOOD STORES & CONVENIENCE STORES
20 Oct 2014,BLAKEMORE FOODSERVICE,NEIGHBOURHOOD SERVICES,CA GREEN ROCK PRIMARY,17.96,FROZEN FOODS-PROVISIONS,CATERERS
20 Oct 2014,BLAKEMORE FOODSERVICE,NEIGHBOURHOOD SERVICES,CA BUSILL JONES PRIMARY SCHOOL,216.38,FROZEN FOODS-PROVISIONS,CATERERS
20 Oct 2014,WWW.DVLA.GOV.UK,NEIGHBOURHOOD SERVICES,FLEET,207.50,LICENCES-TRANSPORT RUN COSTS,GOVERNMENT SERVICES
20 Oct 2014,WILKO RETAIL LIMIT,RESOURCES,HOMELESSNESS PREVENTION STRATEGY,40.00,FURNITURE & EQUIPMENT,HOUSEHOLD APPLIANCE STORES
20 Oct 2014,WM MORRISON FOOD.COM,CHILDRENS SERVICES,CLUSTER 5 DARLASTON,191.52,FOOD AND BEVERAGES-PROVISIONS,GROCERY STORES AND SUPERMARKETS
20 Oct 2014,WM MORRISON FOOD.COM,CHILDRENS SERVICES,CLUSTER 5 DARLASTON,32.56,FOOD AND BEVERAGES-PROVISIONS,GROCERY STORES AND SUPERMARKETS
20 Oct 2014,BLAKEMORE FOODSERVICE,NEIGHBOURHOOD SERVICES,CA COOPER JORDAN CE PRIMARY SCHOOL,306.84,DRY FOODS-PROVISIONS,CATERERS
20 Oct 2014,BLAKEMORE FOODSERVICE,NEIGHBOURHOOD SERVICES,CA COOPER JORDAN CE PRIMARY SCHOOL,8.06,DRY FOODS-PROVISIONS,CATERERS
20 Oct 2014,BLAKEMORE FOODSERVICE,NEIGHBOURHOOD SERVICES,CA LEIGHSWOOD PRIMARY SCHOOL,48.04,FROZEN FOODS-PROVISIONS,CATERERS
20 Oct 2014,THE CARPET MAN,RESOURCES,WALSALL CRISIS SUPPORT SCHEME,354.00,CRISIS SUPPORT PAYMENTS,FLOOR COVERING STORES
20 Oct 2014,ASDA STORES 7134,NEIGHBOURHOOD SERVICES,VP SCL VOCATIONAL & SUPPORTED LEARNING,4.00,CATERING,GROCERY STORES AND SUPERMARKETS
20 Oct 2014,ASDA STORES 7134,NEIGHBOURHOOD SERVICES,VP SCL VOCATIONAL & SUPPORTED LEARNING,136.03,CATERING,GROCERY STORES AND SUPERMARKETS
20 Oct 2014,ARTHUR BRETT CATER,NEIGHBOURHOOD SERVICES,CA BLUE COAT C OF E PERFORMING ARTS COLLEGE,36.63,FRUIT & VEGETABLES OTHER-PROVISIONS,MISCELLANEOUS FOOD STORES & CONVENIENCE STORES
20 Oct 2014,BLAKEMORE FOODSERVICE,NEIGHBOURHOOD SERVICES,CA JANE LANE SPECIAL SCHOOL,3.08,DRY FOODS-PROVISIONS,CATERERS
20 Oct 2014,WALSALL COUNCIL,CHILDRENS SERVICES,LOOKED AFTER CHILDRENS SOCIAL WORK TEAM,15.00,REGISTRAR OF BIRTHS/DEATHS/MARRIAGES/CIVIL PARTNERSHIPS-SERV-FEES/CHARGES,GOVERNMENT SERVICES
20 Oct 2014,ARTHUR BRETT CATER,NEIGHBOURHOOD SERVICES,CA OAKWOOD SPECIAL SCHOOL,24.36,FRUIT & VEGETABLES OTHER-PROVISIONS,MISCELLANEOUS FOOD STORES & CONVENIENCE STORES
20 Oct 2014,BLAKEMORE FOODSERVICE,NEIGHBOURHOOD SERVICES,CA ELMWOOD SPECIAL SCHOOL,9.54,FROZEN FOODS-PROVISIONS,CATERERS
20 Oct 2014,WIX.COM,CHILDRENS SERVICES,EDUCATION BUSINESS PARTNERSHIP (EBP),3.00,SOFTWARE ACQ-COMPUTER,COMPUTER SOFTWARE STORES
20 Oct 2014,BLAKEMORE FOODSERVICE,NEIGHBOURHOOD SERVICES,CA JANE LANE SPECIAL SCHOOL,-66.24,DRY FOODS-PROVISIONS,CATERERS
20 Oct 2014,BLAKEMORE FOODSERVICE,NEIGHBOURHOOD SERVICES,CA JANE LANE SPECIAL SCHOOL,117.47,FROZEN FOODS-PROVISIONS,CATERERS
20 Oct 2014,BLAKEMORE FOODSERVICE,NEIGHBOURHOOD SERVICES,CA RADLEYS PRIMARY SCHOOL,458.00,DRY FOODS-PROVISIONS,CATERERS
20 Oct 2014,BLAKEMORE FOODSERVICE,NEIGHBOURHOOD SERVICES,CA RADLEYS PRIMARY SCHOOL,80.64,DRY FOODS-PROVISIONS,CATERERS
20 Oct 2014,WELSH BROS FOODS LTD,NEIGHBOURHOOD SERVICES,CA COOPER JORDAN CE PRIMARY SCHOOL,130.73,MEAT-PROVISIONS,FREEZER AND LOCKER MEAT PROVISIONERS
20 Oct 2014,TESCO STORES 6161,RESOURCES,HOMELESS PREVENTION GRANT,62.93,FOOD AND BEVERAGES-PROVISIONS,GROCERY STORES AND SUPERMARKETS
20 Oct 2014,BLAKEMORE FOODSERVICE,NEIGHBOURHOOD SERVICES,CA OLD HALL SPECIAL SCHOOL,34.17,FROZEN FOODS-PROVISIONS,CATERERS
20 Oct 2014,WELSH BROS FOODS LTD,NEIGHBOURHOOD SERVICES,CA BEACON PRIMARY SCHOOL,219.21,MEAT-PROVISIONS,FREEZER AND LOCKER MEAT PROVISIONERS
20 Oct 2014,FGW WEBSALES,NEIGHBOURHOOD SERVICES,PUBLIC HEALTH BUSINESS SUPPORT,42.00,COURSE/CONFERENCE EXPENSES,PASSENGER RAILWAYS
20 Oct 2014,ASDA STORES 7134,CHILDRENS SERVICES,"CLUSTER 1 BROWNHILLS,GREENFIELDS,PELSALL",54.30,GENERAL MATERIALS,GROCERY STORES AND SUPERMARKETS
20 Oct 2014,ASDA STORES 7134,CHILDRENS SERVICES,"CLUSTER 1 BROWNHILLS,GREENFIELDS,PELSALL",29.40,FOOD AND BEVERAGES-PROVISIONS,GROCERY STORES AND SUPERMARKETS
20 Oct 2014,BLAKEMORE FOODSERVICE,NEIGHBOURHOOD SERVICES,CA ELMORE GREEN PRIMARY SCHOOL,54.90,FROZEN FOODS-PROVISIONS,CATERERS
